{"text_format":"1","workbook":"xlsx","n_sheets":40,"sheets":["書類提出のお願い","共通情報入力表","施工体制台帳作成の通知","1.表紙","2.安全衛生誓約書・一次","2.安全衛生誓約書・二次","3.経験（実務経験）・一次","3.実務経験（国家資格）・一次","3.実務経験（実務経験）・二次","3.実務経験（国家資格）・二次","4.再下請通知書・一次","4.再下請通知・二次","5.外国人建設就労者入場届出書","6.下請業者編成表","7.作業員名簿①(全建様式)","7.作業員名簿②(国交省HPより)","8.社会保険加入状況","9.作業主任者専任報告書","※作業主任者専任一覧 ","10.新規入場時教育実施報告","11.新規入場者調査票","※新規入場者調査票見本","12.送り出し教育実施報告書","※送り出し教育実施報告書見本","13.持込機械（車両系）","14.持込機械（電動工具）","15.工事用車両届","16.危険物等持込使用届","17.火気使用願","18.高齢者就労報告書","19.年少者就労報告書","※年少者就業制限業務","20.作業手順書","21.重機作業計画書","22.退職金制度調査票","23.交付辞退届","24-1.事務受託様式5号","24-2.事務受託様式4号","24-3.共済契約者別一覧","24-4.事務受託様式2号"],"not_rendered":{"charts":0,"images":10,"macros":1,"external_links":0,"defined_names":38,"comments":28,"pivot_tables":0},"unopened":[],"bounds":{"document_bytes":16777216,"sheet_cells":100000,"rows_first":2000,"rows_last":500,"rows_between":2000,"halvings":0,"cell_chars":16384,"cell_head_chars":4096},"cells_cut":0,"cells_raw":0,"read":"whole","date_system":"1900"}

{"sheet":"書類提出のお願い","index":0,"n_rows":50,"n_cols":23,"rows_kept":50,"cut":false,"hidden":false,"merged":[[22,20,22,21],[40,1,40,2],[40,3,40,15],[40,18,40,19],[40,20,40,21],[40,22,40,24],[39,1,39,2],[39,3,39,15],[39,18,39,19],[39,20,39,21],[39,22,39,24],[36,1,36,2],[36,3,36,15],[36,18,36,19],[36,20,36,21],[36,22,36,24],[34,1,34,2],[34,3,34,15],[34,18,34,19],[34,20,34,21],[34,22,34,24],[33,1,33,2],[33,3,33,15],[33,18,33,19],[20,1,20,2],[20,3,20,15],[20,18,20,19],[20,20,20,21],[20,22,20,24],[27,1,27,2],[27,3,27,15],[27,18,27,19],[27,20,27,21],[27,22,27,24],[21,1,21,2],[21,3,21,15],[21,18,21,19],[21,20,21,21],[21,22,21,24],[24,1,24,2],[24,3,24,15],[24,18,24,19],[24,20,24,21],[24,22,24,24],[22,22,22,24],[22,1,22,2],[22,3,22,15],[22,18,22,19],[13,3,13,15],[13,18,13,19],[13,20,13,21],[13,22,13,24],[12,1,12,2],[12,3,12,15],[12,18,12,19],[12,20,12,21],[12,22,12,24],[46,1,46,24],[47,1,47,24],[48,1,48,24],[9,1,10,2],[9,3,10,15],[10,18,10,19],[9,20,10,21],[9,22,10,24],[13,1,13,2],[44,1,44,2],[44,3,44,15],[44,18,44,19],[44,20,44,21],[44,22,44,24],[19,1,19,2],[19,3,19,15],[19,18,19,19],[19,20,19,21],[19,22,19,24],[35,1,35,2],[35,3,35,15],[35,18,35,19],[35,20,35,21],[35,22,35,24],[33,20,33,21],[33,22,33,24],[32,1,32,2],[32,3,32,15],[32,18,32,19],[32,20,32,21],[32,22,32,24],[31,1,31,2],[31,3,31,15],[31,18,31,19],[31,20,31,21],[31,22,31,24],[30,1,30,2],[30,3,30,15],[30,18,30,19],[30,20,30,21],[30,22,30,24],[29,22,29,24],[25,1,25,2],[25,3,25,15],[25,18,25,19],[25,20,25,21],[25,22,25,24],[26,1,26,2],[26,3,26,15],[26,18,26,19],[26,20,26,21],[26,22,26,24],[28,1,28,2],[28,3,28,15],[28,18,28,19],[28,20,28,21],[28,22,28,24],[43,1,43,2],[43,3,43,15],[43,18,43,19],[43,20,43,21],[43,22,43,24],[42,1,42,2],[42,3,42,15],[42,18,42,19],[42,20,42,21],[42,22,42,24],[41,1,41,2],[41,3,41,15],[41,18,41,19],[41,20,41,21],[41,22,41,24],[23,1,23,2],[23,3,23,15],[23,18,23,19],[23,20,23,21],[23,22,23,24],[37,1,37,2],[37,3,37,15],[37,18,37,19],[37,20,37,21],[37,22,37,24],[38,1,38,2],[38,3,38,15],[38,18,38,19],[38,20,38,21],[38,22,38,24],[29,1,29,2],[29,3,29,15],[29,18,29,19],[29,20,29,21],[16,22,16,24],[14,1,14,2],[14,3,14,15],[14,18,14,19],[14,20,14,21],[14,22,14,24],[15,1,15,2],[15,3,15,15],[15,18,15,19],[15,20,15,21],[15,22,15,24],[16,1,16,2],[49,1,49,24],[11,1,11,2],[11,3,11,15],[11,18,11,19],[11,20,11,21],[11,22,11,24],[1,20,1,24],[2,1,3,9],[4,5,5,20],[7,1,7,24],[9,16,9,19],[18,1,18,2],[18,3,18,15],[18,18,18,19],[18,20,18,21],[18,22,18,24],[17,1,17,2],[17,3,17,15],[17,18,17,19],[17,20,17,21],[17,22,17,24],[16,3,16,15],[16,18,16,19],[16,20,16,21]]}
[]
[]
[null,"協力会社の皆さまへ"]
[]
[null,null,null,null,null,"安全衛生関係書類ほかの提出のお願い"]
[]
[]
[null,"当工事に入場される協力会社の方は下記書類を提出してください"]
[]
[null,"様式",null,"種　　　　　　　別",null,null,null,null,null,null,null,null,null,null,null,null,"仕様",null,null,null,"提出\n部数",null,"提出\n年月日"]
[null,null,null,null,null,null,null,null,null,null,null,null,null,null,null,null,"紙","データ","要押印"]
[null," － ",null,"★当社との注文請書",null,null,null,null,null,null,null,null,null,null,null,null,null,null,null,null,"1部"]
[null,"1",null,"　表紙",null,null,null,null,null,null,null,null,null,null,null,null,null,null,null,null,"1部"]
[null,"2",null,"　安全衛生誓約書",null,null,null,null,null,null,null,null,null,null,null,null,null,null,null,null,"1部"]
[null,3,null,"★実務経験証明書",null,null,null,null,null,null,null,null,null,null,null,null,null,null,null,null,"1部"]
[null," － ",null,"★主任技術者資格者証の写し",null,null,null,null,null,null,null,null,null,null,null,null,null,null,null,null,"1部"]
[null," － ",null,"★在職証明書（主任技術者）※保険証等の写し",null,null,null,null,null,null,null,null,null,null,null,null,null,null,null,null,"1部"]
[null,4,null,"★再下請負通知書",null,null,null,null,null,null,null,null,null,null,null,null,null,null,null,null,"1部"]
[null," － ",null,"★建設業許可証の写し",null,null,null,null,null,null,null,null,null,null,null,null,null,null,null,null,"1部"]
[null," － ",null,"★下請け業者との注文書、請書、約款の写し",null,null,null,null,null,null,null,null,null,null,null,null,null,null,null,null,"1部"]
[null,5,null,"　外国人建設就労者建設現場入場届出書　　",null,null,null,null,null,null,null,null,null,null,null,null,null,null,null,null,"1部"]
[null,6,null,"　下請負業者編成表",null,null,null,null,null,null,null,null,null,null,null,null,null,null,null,null,"1部"]
[null,7,null,"★作業員名簿",null,null,null,null,null,null,null,null,null,null,null,null,null,null,null,null,"1部"]
[null," － ",null,"　当現場に従事する作業員資格証の写し",null,null,null,null,null,null,null,null,null,null,null,null,null,null,null,null,"1部"]
[null,8,null,"　社会保険加入状況",null,null,null,null,null,null,null,null,null,null,null,null,null,null,null,null,"1部"]
[null,9,null,"　作業主任者等選任報告書",null,null,null,null,null,null,null,null,null,null,null,null,null,null,null,null,"1部"]
[null,10,null,"　新規入場時等教育実施報告書",null,null,null,null,null,null,null,null,null,null,null,null,null,null,null,null,"1部"]
[null,11,null,"　新規入場者調査票",null,null,null,null,null,null,null,null,null,null,null,null,null,null,null,null,"1部"]
[null,12,null,"　送り出し教育実施報告書",null,null,null,null,null,null,null,null,null,null,null,null,null,null,null,null,"1部"]
[null,13,null,"　持込機械等（移動式クレーン・車両系建設機械）使用届",null,null,null,null,null,null,null,null,null,null,null,null,null,null,null,null,"1部"]
[null," － ",null,"　持込機械等の年次、月次などの特定点検表の写し",null,null,null,null,null,null,null,null,null,null,null,null,null,null,null,null,"1部"]
[null,14,null,"　持込機械等（電動工具・電気溶接機等）使用届",null,null,null,null,null,null,null,null,null,null,null,null,null,null,null,null,"1部"]
[null," － ",null,"　測定、測量器具の校正証明書の写し",null,null,null,null,null,null,null,null,null,null,null,null,null,null,null,null,"1部"]
[null,15,null,"　工事用車両届",null,null,null,null,null,null,null,null,null,null,null,null,null,null,null,null,"1部"]
[null," － ",null,"　工事車両の車検証、任意保険、自賠責保険の写し",null,null,null,null,null,null,null,null,null,null,null,null,null,null,null,null,"1部"]
[null,16,null,"　危険物・有害物持込使用届",null,null,null,null,null,null,null,null,null,null,null,null,null,null,null,null,"1部"]
[null,17,null,"　火気使用願",null,null,null,null,null,null,null,null,null,null,null,null,null,null,null,null,"1部"]
[null,18,null,"　高齢者就労報告書",null,null,null,null,null,null,null,null,null,null,null,null,null,null,null,null,"1部"]
[null,19,null,"　年少者就労報告書",null,null,null,null,null,null,null,null,null,null,null,null,null,null,null,null,"1部"]
[null,20,null,"　作業手順書",null,null,null,null,null,null,null,null,null,null,null,null,null,null,null,null,"1部"]
[null,21,null,"　重機作業計画書",null,null,null,null,null,null,null,null,null,null,null,null,null,null,null,null,"1部"]
[null,22,null,"★退職金制度調査票",null,null,null,null,null,null,null,null,null,null,null,null,null,null,null,null,"1部"]
[null," － ",null,"★各退職金制度の加入証の写し　又は　退職金制度の規約の写し",null,null,null,null,null,null,null,null,null,null,null,null,null,null,null,null,"1部"]
[null,23,null,"★建設業退職金共済証紙　交付辞退届　※建退共以外",null,null,null,null,null,null,null,null,null,null,null,null,null,null,null,null,"1部"]
[null,24,null,"　被共済者就労状況報告書　※建退共事務受託様式、毎月5日までに提出",null,null,null,null,null,null,null,null,null,null,null,null,null,null,null,null,"各1部"]
[]
[null,"※一次協力会社は、当該工事に従事する二次以降の協力会社分も当社へ、提出して下さい。"]
[null,"※★マークの項目については契約後速やかに又は現場入場の1週間前までに提出して下さい。"]
[null,"※★マーク以外の項目について現場入場時までに提出して下さい。"]
[null,"※作業手順書・重機作業計画書については貴社様式での提出でも構いません。"]

{"sheet":"共通情報入力表","index":1,"n_rows":52,"n_cols":6,"rows_kept":52,"cut":false,"hidden":false,"merged":[[51,1,54,4],[15,1,32,1],[33,1,50,1],[1,1,1,4],[2,1,2,4],[4,1,11,1]]}
[]
[null,"【元請・協力会社 共通情報入力表】"]
[null,"※入力した場合、各シートの対応項目（同色欄）に自動転記されます。\n （注：転記されない欄も有ります）\n　"]
[null,"※入力が不要な欄は『空欄』として下さい。"]
[null,"（元請会社）","元請会社名"]
[null,null,"事業者ID",null,"※建設キャリアップに登録してある場合のみ記載。"]
[null,null,"工事名"]
[null,null,"現場ID",null,"※建設キャリアップに登録してある場合のみ記載。"]
[null,null,"工事場所"]
[null,null,"現場代理人"]
[null,null,"主任又は監理技術者"]
[null,null,"専門技術者",null,"※選任の場合"]
[null,"（発注者）","発注者名"]
[null,null,"発注者住所１・郵便番号",null,null,"発注者住所１・郵便番号"]
[null,null,"発注者住所２・住　　所",null,null,"発注者住所２・住　所"]
[null,"（一次下請負）","作成日"]
[null,null,"協力会社名"]
[null,null,"事業者ID",null,"※建設キャリアップに登録してある場合のみ記載。"]
[null,null,"代表者名"]
[null,null,"会社住所１・郵便番号"]
[null,null,"会社住所２・住　所"]
[null,null,"会社住所３・電話番号"]
[null,null,"工事名",null,"※工事名を変更する場合、左記へ直接入力による"]
[null,null,"自：工期"]
[null,null,"至：工期"]
[null,null,"契約日"]
[null,null,"現場代理人"]
[null,null,"主任技術者"]
[null,null,"資格内容"]
[null,null,"安全衛生責任者"]
[null,null,"安全衛生推進者名",null,"※選任の場合"]
[null,null,"雇用管理責任者名"]
[null,null,"専門技術者名",null,"※選任の場合"]
[null,"（二次下請負）","作成日"]
[null,null,"協力会社名"]
[null,null,"事業者ID",null,"※建設キャリアップに登録してある場合のみ記載。"]
[null,null,"代表者名"]
[null,null,"会社住所１・郵便番号"]
[null,null,"会社住所２・住　所"]
[null,null,"会社住所３・電話番号"]
[null,null,"工事名",null,"※工事名を変更する場合、左記へ直接入力による"]
[null,null,"自：工期"]
[null,null,"至：工期"]
[null,null,"契約日"]
[null,null,"現場代理人"]
[null,null,"主任技術者"]
[null,null,"資格内容"]
[null,null,"安全衛生責任者"]
[null,null,"安全衛生推進者名",null,"※選任の場合"]
[null,null,"雇用管理責任者名"]
[null,null,"専門技術者名",null,"※選任の場合"]
[null,"※当該グリーンファイルは、二次下請負までの基本入力用です。\n　三次下請負以降は直接、各シートの必要項目を直接打ち変えを行う等して対応願います。\n　なお、三次下請負会社の「再下請負通知書（変更届）」として入力する場合等においては、 \n　一次・二次下請負欄をそれぞれ、二次・三次内容として打ち変えを行い、対応していただきたいと思い\n　ます。\n （但し、その他シートは正しく反映されませんのでご注意願います。）"]

{"sheet":"施工体制台帳作成の通知","index":2,"n_rows":42,"n_cols":29,"rows_kept":42,"cut":false,"hidden":false,"merged":[[40,7,40,35],[41,7,41,35],[36,1,36,5],[36,7,36,35],[40,1,40,5],[41,1,41,5],[17,2,17,35],[21,3,21,35],[22,2,22,35],[23,2,23,35],[25,3,25,35],[18,1,18,9],[24,2,24,4],[1,1,1,7],[13,1,13,3],[16,1,16,10],[14,2,14,35],[15,1,15,35],[12,2,12,35],[7,25,8,35],[2,28,2,35],[10,1,10,35],[29,3,29,35],[30,2,30,35],[38,15,38,19],[38,20,38,35],[33,2,33,29],[38,1,38,5],[37,1,37,5],[35,1,35,5],[35,7,35,35],[37,7,37,35],[38,7,38,14]]}
[]
[null,"全建統一様式第2号"]
[null,null,null,null,null,null,null,null,null,null,null,null,null,null,null,null,null,null,null,null,null,null,null,null,null,null,null,null,{"$f":"TODAY()","v":"2024-07-09"}]
[null,"下請負業者の皆さんへ"]
[]
[null,null,null,null,null,null,null,null,null,null,null,null,null,null,null,null,null,"【元請負業者】"]
[null,null,null,null,null,null,null,null,null,null,null,null,null,null,null,null,null,null,null,"会　 社 　名",null,null,null,null,null,{"$f":"IF(ISBLANK(共通情報入力表!D5),\"\",共通情報入力表!D5)","v":""}]
[null,null,null,null,null,null,null,null,null,null,null,null,null,null,null,null,null,null,null,null,null,null,null,null,null,{"$f":"IF(ISBLANK(共通情報入力表!D7),\"\",共通情報入力表!D7)","v":""}]
[null,null,null,null,null,null,null,null,null,null,null,null,null,null,null,null,null,null,null,"事業所の名称"]
[]
[null,"施工体制台帳作成建設工事の通知"]
[]
[null,null,"当工事は、建設業法(昭和24年法律第100号)第24条の8に基づく施工体制台帳の作成を要する建設工"]
[null,"事です。"]
[null,null,"この建設工事に従事する下請負業者の方は、一次、二次等の層次を問わず、その請け負った建設工事を"]
[null,"他の建設業を営む者(建設業の許可を受けていない者を含みます。)に請け負わせたときは、速やかに次"]
[null,"の手続きを実施してください。"]
[null,null,"なお、一度提出いただいた事項や書類に変更が生じたときも、遅滞なく、変更の年月日を付記して再提"]
[null,"出しなければなりません。"]
[]
[null,"①","再下請負通知書の提出"]
[null,null,null,"建設業法第24条の8第2項の規定により、遅滞なく、建設業法施行規則(昭和24年建設省令第14号)"]
[null,null,"第14条の4第1項に規定する再下請負通知書により、自社の建設業登録や主任技術者等の選任状況及び"]
[null,null,"再下請負契約がある場合はその状況を、直近上位の注文者を通じて元請負業者に報告されるようお願い"]
[null,null,"します。"]
[null,null,null,"一次下請負業者の方は、後次の下請負業者から提出される再下請負通知書を取りまとめ、下請負業者"]
[null,null,"編成表とともに提出してください。"]
[]
[null,"②","再下請負業者に対する通知"]
[null,null,null,"他に下請負を行わせる場合は、この書面を複写し交付して、「もし更に他の者に工事を請け負わせた"]
[null,null,"ときは、『再下請負通知書』を提出するとともに、関係する後次の下請負業者に対してこの書面の写し"]
[null,null,"の交付が必要である」旨を伝えなければなりません。"]
[]
[null,null,"なお、当工事の概要は次のとおりですが、不明の点は下記の担当者に照会ください。"]
[]
[null,"元　請　名",null,null,null,null,null,{"$f":"IF(ISBLANK(共通情報入力表!D5),\"\",共通情報入力表!D5)","v":""}]
[null,"発 注 者 名",null,null,null,null,null,{"$f":"IF(ISBLANK(共通情報入力表!D13),\"\",共通情報入力表!D13)","v":""}]
[null,"工　事　名",null,null,null,null,null,{"$f":"IF(ISBLANK(共通情報入力表!D7),\"\",共通情報入力表!D7)","v":""}]
[null,"監 督 員 名",null,null,null,null,null,{"$f":"IF(ISBLANK(共通情報入力表!D10),\"\",共通情報入力表!D10)","v":""},null,null,null,null,null,null,null,"権限及び意見\n申出方法",null,null,null,null,"工事請負契約書記載のとおり\n書面による"]
[]
[null,"提出先及び",null,null,null,null,null,{"$f":"IF(ISBLANK(共通情報入力表!D7),\"\",共通情報入力表!D7&\" 作業所\")","v":""}]
[null,"担　当　者",null,null,null,null,null,{"$f":"IF(ISBLANK(共通情報入力表!D10),\"\",共通情報入力表!D10)","v":""}]

{"sheet":"1.表紙","index":3,"n_rows":36,"n_cols":7,"rows_kept":36,"cut":false,"hidden":false,"merged":[[35,3,35,4],[35,6,35,9],[7,1,8,11],[13,1,13,11],[33,3,33,4],[33,6,33,9]]}
[]
[]
[]
[]
[]
[]
[null,null,null,"全建統一様式"]
[null,"施工体制台帳・再下請通知書・　　　　　　　　　　　　　　労務安全に関する届出書"]
[]
[]
[]
[]
[]
[null,"　　年　　月　　日　　提出"]
[]
[]
[]
[]
[]
[]
[]
[]
[]
[]
[]
[]
[]
[]
[]
[]
[]
[]
[]
[null,null,null,"工事名",null,null,{"$f":"IF(ISBLANK(共通情報入力表!D23),\"\",共通情報入力表!D23)","v":""}]
[]
[null,null,null,"会社名",null,null,{"$f":"IF(ISBLANK(共通情報入力表!D17),\"\",共通情報入力表!D17)","v":""}]

{"sheet":"2.安全衛生誓約書・一次","index":4,"n_rows":56,"n_cols":10,"rows_kept":56,"cut":false,"hidden":false,"merged":[[1,1,1,9],[7,2,8,7],[10,2,10,3],[21,1,21,9],[55,8,55,9],[5,7,5,9],[5,5,5,6]]}
[]
[null,"安全衛生管理に関する誓約書"]
[]
[]
[]
[null,null,null,null,null,"（誓約日）",null,{"$f":"IF(ISBLANK(共通情報入力表!D16),\"　　年　　月　　日\",共通情報入力表!D16)","v":"　　年　　月　　日"}]
[]
[null,null,{"$f":"IF(ISBLANK(共通情報入力表!D23),\"\",共通情報入力表!D23)","v":""}]
[null,"工事名称"]
[]
[null,"所 長 名",{"$f":"IF(ISBLANK(共通情報入力表!D10),\"\",共通情報入力表!D10)","v":""},null,"殿"]
[]
[]
[null,null,null,null,null,"（住　所）",{"$f":"IF(ISBLANK(共通情報入力表!D21),\"\",共通情報入力表!D21)","v":""}]
[]
[null,null,null,null,"協力会社","（会社名）",{"$f":"IF(ISBLANK(共通情報入力表!D17),\"\",共通情報入力表!D17)","v":""}]
[]
[null,null,null,null,null,"（代表者）",{"$f":"IF(ISBLANK(共通情報入力表!D19),\"\",共通情報入力表!D19)","v":""},null,null,"㊞"]
[]
[]
[]
[null,"弊社は当該工事施工に関し、下記事項を忠実に遵守することを誓約いたします。"]
[]
[]
[]
[null,null,null,null,"記"]
[]
[]
[null,"１．","  労働基準法、労働安全衛生法及びその他の災害防止・職業性疾病の予防に関す"]
[]
[null,null,"る諸法令を厳守するとともに、貴社において定める安全衛生規律を誠実に守り、"]
[]
[null,null,"安全に履行し、災害防止、職業性疾病の予防に万全を期します。"]
[]
[]
[]
[]
[null,"２．","  建設業法に則り主任技術者を配置し、建設工事の適正な施工を確保すると共に、"]
[]
[null,null,"工事の一部を再下請させる場合には、建設業法に則り主任技術者等を配置させ適"]
[]
[null,null,"正な施工を確保いたします。"]
[]
[]
[null,"３．","  出入国管理及び難民認定法（入管法）の内容を正しく理解して、同法に違反して"]
[]
[null,null,"不法に就労する外国人を雇用いたしません。"]
[]
[]
[null,"４．","  弊社の再下請負業者にも同様に誓約させ、災害防止、職業性疾病の予防・適正"]
[]
[null,null,"な施工の確保を期します。"]
[]
[]
[]
[null,null,null,null,null,null,null,null,"以    　　上"]

{"sheet":"2.安全衛生誓約書・二次","index":5,"n_rows":56,"n_cols":10,"rows_kept":56,"cut":false,"hidden":false,"merged":[[55,8,55,9],[1,1,1,9],[5,5,5,6],[5,7,5,9],[7,2,8,7],[10,2,10,3],[21,1,21,9]]}
[]
[null,"安全衛生管理に関する誓約書"]
[]
[]
[]
[null,null,null,null,null,"（誓約日）",null,{"$f":"IF(ISBLANK(共通情報入力表!D34),\"　　年　　月　　日\",共通情報入力表!D34)","v":"　　年　　月　　日"}]
[]
[null,null,{"$f":"IF(ISBLANK(共通情報入力表!D41),\"\",共通情報入力表!D41)","v":""}]
[null,"工事名称"]
[]
[null,"所 長 名",{"$f":"IF(ISBLANK(共通情報入力表!D10),\"\",共通情報入力表!D10)","v":""},null,"殿"]
[]
[]
[null,null,null,null,null,"（住　所）",{"$f":"IF(ISBLANK(共通情報入力表!D39),\"\",共通情報入力表!D39)","v":""}]
[]
[null,null,null,null,"協力会社","（会社名）",{"$f":"IF(ISBLANK(共通情報入力表!D35),\"\",共通情報入力表!D35)","v":""}]
[]
[null,null,null,null,null,"（代表者）",{"$f":"IF(ISBLANK(共通情報入力表!D37),\"\",共通情報入力表!D37)","v":""},null,null,"㊞"]
[]
[]
[]
[null,"弊社は当該工事施工に関し、下記事項を忠実に遵守することを誓約いたします。"]
[]
[]
[]
[null,null,null,null,"記"]
[]
[]
[null,"１．","  労働基準法、労働安全衛生法及びその他の災害防止・職業性疾病の予防に関す"]
[]
[null,null,"る諸法令を厳守するとともに、貴社において定める安全衛生規律を誠実に守り、"]
[]
[null,null,"安全に履行し、災害防止、職業性疾病の予防に万全を期します。"]
[]
[]
[]
[]
[null,"２．","  建設業法に則り主任技術者を配置し、建設工事の適正な施工を確保すると共に、"]
[]
[null,null,"工事の一部を再下請させる場合には、建設業法に則り主任技術者等を配置させ適"]
[]
[null,null,"正な施工を確保いたします。"]
[]
[]
[null,"３．","  出入国管理及び難民認定法（入管法）の内容を正しく理解して、同法に違反して"]
[]
[null,null,"不法に就労する外国人を雇用いたしません。"]
[]
[]
[null,"４．","  弊社の再下請負業者にも同様に誓約させ、災害防止、職業性疾病の予防・適正"]
[]
[null,null,"な施工の確保を期します。"]
[]
[]
[]
[null,null,null,null,null,null,null,null,"以    　　上"]

{"sheet":"3.経験（実務経験）・一次","index":6,"n_rows":38,"n_cols":26,"rows_kept":38,"cut":false,"hidden":false,"merged":[[1,20,1,25],[4,2,4,25],[9,15,9,16],[9,18,9,24],[11,15,11,16],[11,18,11,25],[18,21,18,25],[12,18,13,24],[14,18,14,24],[17,2,17,6],[17,7,17,10],[17,11,17,13],[17,14,17,17],[17,18,18,20],[17,21,17,24],[18,2,18,6],[18,7,18,17],[6,2,7,25],[19,2,19,6],[19,7,19,15],[19,16,19,25],[20,2,20,6],[20,7,20,15],[20,16,20,17],[20,18,20,20],[20,21,20,22],[20,23,20,25],[28,2,28,6],[28,7,28,15],[28,16,28,17],[28,18,28,20],[28,21,28,22],[28,23,28,25],[27,2,27,6],[27,7,27,15],[27,16,27,17],[27,18,27,20],[27,21,27,22],[27,23,27,25],[30,2,30,6],[30,7,30,15],[30,16,30,17],[30,18,30,20],[30,21,30,22],[30,23,30,25],[29,2,29,6],[29,7,29,15],[29,16,29,17],[29,18,29,20],[29,21,29,22],[29,23,29,25],[32,2,32,6],[32,7,32,15],[32,16,32,17],[32,18,32,20],[32,21,32,22],[32,23,32,25],[31,2,31,6],[31,7,31,15],[31,16,31,17],[31,18,31,20],[31,21,31,22],[31,23,31,25],[34,2,34,6],[34,7,34,15],[34,16,34,17],[34,18,34,20],[34,21,34,22],[34,23,34,25],[33,2,33,6],[33,7,33,15],[33,16,33,17],[33,18,33,20],[33,21,33,22],[33,23,33,25],[35,2,35,6],[35,7,37,9],[35,16,35,17],[35,20,35,21],[35,23,35,24],[36,2,36,6],[36,16,36,20],[36,21,37,25],[37,2,37,6],[37,16,37,20],[21,23,21,25],[22,2,22,6],[22,7,22,15],[22,16,22,17],[22,18,22,20],[22,21,22,22],[22,23,22,25],[21,2,21,6],[21,7,21,15],[21,16,21,17],[21,18,21,20],[21,21,21,22],[24,2,24,6],[24,7,24,15],[24,16,24,17],[24,18,24,20],[24,21,24,22],[24,23,24,25],[23,2,23,6],[23,7,23,15],[23,16,23,17],[23,18,23,20],[23,21,23,22],[23,23,23,25],[26,2,26,6],[26,7,26,15],[26,16,26,17],[26,18,26,20],[26,21,26,22],[26,23,26,25],[25,2,25,6],[25,7,25,15],[25,16,25,17],[25,18,25,20],[25,21,25,22],[25,23,25,25]]}
[]
[null,"様式第九号（第三条関係）"]
[]
[]
[null,null,"実　務　経　験　証　明　書"]
[]
[null,null,{"$f":"IF(ISBLANK(共通情報入力表!D7),\"下記の者は、　　　　　　　工事に関し、下記のとおり実務の経験を有することに相違ないことを証明します。\",\"下記の者は、\"&共通情報入力表!D23&\"に関し、下記のとおり実務の経験を有することに相違ないことを証明します\")","v":"下記の者は、　　　　　　　工事に関し、下記のとおり実務の経験を有することに相違ないことを証明します。"}]
[]
[]
[null,null,null,null,null,null,null,null,null,null,null,null,null,null,null,null,null,null,{"$f":"IF(ISBLANK(共通情報入力表!D16),\"　　年　　月　　日\",共通情報入力表!D16)","v":"　　年　　月　　日"}]
[]
[null,null,null,null,null,null,null,null,null,null,null,null,null,null,null,"証明者",null,null,{"$f":"IF(ISBLANK(共通情報入力表!D21),\"\",共通情報入力表!D21)","v":""}]
[null,null,null,null,null,null,null,null,null,null,null,null,null,null,null,null,null,null,{"$f":"IF(ISBLANK(共通情報入力表!D17),\"\",共通情報入力表!D17)","v":""}]
[]
[null,null,null,null,null,null,null,null,null,null,null,null,null,null,null,null,null,null,{"$f":"IF(ISBLANK(共通情報入力表!D19),\"\",共通情報入力表!D19)","v":""},null,null,null,null,null,null,"㊞"]
[]
[]
[null,null,"技術者の氏名",null,null,null,null,{"$f":"IF(ISBLANK(共通情報入力表!D28),\"\",共通情報入力表!D28)","v":""},null,null,null,"生年月日",null,null,null,null,null,null,"使用され　　　た期間",null,null,null,null,null,null,"から"]
[null,null,"使用者の商号又名称",null,null,null,null,{"$f":"IF(ISBLANK(共通情報入力表!D17),\"\",共通情報入力表!D17)","v":""},null,null,null,null,null,null,null,null,null,null,null,null,null,"現在まで"]
[null,null,"職　　名",null,null,null,null,"実 務 経 験 の 内 容",null,null,null,null,null,null,null,null,"実 務 経 験 年 数"]
[null,null,null,null,null,null,null,"省略",null,null,null,null,null,null,null,null,"年",null,"月から",null,null,"年",null,"月迄"]
[null,null,null,null,null,null,null,null,null,null,null,null,null,null,null,null,"年",null,"月から",null,null,"年",null,"月迄"]
[null,null,null,null,null,null,null,null,null,null,null,null,null,null,null,null,"年",null,"月から",null,null,"年",null,"月迄"]
[null,null,null,null,null,null,null,null,null,null,null,null,null,null,null,null,"年",null,"月から",null,null,"年",null,"月迄"]
[null,null,null,null,null,null,null,null,null,null,null,null,null,null,null,null,"年",null,"月から",null,null,"年",null,"月迄"]
[null,null,null,null,null,null,null,null,null,null,null,null,null,null,null,null,"年",null,"月から",null,null,"年",null,"月迄"]
[null,null,null,null,null,null,null,null,null,null,null,null,null,null,null,null,"年",null,"月から",null,null,"年",null,"月迄"]
[null,null,null,null,null,null,null,null,null,null,null,null,null,null,null,null,"年",null,"月から",null,null,"年",null,"月迄"]
[null,null,null,null,null,null,null,null,null,null,null,null,null,null,null,null,"年",null,"月から",null,null,"年",null,"月迄"]
[null,null,null,null,null,null,null,null,null,null,null,null,null,null,null,null,"年",null,"月から",null,null,"年",null,"月迄"]
[null,null,null,null,null,null,null,null,null,null,null,null,null,null,null,null,"年",null,"月から",null,null,"年",null,"月迄"]
[null,null,null,null,null,null,null,null,null,null,null,null,null,null,null,null,"年",null,"月から",null,null,"年",null,"月迄"]
[null,null,null,null,null,null,null,null,null,null,null,null,null,null,null,null,"年",null,"月から",null,null,"年",null,"月迄"]
[null,null,null,null,null,null,null,null,null,null,null,null,null,null,null,null,"年",null,"月から",null,null,"年",null,"月迄"]
[null,null,null,null,null,null,null,null,null,null,null,null,null,null,null,null,"年",null,"月から",null,null,"年",null,"月迄"]
[null,null," 使用者の証明を",null,null,null,null,"その理由",null,null,null,null,null,null,null,null,"合計",null,null,"満",null,null,"年",null,null,"月"]
[null,null," 得ることができ",null,null,null,null,null,null,null,null,null,null,null,null,null," 証明者と被証明者",null,null,null,null,"社長と社員"]
[null,null," ない場合",null,null,null,null,null,null,null,null,null,null,null,null,null," との関係"]

{"sheet":"3.実務経験（国家資格）・一次","index":7,"n_rows":41,"n_cols":26,"rows_kept":41,"cut":false,"hidden":false,"merged":[[11,15,11,16],[11,18,11,25],[1,20,1,25],[4,2,4,25],[9,15,9,16],[9,18,9,24],[6,2,7,25],[12,18,13,24],[14,18,14,24],[17,2,17,6],[17,7,17,10],[17,11,17,13],[17,14,17,17],[17,18,18,20],[17,21,17,24],[18,2,18,6],[18,7,18,17],[18,21,18,25],[19,2,20,6],[19,7,19,8],[19,16,19,18],[19,19,19,25],[20,7,20,12],[20,13,20,15],[20,16,20,18],[20,19,20,25],[23,23,23,25],[21,2,21,6],[21,7,21,15],[21,16,21,25],[22,2,22,6],[22,7,22,15],[22,16,22,17],[22,18,22,20],[22,21,22,22],[22,23,22,25],[23,2,23,6],[23,7,23,15],[23,16,23,17],[23,18,23,20],[23,21,23,22],[25,23,25,25],[24,2,24,6],[24,7,24,15],[24,16,24,17],[24,18,24,20],[24,21,24,22],[24,23,24,25],[25,2,25,6],[25,7,25,15],[25,16,25,17],[25,18,25,20],[25,21,25,22],[27,23,27,25],[26,2,26,6],[26,7,26,15],[26,16,26,17],[26,18,26,20],[26,21,26,22],[26,23,26,25],[27,2,27,6],[27,7,27,15],[27,16,27,17],[27,18,27,20],[27,21,27,22],[29,23,29,25],[28,2,28,6],[28,7,28,15],[28,16,28,17],[28,18,28,20],[28,21,28,22],[28,23,28,25],[29,2,29,6],[29,7,29,15],[29,16,29,17],[29,18,29,20],[29,21,29,22],[31,23,31,25],[30,2,30,6],[30,7,30,15],[30,16,30,17],[30,18,30,20],[30,21,30,22],[30,23,30,25],[31,2,31,6],[31,7,31,15],[31,16,31,17],[31,18,31,20],[31,21,31,22],[32,2,32,6],[32,7,34,9],[32,16,32,17],[32,20,32,21],[32,23,32,24],[33,2,33,6],[33,16,33,20],[33,21,34,25],[34,2,34,6],[34,16,34,20]]}
[null,"提出書類一覧3"]
[null,"様式第九号（第三条関係）"]
[]
[]
[null,null,"実　務　経　験　証　明　書"]
[]
[null,null,{"$f":"IF(ISBLANK(共通情報入力表!D7),\"下記の者は、　　　　　　　工事に関し、下記のとおり実務の経験を有することに相違ないことを証明します。\",\"下記の者は、\"&共通情報入力表!D23&\"に関し、下記のとおり実務の経験を有することに相違ないことを証明します\")","v":"下記の者は、　　　　　　　工事に関し、下記のとおり実務の経験を有することに相違ないことを証明します。"}]
[]
[]
[null,null,null,null,null,null,null,null,null,null,null,null,null,null,null,null,null,null,{"$f":"IF(ISBLANK(共通情報入力表!D16),\"　　年　　月　　日\",共通情報入力表!D16)","v":"　　年　　月　　日"}]
[]
[null,null,null,null,null,null,null,null,null,null,null,null,null,null,null,"証明者",null,null,{"$f":"IF(ISBLANK(共通情報入力表!D21),\"\",共通情報入力表!D21)","v":""}]
[null,null,null,null,null,null,null,null,null,null,null,null,null,null,null,null,null,null,{"$f":"IF(ISBLANK(共通情報入力表!D17),\"\",共通情報入力表!D17)","v":""}]
[]
[null,null,null,null,null,null,null,null,null,null,null,null,null,null,null,null,null,null,{"$f":"IF(ISBLANK(共通情報入力表!D19),\"\",共通情報入力表!D19)","v":""},null,null,null,null,null,null,"㊞"]
[]
[]
[null,null,"技術者の氏名",null,null,null,null,{"$f":"IF(ISBLANK(共通情報入力表!D28),\"\",共通情報入力表!D28)","v":""},null,null,null,"生年月日",null,null,null,null,null,null,"使用され　　　た期間",null,null,null,null,null,null,"から"]
[null,null,"使用者の商号又名称",null,null,null,null,{"$f":"IF(ISBLANK(共通情報入力表!D17),\"\",共通情報入力表!D17)","v":""},null,null,null,null,null,null,null,null,null,null,null,null,null,"現在まで"]
[null,null,"最終学歴",null,null,null,null,null,null,null,"年",null,"月",null,null,null,"国家資格",null,null,{"$f":"IF(ISBLANK(共通情報入力表!D29),\"\",共通情報入力表!D29)","v":""}]
[null,null,null,null,null,null,null,null,null,null,null,null,null,"卒業",null,null,"技能検定"]
[null,null,"職　　名",null,null,null,null,"実 務 経 験 の 内 容",null,null,null,null,null,null,null,null,"実 務 経 験 年 数"]
[null,null,null,null,null,null,null,"省略",null,null,null,null,null,null,null,null,"年",null,"月から",null,null,"年",null,"月迄"]
[null,null,null,null,null,null,null,null,null,null,null,null,null,null,null,null,"年",null,"月から",null,null,"年",null,"月迄"]
[null,null,null,null,null,null,null,null,null,null,null,null,null,null,null,null,"年",null,"月から",null,null,"年",null,"月迄"]
[null,null,null,null,null,null,null,null,null,null,null,null,null,null,null,null,"年",null,"月から",null,null,"年",null,"月迄"]
[null,null,null,null,null,null,null,null,null,null,null,null,null,null,null,null,"年",null,"月から",null,null,"年",null,"月迄"]
[null,null,null,null,null,null,null,null,null,null,null,null,null,null,null,null,"年",null,"月から",null,null,"年",null,"月迄"]
[null,null,null,null,null,null,null,null,null,null,null,null,null,null,null,null,"年",null,"月から",null,null,"年",null,"月迄"]
[null,null,null,null,null,null,null,null,null,null,null,null,null,null,null,null,"年",null,"月から",null,null,"年",null,"月迄"]
[null,null,null,null,null,null,null,null,null,null,null,null,null,null,null,null,"年",null,"月から",null,null,"年",null,"月迄"]
[null,null,null,null,null,null,null,null,null,null,null,null,null,null,null,null,"年",null,"月から",null,null,"年",null,"月迄"]
[null,null," 使用者の証明を",null,null,null,null,"その理由",null,null,null,null,null,null,null,null,"合計",null,null,"満",null,null,"年",null,null,"月"]
[null,null," 得ることができ",null,null,null,null,null,null,null,null,null,null,null,null,null," 証明者と被証明者",null,null,null,null,"社長と社員"]
[null,null," ない場合",null,null,null,null,null,null,null,null,null,null,null,null,null," との関係"]
[]
[]
[null,null,"※","　国家資格を有している場合は、資格の写しを添付することにより、最終学歴、職名、"]
[null,null,null,"実務経験の内容、実務経験年数の記入は　省略できます。"]
[null,null,"※","　技能検定２級を有している場合は、１年以上の実務経験が必要です。"]
[null,null,"※","　使用された期間は、現在、雇用している場合は「現在まで」に修正する必要があります。"]

{"sheet":"3.実務経験（実務経験）・二次","index":8,"n_rows":38,"n_cols":26,"rows_kept":38,"cut":false,"hidden":false,"merged":[[1,20,1,25],[4,2,4,25],[9,15,9,16],[9,18,9,24],[11,15,11,16],[11,18,11,25],[12,18,13,24],[14,18,14,24],[6,2,7,25],[17,2,17,6],[17,7,17,10],[17,11,17,13],[17,14,17,17],[17,18,18,20],[17,21,17,24],[18,2,18,6],[18,7,18,17],[18,21,18,25],[19,2,19,6],[19,7,19,15],[19,16,19,25],[20,2,20,6],[20,7,20,15],[20,16,20,17],[20,18,20,20],[20,21,20,22],[20,23,20,25],[22,2,22,6],[22,7,22,15],[22,16,22,17],[22,18,22,20],[22,21,22,22],[22,23,22,25],[21,2,21,6],[21,7,21,15],[21,16,21,17],[21,18,21,20],[21,21,21,22],[21,23,21,25],[24,2,24,6],[24,7,24,15],[24,16,24,17],[24,18,24,20],[24,21,24,22],[24,23,24,25],[23,2,23,6],[23,7,23,15],[23,16,23,17],[23,18,23,20],[23,21,23,22],[23,23,23,25],[26,2,26,6],[26,7,26,15],[26,16,26,17],[26,18,26,20],[26,21,26,22],[26,23,26,25],[25,2,25,6],[25,7,25,15],[25,16,25,17],[25,18,25,20],[25,21,25,22],[25,23,25,25],[28,2,28,6],[28,7,28,15],[28,16,28,17],[28,18,28,20],[28,21,28,22],[28,23,28,25],[27,2,27,6],[27,7,27,15],[27,16,27,17],[27,18,27,20],[27,21,27,22],[27,23,27,25],[30,2,30,6],[30,7,30,15],[30,16,30,17],[30,18,30,20],[30,21,30,22],[30,23,30,25],[29,2,29,6],[29,7,29,15],[29,16,29,17],[29,18,29,20],[29,21,29,22],[29,23,29,25],[32,2,32,6],[32,7,32,15],[32,16,32,17],[32,18,32,20],[32,21,32,22],[32,23,32,25],[31,2,31,6],[31,7,31,15],[31,16,31,17],[31,18,31,20],[31,21,31,22],[31,23,31,25],[34,2,34,6],[34,7,34,15],[34,16,34,17],[34,18,34,20],[34,21,34,22],[34,23,34,25],[33,2,33,6],[33,7,33,15],[33,16,33,17],[33,18,33,20],[33,21,33,22],[33,23,33,25],[35,2,35,6],[35,7,37,9],[35,16,35,17],[35,20,35,21],[35,23,35,24],[36,2,36,6],[36,16,36,20],[36,21,37,25],[37,2,37,6],[37,16,37,20]]}
[]
[null,"様式第九号（第三条関係）"]
[]
[]
[null,null,"実　務　経　験　証　明　書"]
[]
[null,null,{"$f":"IF(ISBLANK(共通情報入力表!D7),\"下記の者は、　　　　　　　工事に関し、下記のとおり実務の経験を有することに相違ないことを証明します。\",\"下記の者は、\"&共通情報入力表!D41&\"に関し、下記のとおり実務の経験を有することに相違ないことを証明します\")","v":"下記の者は、　　　　　　　工事に関し、下記のとおり実務の経験を有することに相違ないことを証明します。"}]
[]
[]
[null,null,null,null,null,null,null,null,null,null,null,null,null,null,null,null,null,null,{"$f":"IF(ISBLANK(共通情報入力表!D34),\"　　年　　月　　日\",共通情報入力表!D34)","v":"　　年　　月　　日"}]
[]
[null,null,null,null,null,null,null,null,null,null,null,null,null,null,null,"証明者",null,null,{"$f":"IF(ISBLANK(共通情報入力表!D35),\"\",共通情報入力表!D39)","v":""}]
[null,null,null,null,null,null,null,null,null,null,null,null,null,null,null,null,null,null,{"$f":"IF(ISBLANK(共通情報入力表!D35),\"\",共通情報入力表!D35)","v":""}]
[]
[null,null,null,null,null,null,null,null,null,null,null,null,null,null,null,null,null,null,{"$f":"IF(ISBLANK(共通情報入力表!D35),\"\",共通情報入力表!D37)","v":""},null,null,null,null,null,null,"㊞"]
[]
[]
[null,null,"技術者の氏名",null,null,null,null,{"$f":"IF(ISBLANK(共通情報入力表!D46),\"\",共通情報入力表!D46)","v":""},null,null,null,"生年月日",null,null,null,null,null,null,"使用され　　　た期間",null,null,null,null,null,null,"から"]
[null,null,"使用者の商号又名称",null,null,null,null,{"$f":"IF(ISBLANK(共通情報入力表!D35),\"\",共通情報入力表!D35)","v":""},null,null,null,null,null,null,null,null,null,null,null,null,null,"現在まで"]
[null,null,"職　　名",null,null,null,null,"実 務 経 験 の 内 容",null,null,null,null,null,null,null,null,"実 務 経 験 年 数"]
[null,null,null,null,null,null,null,"省略",null,null,null,null,null,null,null,null,"年",null,"月から",null,null,"年",null,"月迄"]
[null,null,null,null,null,null,null,null,null,null,null,null,null,null,null,null,"年",null,"月から",null,null,"年",null,"月迄"]
[null,null,null,null,null,null,null,null,null,null,null,null,null,null,null,null,"年",null,"月から",null,null,"年",null,"月迄"]
[null,null,null,null,null,null,null,null,null,null,null,null,null,null,null,null,"年",null,"月から",null,null,"年",null,"月迄"]
[null,null,null,null,null,null,null,null,null,null,null,null,null,null,null,null,"年",null,"月から",null,null,"年",null,"月迄"]
[null,null,null,null,null,null,null,null,null,null,null,null,null,null,null,null,"年",null,"月から",null,null,"年",null,"月迄"]
[null,null,null,null,null,null,null,null,null,null,null,null,null,null,null,null,"年",null,"月から",null,null,"年",null,"月迄"]
[null,null,null,null,null,null,null,null,null,null,null,null,null,null,null,null,"年",null,"月から",null,null,"年",null,"月迄"]
[null,null,null,null,null,null,null,null,null,null,null,null,null,null,null,null,"年",null,"月から",null,null,"年",null,"月迄"]
[null,null,null,null,null,null,null,null,null,null,null,null,null,null,null,null,"年",null,"月から",null,null,"年",null,"月迄"]
[null,null,null,null,null,null,null,null,null,null,null,null,null,null,null,null,"年",null,"月から",null,null,"年",null,"月迄"]
[null,null,null,null,null,null,null,null,null,null,null,null,null,null,null,null,"年",null,"月から",null,null,"年",null,"月迄"]
[null,null,null,null,null,null,null,null,null,null,null,null,null,null,null,null,"年",null,"月から",null,null,"年",null,"月迄"]
[null,null,null,null,null,null,null,null,null,null,null,null,null,null,null,null,"年",null,"月から",null,null,"年",null,"月迄"]
[null,null,null,null,null,null,null,null,null,null,null,null,null,null,null,null,"年",null,"月から",null,null,"年",null,"月迄"]
[null,null," 使用者の証明を",null,null,null,null,"その理由",null,null,null,null,null,null,null,null,"合計",null,null,"満",null,null,"年",null,null,"月"]
[null,null," 得ることができ",null,null,null,null,null,null,null,null,null,null,null,null,null," 証明者と被証明者",null,null,null,null,"社長と社員"]
[null,null," ない場合",null,null,null,null,null,null,null,null,null,null,null,null,null," との関係"]

{"sheet":"3.実務経験（国家資格）・二次","index":9,"n_rows":41,"n_cols":26,"rows_kept":41,"cut":false,"hidden":false,"merged":[[11,15,11,16],[11,18,11,25],[1,20,1,25],[4,2,4,25],[9,15,9,16],[9,18,9,24],[6,2,7,25],[12,18,13,24],[14,18,14,24],[17,2,17,6],[17,7,17,10],[17,11,17,13],[17,14,17,17],[17,18,18,20],[17,21,17,24],[18,2,18,6],[18,7,18,17],[18,21,18,25],[19,2,20,6],[19,7,19,8],[19,16,19,18],[19,19,19,25],[20,7,20,12],[20,13,20,15],[20,16,20,18],[20,19,20,25],[23,23,23,25],[21,2,21,6],[21,7,21,15],[21,16,21,25],[22,2,22,6],[22,7,22,15],[22,16,22,17],[22,18,22,20],[22,21,22,22],[22,23,22,25],[23,2,23,6],[23,7,23,15],[23,16,23,17],[23,18,23,20],[23,21,23,22],[25,23,25,25],[24,2,24,6],[24,7,24,15],[24,16,24,17],[24,18,24,20],[24,21,24,22],[24,23,24,25],[25,2,25,6],[25,7,25,15],[25,16,25,17],[25,18,25,20],[25,21,25,22],[27,23,27,25],[26,2,26,6],[26,7,26,15],[26,16,26,17],[26,18,26,20],[26,21,26,22],[26,23,26,25],[27,2,27,6],[27,7,27,15],[27,16,27,17],[27,18,27,20],[27,21,27,22],[29,23,29,25],[28,2,28,6],[28,7,28,15],[28,16,28,17],[28,18,28,20],[28,21,28,22],[28,23,28,25],[29,2,29,6],[29,7,29,15],[29,16,29,17],[29,18,29,20],[29,21,29,22],[31,23,31,25],[30,2,30,6],[30,7,30,15],[30,16,30,17],[30,18,30,20],[30,21,30,22],[30,23,30,25],[31,2,31,6],[31,7,31,15],[31,16,31,17],[31,18,31,20],[31,21,31,22],[32,2,32,6],[32,7,34,9],[32,16,32,17],[32,20,32,21],[32,23,32,24],[33,2,33,6],[33,16,33,20],[33,21,34,25],[34,2,34,6],[34,16,34,20]]}
[]
[null,"様式第九号（第三条関係）"]
[]
[]
[null,null,"実　務　経　験　証　明　書"]
[]
[null,null,{"$f":"IF(ISBLANK(共通情報入力表!D7),\"下記の者は、　　　　　　　工事に関し、下記のとおり実務の経験を有することに相違ないことを証明します。\",\"下記の者は、\"&共通情報入力表!D41&\"に関し、下記のとおり実務の経験を有することに相違ないことを証明します\")","v":"下記の者は、　　　　　　　工事に関し、下記のとおり実務の経験を有することに相違ないことを証明します。"}]
[]
[]
[null,null,null,null,null,null,null,null,null,null,null,null,null,null,null,null,null,null,{"$f":"IF(ISBLANK(共通情報入力表!D34),\"　　年　　月　　日\",共通情報入力表!D34)","v":"　　年　　月　　日"}]
[]
[null,null,null,null,null,null,null,null,null,null,null,null,null,null,null,"証明者",null,null,{"$f":"IF(ISBLANK(共通情報入力表!D35),\"\",共通情報入力表!D39)","v":""}]
[null,null,null,null,null,null,null,null,null,null,null,null,null,null,null,null,null,null,{"$f":"IF(ISBLANK(共通情報入力表!D35),\"\",共通情報入力表!D35)","v":""}]
[]
[null,null,null,null,null,null,null,null,null,null,null,null,null,null,null,null,null,null,{"$f":"IF(ISBLANK(共通情報入力表!D35),\"\",共通情報入力表!D37)","v":""},null,null,null,null,null,null,"㊞"]
[]
[]
[null,null,"技術者の氏名",null,null,null,null,{"$f":"IF(ISBLANK(共通情報入力表!D46),\"\",共通情報入力表!D46)","v":""},null,null,null,"生年月日",null,null,null,null,null,null,"使用され　　　た期間",null,null,null,null,null,null,"から"]
[null,null,"使用者の商号又名称",null,null,null,null,{"$f":"IF(ISBLANK(共通情報入力表!D35),\"\",共通情報入力表!D35)","v":""},null,null,null,null,null,null,null,null,null,null,null,null,null,"現在まで"]
[null,null,"最終学歴",null,null,null,null,null,null,null,"年",null,"月",null,null,null,"国家資格",null,null,{"$f":"IF(ISBLANK(共通情報入力表!D47),\"\",共通情報入力表!D47)","v":""}]
[null,null,null,null,null,null,null,null,null,null,null,null,null,"卒業",null,null,"技能検定"]
[null,null,"職　　名",null,null,null,null,"実 務 経 験 の 内 容",null,null,null,null,null,null,null,null,"実 務 経 験 年 数"]
[null,null,null,null,null,null,null,"省略",null,null,null,null,null,null,null,null,"年",null,"月から",null,null,"年",null,"月迄"]
[null,null,null,null,null,null,null,null,null,null,null,null,null,null,null,null,"年",null,"月から",null,null,"年",null,"月迄"]
[null,null,null,null,null,null,null,null,null,null,null,null,null,null,null,null,"年",null,"月から",null,null,"年",null,"月迄"]
[null,null,null,null,null,null,null,null,null,null,null,null,null,null,null,null,"年",null,"月から",null,null,"年",null,"月迄"]
[null,null,null,null,null,null,null,null,null,null,null,null,null,null,null,null,"年",null,"月から",null,null,"年",null,"月迄"]
[null,null,null,null,null,null,null,null,null,null,null,null,null,null,null,null,"年",null,"月から",null,null,"年",null,"月迄"]
[null,null,null,null,null,null,null,null,null,null,null,null,null,null,null,null,"年",null,"月から",null,null,"年",null,"月迄"]
[null,null,null,null,null,null,null,null,null,null,null,null,null,null,null,null,"年",null,"月から",null,null,"年",null,"月迄"]
[null,null,null,null,null,null,null,null,null,null,null,null,null,null,null,null,"年",null,"月から",null,null,"年",null,"月迄"]
[null,null,null,null,null,null,null,null,null,null,null,null,null,null,null,null,"年",null,"月から",null,null,"年",null,"月迄"]
[null,null," 使用者の証明を",null,null,null,null,"その理由",null,null,null,null,null,null,null,null,"合計",null,null,"満",null,null,"年",null,null,"月"]
[null,null," 得ることができ",null,null,null,null,null,null,null,null,null,null,null,null,null," 証明者と被証明者",null,null,null,null,"社長と社員"]
[null,null," ない場合",null,null,null,null,null,null,null,null,null,null,null,null,null," との関係"]
[]
[]
[null,null,"※","　国家資格を有している場合は、資格の写しを添付することにより、最終学歴、職名、"]
[null,null,null,"実務経験の内容、実務経験年数の記入は　省略できます。"]
[null,null,"※","　技能検定２級を有している場合は、１年以上の実務経験が必要です。"]
[null,null,"※","　使用された期間は、現在、雇用している場合は「現在まで」に修正する必要があります。"]

{"sheet":"4.再下請通知書・一次","index":10,"n_rows":58,"n_cols":80,"rows_kept":58,"cut":false,"hidden":false,"merged":[[44,1,45,9],[44,10,45,20],[25,29,25,41],[0,2,0,3],[22,68,23,68],[22,69,23,72],[22,73,23,73],[22,51,23,57],[22,58,23,60],[36,53,37,63],[36,65,37,73],[31,72,32,78],[25,76,26,84],[27,76,28,84],[22,61,22,65],[22,75,23,84],[23,61,23,65],[36,74,37,84],[31,79,32,84],[37,14,38,23],[37,24,38,32],[37,33,38,41],[38,44,39,52],[38,65,39,73],[52,1,53,9],[52,24,53,30],[52,31,53,41],[52,10,52,12],[53,10,53,12],[47,59,49,65],[52,13,53,20],[50,3,51,9],[50,10,51,20],[50,22,51,30],[50,31,51,41],[54,3,55,9],[54,10,55,20],[54,24,55,30],[54,31,55,41],[57,1,59,8],[57,9,59,15],[57,16,59,22],[57,23,59,29],[57,30,59,35],[57,36,59,41],[47,66,49,72],[47,73,49,78],[47,79,49,84],[48,1,49,9],[48,10,49,20],[48,22,49,30],[48,31,49,41],[46,3,47,9],[46,10,47,20],[46,22,47,30],[46,31,47,41],[47,44,49,51],[47,52,49,58],[44,22,45,30],[44,31,45,41],[44,67,45,73],[44,74,45,84],[40,53,41,63],[40,65,41,73],[40,74,41,84],[41,14,42,20],[41,21,42,28],[41,29,42,35],[41,36,42,41],[42,67,43,73],[42,74,43,84],[39,8,42,13],[39,14,40,20],[39,21,40,28],[39,29,40,35],[39,36,40,41],[40,46,41,52],[35,2,42,6],[35,9,38,12],[38,53,38,55],[34,53,35,63],[34,44,35,52],[34,65,35,73],[34,74,35,84],[35,14,36,23],[35,24,36,32],[35,33,36,41],[36,46,37,52],[38,56,39,63],[39,53,39,55],[32,18,32,22],[32,32,33,41],[33,18,33,22],[32,23,33,24],[32,25,33,25],[32,26,33,29],[38,74,39,84],[29,72,30,78],[29,79,30,84],[30,18,30,22],[30,32,31,41],[31,18,31,22],[31,57,32,63],[31,64,32,71],[30,23,31,24],[30,25,31,25],[30,30,31,30],[30,26,31,29],[28,2,33,6],[28,8,29,17],[28,18,29,31],[28,32,29,41],[29,51,32,56],[29,57,30,63],[32,30,33,30],[25,57,26,66],[25,67,26,75],[27,57,28,66],[27,67,28,75],[24,2,26,6],[24,23,26,27],[25,45,32,49],[25,52,28,55],[30,8,31,14],[32,8,33,14],[24,8,24,9],[26,8,26,9],[24,10,24,21],[26,10,26,21],[30,15,31,17],[32,15,33,17],[29,64,30,71],[18,61,19,74],[18,75,19,84],[19,2,20,41],[20,61,20,65],[20,75,21,84],[21,2,23,6],[21,61,21,65],[16,24,16,27],[16,29,16,41],[18,24,18,27],[18,29,18,41],[18,45,23,49],[18,51,19,60],[21,8,22,41],[23,8,23,41],[20,58,21,60],[16,51,16,52],[16,53,16,64],[20,51,21,57],[20,66,21,67],[20,68,21,68],[20,69,21,72],[20,73,21,73],[22,66,23,67],[11,45,13,49],[12,29,12,41],[13,2,16,6],[13,8,16,21],[14,29,14,41],[14,45,16,49],[14,66,16,70],[14,72,16,84],[8,23,8,31],[8,45,10,49],[8,51,9,84],[9,2,10,6],[10,7,10,21],[10,24,10,27],[10,29,10,41],[10,51,10,84],[11,51,12,84],[13,51,13,84],[14,51,15,52],[14,53,15,64],[1,51,1,84],[3,1,4,41],[3,44,4,54],[4,55,4,84],[5,45,7,49],[5,51,7,64],[5,66,7,70],[5,72,7,84],[6,2,7,6],[1,32,1,41],[6,8,7,20],[1,1,1,3]]}
[]
[null,null,null,null,null,null,null,null,null,null,null,null,null,null,null,null,null,null,null,null,null,null,null,null,null,null,null,null,null,null,null,null,{"$f":"IF(ISBLANK(共通情報入力表!D16),\" 　年　月　日\",共通情報入力表!D16)","v":" 　年　月　日"}]
[]
[null,"再下請負通知書",null,null,null,null,null,null,null,null,null,null,null,null,null,null,null,null,null,null,null,null,null,null,null,null,null,null,null,null,null,null,null,null,null,null,null,null,null,null,null,null,null,null,"《再下請負関係》"]
[null,null,null,null,null,null,null,null,null,null,null,null,null,null,null,null,null,null,null,null,null,null,null,null,null,null,null,null,null,null,null,null,null,null,null,null,null,null,null,null,null,null,null,null,null,null,null,null,null,null,null,null,null,null,null,"再下請負業者及び再下請負契約関係について次のとおり報告いたします。"]
[null,null,null,null,null,null,null,null,null,null,null,null,null,null,null,null,null,null,null,null,null,null,null,null,null,null,null,null,null,null,null,null,null,null,null,null,null,null,null,null,null,null,null,null,null,"会社名\n・事業者ID",null,null,null,null,null,{"$f":"IF(ISBLANK(共通情報入力表!D35),\"\",共通情報入力表!D35)&IF(ISBLANK(共通情報入力表!D36),\"\",CHAR(10)&共通情報入力表!D36)","v":""},null,null,null,null,null,null,null,null,null,null,null,null,null,null,"代表者名",null,null,null,null,null,{"$f":"IF(ISBLANK(共通情報入力表!D37),\"\",共通情報入力表!D37)","v":""}]
[null,null,"直近上位\n注文者名",null,null,null,null,null,{"$f":"IF(ISBLANK(共通情報入力表!D5),\"\",共通情報入力表!D5)","v":""}]
[]
[null,null,null,null,null,null,null,null,null,null,null,null,null,null,null,null,null,null,null,null,null,null,null,"【報告下請負業者】",null,null,null,null,null,null,null,null,null,null,null,null,null,null,null,null,null,null,null,null,null,"住所\n電話番号",null,null,null,null,null,{"$f":"IF(ISBLANK(共通情報入力表!D38),\"\",\"〒\"&共通情報入力表!D38)&IF(ISBLANK(共通情報入力表!D39),\"\",CHAR(10)&共通情報入力表!D39)","v":""}]
[]
[null,null,null,null,null,null,null,null,null,null,null,null,null,null,null,null,null,null,null,null,null,null,null,null,"住所",null,null,null,null,{"$f":"IF(ISBLANK(共通情報入力表!D20),\"\",\"〒\"&共通情報入力表!D20)","v":""},null,null,null,null,null,null,null,null,null,null,null,null,null,null,null,null,null,null,null,null,null,{"$f":"IF(ISBLANK(共通情報入力表!D40),\"\",共通情報入力表!D40)","v":""}]
[null,null,null,null,null,null,null,null,null,null,null,null,null,null,null,null,null,null,null,null,null,null,null,null,null,null,null,null,null,null,null,null,null,null,null,null,null,null,null,null,null,null,null,null,null,"工事名称\n及び\n工事内容",null,null,null,null,null,{"$f":"IF(ISBLANK(共通情報入力表!D41),\"\",共通情報入力表!D41)","v":""}]
[null,null,null,null,null,null,null,null,null,null,null,null,null,null,null,null,null,null,null,null,null,null,null,null,null,null,null,null,null,{"$f":"IF(ISBLANK(共通情報入力表!D21),\"\",共通情報入力表!D21)","v":""}]
[null,null,"元請名称・事業者ID",null,null,null,null,null,{"$f":"IF(ISBLANK(共通情報入力表!D5),\"\",共通情報入力表!D5)&IF(ISBLANK(共通情報入力表!D6),\"\",CHAR(10)&共通情報入力表!D6)","v":""}]
[null,null,null,null,null,null,null,null,null,null,null,null,null,null,null,null,null,null,null,null,null,null,null,null,null,null,null,null,null,{"$f":"IF(ISBLANK(共通情報入力表!D22),\"\",共通情報入力表!D22)","v":""},null,null,null,null,null,null,null,null,null,null,null,null,null,null,null,"工期",null,null,null,null,null,"自",null,{"$f":"IF(ISBLANK(共通情報入力表!D42),\"　年　月　日\",共通情報入力表!D42)","v":"　年　月　日"},null,null,null,null,null,null,null,null,null,null,null,null,"契約日",null,null,null,null,null,{"$f":"IF(ISBLANK(共通情報入力表!D44),\"　年　月　日\",共通情報入力表!D44)","v":"　年　月　日"}]
[]
[null,null,null,null,null,null,null,null,null,null,null,null,null,null,null,null,null,null,null,null,null,null,null,null,"会社名・事業者ID",null,null,null,null,{"$f":"IF(ISBLANK(共通情報入力表!D17),\"\",共通情報入力表!D17)&IF(ISBLANK(共通情報入力表!D18),\"\",CHAR(10)&共通情報入力表!D18)","v":""},null,null,null,null,null,null,null,null,null,null,null,null,null,null,null,null,null,null,null,null,null,"至",null,{"$f":"IF(ISBLANK(共通情報入力表!D43),\"　年　月　日\",共通情報入力表!D43)","v":"　年　月　日"}]
[]
[null,null,null,null,null,null,null,null,null,null,null,null,null,null,null,null,null,null,null,null,null,null,null,null,"代表者名",null,null,null,null,{"$f":"IF(ISBLANK(共通情報入力表!D19),\"\",共通情報入力表!D19)","v":""},null,null,null,null,null,null,null,null,null,null,null,null,null,null,null,"建設業の\n許可",null,null,null,null,null,"施工に必要な許可業種",null,null,null,null,null,null,null,null,null,"許　可　番　号",null,null,null,null,null,null,null,null,null,null,null,null,null,"許可（更新）年月日"]
[null,null,"《自社に関する事項》"]
[null,null,null,null,null,null,null,null,null,null,null,null,null,null,null,null,null,null,null,null,null,null,null,null,null,null,null,null,null,null,null,null,null,null,null,null,null,null,null,null,null,null,null,null,null,null,null,null,null,null,null,null,null,null,null,null,null,null,"工事業",null,null,"大臣　特定",null,null,null,null,null,null,"第",null,null,null,null,"号",null,"　　    年　 月 　日"]
[null,null,"工事名称\n及び\n工事内容",null,null,null,null,null,{"$f":"IF(ISBLANK(共通情報入力表!D23),\"\",共通情報入力表!D23)","v":""},null,null,null,null,null,null,null,null,null,null,null,null,null,null,null,null,null,null,null,null,null,null,null,null,null,null,null,null,null,null,null,null,null,null,null,null,null,null,null,null,null,null,null,null,null,null,null,null,null,null,null,null,"知事　一般"]
[null,null,null,null,null,null,null,null,null,null,null,null,null,null,null,null,null,null,null,null,null,null,null,null,null,null,null,null,null,null,null,null,null,null,null,null,null,null,null,null,null,null,null,null,null,null,null,null,null,null,null,null,null,null,null,null,null,null,"工事業",null,null,"大臣　特定",null,null,null,null,null,null,"第",null,null,null,null,"号",null,"　　    年　 月 　日"]
[null,null,null,null,null,null,null,null,null,null,null,null,null,null,null,null,null,null,null,null,null,null,null,null,null,null,null,null,null,null,null,null,null,null,null,null,null,null,null,null,null,null,null,null,null,null,null,null,null,null,null,null,null,null,null,null,null,null,null,null,null,"知事　一般"]
[null,null,"工期",null,null,null,null,null,"自",null,{"$f":"IF(ISBLANK(共通情報入力表!D24),\"　年　月　日\",共通情報入力表!D24)","v":"　年　月　日"},null,null,null,null,null,null,null,null,null,null,null,null,"注文者との\n契約日"]
[null,null,null,null,null,null,null,null,null,null,null,null,null,null,null,null,null,null,null,null,null,null,null,null,null,null,null,null,null,{"$f":"IF(ISBLANK(共通情報入力表!D26),\"　年　月　日\",共通情報入力表!D26)","v":"　年　月　日"},null,null,null,null,null,null,null,null,null,null,null,null,null,null,null,"健康保険等の加入状況",null,null,null,null,null,"　","保険加入の有無",null,null,null,null,"健康保険",null,null,null,null,null,null,null,null,null,"厚生年金保険",null,null,null,null,null,null,null,null,"雇用保険"]
[null,null,null,null,null,null,null,null,"至",null,{"$f":"IF(ISBLANK(共通情報入力表!D25),\"　年　月　日\",共通情報入力表!D25)","v":"　年　月　日"}]
[null,null,null,null,null,null,null,null,null,null,null,null,null,null,null,null,null,null,null,null,null,null,null,null,null,null,null,null,null,null,null,null,null,null,null,null,null,null,null,null,null,null,null,null,null,null,null,null,null,null,null,null,null,null,null,null,null,"加入　　未加入\n適用除外",null,null,null,null,null,null,null,null,null,"加入　　未加入\n適用除外",null,null,null,null,null,null,null,null,"加入　　未加入\n適用除外"]
[null,null,"建設業の\n許可",null,null,null,null,null,"施工に必要な許可業種",null,null,null,null,null,null,null,null,null,"許　可　番　号",null,null,null,null,null,null,null,null,null,null,null,null,null,"許可（更新）年月日"]
[null,null,null,null,null,null,null,null,null,null,null,null,null,null,null,null,null,null,null,null,null,null,null,null,null,null,null,null,null,null,null,null,null,null,null,null,null,null,null,null,null,null,null,null,null,null,null,null,null,null,null,"事業所\n整理記号等",null,null,null,null,null,"営業所の名称",null,null,null,null,null,null,"健康保険",null,null,null,null,null,null,null,"厚生年金保険",null,null,null,null,null,null,"雇用保険"]
[null,null,null,null,null,null,null,null,null,null,null,null,null,null,null,"工事業",null,null,"大臣　特定",null,null,null,null,null,null,"第",null,null,null,null,"号",null,"　　年　　月　　日"]
[null,null,null,null,null,null,null,null,null,null,null,null,null,null,null,null,null,null,"知事　一般"]
[null,null,null,null,null,null,null,null,null,null,null,null,null,null,null,"工事業",null,null,"大臣　特定",null,null,null,null,null,null,"第",null,null,null,null,"号",null,"　　年　　月　　日"]
[null,null,null,null,null,null,null,null,null,null,null,null,null,null,null,null,null,null,"知事　一般"]
[null,null,null,null,null,null,null,null,null,null,null,null,null,null,null,null,null,null,null,null,null,null,null,null,null,null,null,null,null,null,null,null,null,null,null,null,null,null,null,null,null,null,null,null,"現場代理人名",null,null,null,null,null,null,null,null,{"$f":"IF(ISBLANK(共通情報入力表!D45),\"\",共通情報入力表!D45)","v":""},null,null,null,null,null,null,null,null,null,null,null,"安全衛生責任者名",null,null,null,null,null,null,null,null,{"$f":"IF(ISBLANK(共通情報入力表!D48),\"\",共通情報入力表!D48)","v":""}]
[null,null,"健康保険等の加入状況",null,null,null,null,null,"　","保険加入の有無",null,null,null,null,"健康保険",null,null,null,null,null,null,null,null,null,"厚生年金保険",null,null,null,null,null,null,null,null,"雇用保険"]
[null,null,null,null,null,null,null,null,null,null,null,null,null,null,null,null,null,null,null,null,null,null,null,null,null,null,null,null,null,null,null,null,null,null,null,null,null,null,null,null,null,null,null,null,null,null,"権限及び\n意見申出方法",null,null,null,null,null,null,"工事請負契約書記載のとおり\n書面による",null,null,null,null,null,null,null,null,null,null,null,"安全衛生推進者名",null,null,null,null,null,null,null,null,{"$f":"IF(ISBLANK(共通情報入力表!D49),\"\",共通情報入力表!D49)","v":""}]
[null,null,null,null,null,null,null,null,null,null,null,null,null,null,"加入　　未加入\n適用除外",null,null,null,null,null,null,null,null,null,"加入　　未加入\n適用除外",null,null,null,null,null,null,null,null,"加入　　未加入\n適用除外"]
[null,null,null,null,null,null,null,null,null,null,null,null,null,null,null,null,null,null,null,null,null,null,null,null,null,null,null,null,null,null,null,null,null,null,null,null,null,null,null,null,null,null,null,null,"主任技術者名",null,null,null,null,null,null,null,null,"専　任",null,null,{"$f":"IF(ISBLANK(共通情報入力表!D46),\"\",共通情報入力表!D46)","v":""},null,null,null,null,null,null,null,null,"雇用管理責任者名",null,null,null,null,null,null,null,null,{"$f":"IF(ISBLANK(共通情報入力表!D50),\"\",共通情報入力表!D50)","v":""}]
[null,null,null,null,null,null,null,null,"事業所\n整理記号等",null,null,null,null,null,"営業所の名称",null,null,null,null,null,null,"健康保険",null,null,null,null,null,null,null,"厚生年金保険",null,null,null,null,null,null,"雇用保険",null,null,null,null,null,null,null,null,null,null,null,null,null,null,null,null,"非専任"]
[null,null,null,null,null,null,null,null,null,null,null,null,null,null,null,null,null,null,null,null,null,null,null,null,null,null,null,null,null,null,null,null,null,null,null,null,null,null,null,null,null,null,null,null,null,null,"資格内容",null,null,null,null,null,null,{"$f":"IF(ISBLANK(共通情報入力表!D47),\"\",共通情報入力表!D47)","v":""},null,null,null,null,null,null,null,null,null,null,null,"専門技術者名"]
[]
[null,null,null,null,null,null,null,null,null,null,null,null,null,null,null,null,null,null,null,null,null,null,null,null,null,null,null,null,null,null,null,null,null,null,null,null,null,null,null,null,null,null,null,null,null,null,null,null,null,null,null,null,null,null,null,null,null,null,null,null,null,null,null,null,null,null,null,"資格内容"]
[]
[null,"監督員名",null,null,null,null,null,null,null,null,null,null,null,null,null,null,null,null,null,null,null,null,"安全衛生責任者名",null,null,null,null,null,null,null,null,{"$f":"IF(ISBLANK(共通情報入力表!D30),\"\",共通情報入力表!D30)","v":""},null,null,null,null,null,null,null,null,null,null,null,null,null,null,null,null,null,null,null,null,null,null,null,null,null,null,null,null,null,null,null,null,null,null,null,"担当工事内容"]
[]
[null,null,null,"権限及び\n意見申出方法",null,null,null,null,null,null,null,null,null,null,null,null,null,null,null,null,null,null,"安全衛生推進者名",null,null,null,null,null,null,null,null,{"$f":"IF(ISBLANK(共通情報入力表!D31),\"\",共通情報入力表!D31)","v":""}]
[null,null,null,null,null,null,null,null,null,null,null,null,null,null,null,null,null,null,null,null,null,null,null,null,null,null,null,null,null,null,null,null,null,null,null,null,null,null,null,null,null,null,null,null,"一号特定技能外国人の従事の状況（有無）",null,null,null,null,null,null,null,"有　　無",null,null,null,null,null,null,"外国人建設就労者の従事の状況(有無)",null,null,null,null,null,null,"有　　無",null,null,null,null,null,null,"外国人技能実習生の従事の状況(有無)",null,null,null,null,null,"有　　無"]
[null,"現場代理人名",null,null,null,null,null,null,null,null,{"$f":"IF(ISBLANK(共通情報入力表!D27),\"\",共通情報入力表!D27)","v":""},null,null,null,null,null,null,null,null,null,null,null,"雇用管理責任者名",null,null,null,null,null,null,null,null,{"$f":"IF(ISBLANK(共通情報入力表!D32),\"\",共通情報入力表!D32)","v":""}]
[]
[null,null,null,"権限及び\n意見申出方法",null,null,null,null,null,null,"工事請負契約書記載のとおり\n書面による",null,null,null,null,null,null,null,null,null,null,null,"専門技術者名"]
[]
[null,"主任技術者名",null,null,null,null,null,null,null,null,"専　任",null,null,{"$f":"IF(ISBLANK(共通情報入力表!D28),\"\",共通情報入力表!D28)","v":""},null,null,null,null,null,null,null,null,null,null,"資格内容"]
[null,null,null,null,null,null,null,null,null,null,"非専任"]
[null,null,null,"資格内容",null,null,null,null,null,null,{"$f":"IF(ISBLANK(共通情報入力表!D29),\"\",共通情報入力表!D29)","v":""},null,null,null,null,null,null,null,null,null,null,null,null,null,"担当工事内容"]
[]
[]
[null,"一号特定技能外国人の従事の状況（有無）",null,null,null,null,null,null,null,"有　　無",null,null,null,null,null,null,"外国人建設就労者の従事の状況(有無)",null,null,null,null,null,null,"有　　無",null,null,null,null,null,null,"外国人技能実習生の従事の状況(有無)",null,null,null,null,null,"有　　無"]

{"sheet":"4.再下請通知・二次","index":11,"n_rows":58,"n_cols":80,"rows_kept":58,"cut":false,"hidden":false,"merged":[[11,29,11,41],[13,29,13,41],[9,29,9,41],[44,1,45,9],[44,10,45,20],[44,22,45,30],[50,3,51,9],[50,10,51,20],[50,22,51,30],[50,31,51,41],[46,3,47,9],[46,10,47,20],[46,22,47,30],[46,31,47,41],[32,18,32,22],[32,23,33,24],[24,2,26,6],[24,8,24,9],[24,10,24,21],[24,23,26,27],[33,18,33,22],[28,2,33,6],[26,8,26,9],[35,2,42,6],[52,1,53,9],[52,10,52,12],[52,13,53,20],[52,24,53,30],[52,31,53,41],[53,10,53,12],[48,1,49,9],[48,10,49,20],[48,22,49,30],[48,31,49,41],[54,3,55,9],[54,10,55,20],[54,24,55,30],[54,31,55,41],[57,1,59,8],[57,9,59,15],[57,16,59,22],[57,23,59,29],[57,30,59,35],[57,36,59,41],[44,74,45,84],[40,65,41,73],[40,74,41,84],[47,44,49,51],[41,14,42,20],[41,21,42,28],[41,29,42,35],[41,36,42,41],[42,67,43,73],[42,74,43,84],[47,59,49,65],[47,66,49,72],[47,73,49,78],[47,79,49,84],[47,52,49,58],[39,14,40,20],[39,21,40,28],[39,29,40,35],[39,36,40,41],[39,53,39,55],[40,46,41,52],[40,53,41,63],[44,31,45,41],[44,67,45,73],[35,9,38,12],[35,14,36,23],[35,24,36,32],[35,33,36,41],[36,46,37,52],[36,53,37,63],[36,65,37,73],[36,74,37,84],[37,14,38,23],[37,24,38,32],[37,33,38,41],[38,44,39,52],[38,53,38,55],[38,56,39,63],[38,65,39,73],[38,74,39,84],[39,8,42,13],[34,44,35,52],[34,53,35,63],[34,65,35,73],[34,74,35,84],[22,68,23,68],[22,69,23,72],[22,73,23,73],[22,75,23,84],[29,79,30,84],[27,76,28,84],[31,79,32,84],[30,26,31,29],[30,30,31,30],[29,51,32,56],[29,57,30,63],[30,32,31,41],[31,57,32,63],[32,32,33,41],[25,45,32,49],[25,52,28,55],[25,57,26,66],[31,64,32,71],[29,64,30,71],[25,29,25,41],[30,8,31,14],[30,15,31,17],[30,18,30,22],[30,23,31,24],[30,25,31,25],[26,10,26,21],[27,57,28,66],[27,67,28,75],[28,8,29,17],[28,18,29,31],[28,32,29,41],[25,67,26,75],[31,72,32,78],[32,8,33,14],[32,15,33,17],[31,18,31,22],[32,25,33,25],[29,72,30,78],[32,26,33,29],[32,30,33,30],[25,76,26,84],[18,24,18,27],[18,29,18,41],[18,45,23,49],[18,51,19,60],[18,61,19,74],[18,75,19,84],[19,2,20,41],[20,51,21,57],[20,58,21,60],[20,61,20,65],[20,66,21,67],[20,68,21,68],[20,69,21,72],[20,73,21,73],[20,75,21,84],[21,2,23,6],[21,8,22,41],[21,61,21,65],[22,51,23,57],[22,58,23,60],[22,61,22,65],[22,66,23,67],[23,8,23,41],[23,61,23,65],[13,2,16,6],[13,8,16,21],[13,51,13,84],[14,29,14,41],[14,45,16,49],[14,51,15,52],[14,53,15,64],[8,23,8,31],[8,45,10,49],[8,51,9,84],[9,2,10,6],[10,7,10,21],[10,24,10,27],[10,29,10,41],[10,51,10,84],[14,66,16,70],[14,72,16,84],[16,24,16,27],[16,29,16,41],[16,51,16,52],[16,53,16,64],[11,45,13,49],[11,51,12,84],[12,29,12,41],[1,32,1,41],[1,51,1,84],[3,1,4,41],[3,44,4,54],[4,55,4,84],[5,45,7,49],[5,51,7,64],[5,66,7,70],[5,72,7,84],[6,2,7,6],[6,8,7,20]]}
[]
[null,null,null,null,null,null,null,null,null,null,null,null,null,null,null,null,null,null,null,null,null,null,null,null,null,null,null,null,null,null,null,null,{"$f":"IF(ISBLANK(共通情報入力表!D34),\" 　年　月　日\",共通情報入力表!D34)","v":" 　年　月　日"}]
[]
[null,"再下請負通知書",null,null,null,null,null,null,null,null,null,null,null,null,null,null,null,null,null,null,null,null,null,null,null,null,null,null,null,null,null,null,null,null,null,null,null,null,null,null,null,null,null,null,"《再下請負関係》"]
[null,null,null,null,null,null,null,null,null,null,null,null,null,null,null,null,null,null,null,null,null,null,null,null,null,null,null,null,null,null,null,null,null,null,null,null,null,null,null,null,null,null,null,null,null,null,null,null,null,null,null,null,null,null,null,"再下請負業者及び再下請負契約関係について次のとおり報告いたします。"]
[null,null,null,null,null,null,null,null,null,null,null,null,null,null,null,null,null,null,null,null,null,null,null,null,null,null,null,null,null,null,null,null,null,null,null,null,null,null,null,null,null,null,null,null,null,"会社名\n・事業者ID",null,null,null,null,null,null,null,null,null,null,null,null,null,null,null,null,null,null,null,null,"代表者名"]
[null,null,"直近上位\n注文者名",null,null,null,null,null,{"$f":"IF(ISBLANK(共通情報入力表!D17),\"\",共通情報入力表!D17)","v":""}]
[]
[null,null,null,null,null,null,null,null,null,null,null,null,null,null,null,null,null,null,null,null,null,null,null,"【報告下請負業者】",null,null,null,null,null,null,null,null,null,null,null,null,null,null,null,null,null,null,null,null,null,"住所\n電話番号"]
[]
[null,null,null,null,null,null,null,null,null,null,null,null,null,null,null,null,null,null,null,null,null,null,null,null,"住所",null,null,null,null,{"$f":"IF(ISBLANK(共通情報入力表!D38),\"\",\"〒\"&共通情報入力表!D38)","v":""}]
[null,null,null,null,null,null,null,null,null,null,null,null,null,null,null,null,null,null,null,null,null,null,null,null,null,null,null,null,null,null,null,null,null,null,null,null,null,null,null,null,null,null,null,null,null,"工事名称\n及び\n工事内容"]
[null,null,null,null,null,null,null,null,null,null,null,null,null,null,null,null,null,null,null,null,null,null,null,null,null,null,null,null,null,{"$f":"IF(ISBLANK(共通情報入力表!D39),\"\",共通情報入力表!D39)","v":""}]
[null,null,"元請名称・事業者ID",null,null,null,null,null,{"$f":"IF(ISBLANK(共通情報入力表!D5),\"\",共通情報入力表!D5)&IF(ISBLANK(共通情報入力表!D6),\"\",CHAR(10)&共通情報入力表!D6)","v":""}]
[null,null,null,null,null,null,null,null,null,null,null,null,null,null,null,null,null,null,null,null,null,null,null,null,null,null,null,null,null,{"$f":"IF(ISBLANK(共通情報入力表!D40),\"\",共通情報入力表!D40)","v":""},null,null,null,null,null,null,null,null,null,null,null,null,null,null,null,"工期",null,null,null,null,null,"自",null,null,null,null,null,null,null,null,null,null,null,null,null,null,"契約日",null,null,null,null,null,"年　　　月　　　日　"]
[]
[null,null,null,null,null,null,null,null,null,null,null,null,null,null,null,null,null,null,null,null,null,null,null,null,"会社名・事業者ID",null,null,null,null,{"$f":"IF(ISBLANK(共通情報入力表!D35),\"\",共通情報入力表!D35)&IF(ISBLANK(共通情報入力表!D36),\"\",CHAR(10)&共通情報入力表!D36)","v":""},null,null,null,null,null,null,null,null,null,null,null,null,null,null,null,null,null,null,null,null,null,"至"]
[]
[null,null,null,null,null,null,null,null,null,null,null,null,null,null,null,null,null,null,null,null,null,null,null,null,"代表者名",null,null,null,null,{"$f":"IF(ISBLANK(共通情報入力表!D37),\"\",共通情報入力表!D37)","v":""},null,null,null,null,null,null,null,null,null,null,null,null,null,null,null,"建設業の\n許可",null,null,null,null,null,"施工に必要な許可業種",null,null,null,null,null,null,null,null,null,"許　可　番　号",null,null,null,null,null,null,null,null,null,null,null,null,null,"許可（更新）年月日"]
[null,null,"《自社に関する事項》"]
[null,null,null,null,null,null,null,null,null,null,null,null,null,null,null,null,null,null,null,null,null,null,null,null,null,null,null,null,null,null,null,null,null,null,null,null,null,null,null,null,null,null,null,null,null,null,null,null,null,null,null,null,null,null,null,null,null,null,"工事業",null,null,"大臣　特定",null,null,null,null,null,null,"第",null,null,null,null,"号",null,"　　年　　月　　日"]
[null,null,"工事名称\n及び\n工事内容",null,null,null,null,null,{"$f":"IF(ISBLANK(共通情報入力表!D41),\"\",共通情報入力表!D41)","v":""},null,null,null,null,null,null,null,null,null,null,null,null,null,null,null,null,null,null,null,null,null,null,null,null,null,null,null,null,null,null,null,null,null,null,null,null,null,null,null,null,null,null,null,null,null,null,null,null,null,null,null,null,"知事　一般"]
[null,null,null,null,null,null,null,null,null,null,null,null,null,null,null,null,null,null,null,null,null,null,null,null,null,null,null,null,null,null,null,null,null,null,null,null,null,null,null,null,null,null,null,null,null,null,null,null,null,null,null,null,null,null,null,null,null,null,"工事業",null,null,"大臣　特定",null,null,null,null,null,null,"第",null,null,null,null,"号",null,"　　年　　月　　日"]
[null,null,null,null,null,null,null,null,null,null,null,null,null,null,null,null,null,null,null,null,null,null,null,null,null,null,null,null,null,null,null,null,null,null,null,null,null,null,null,null,null,null,null,null,null,null,null,null,null,null,null,null,null,null,null,null,null,null,null,null,null,"知事　一般"]
[null,null,"工期",null,null,null,null,null,"自",null,{"$f":"IF(ISBLANK(共通情報入力表!D42),\"　年　月　日\",共通情報入力表!D42)","v":"　年　月　日"},null,null,null,null,null,null,null,null,null,null,null,null,"注文者との\n契約日"]
[null,null,null,null,null,null,null,null,null,null,null,null,null,null,null,null,null,null,null,null,null,null,null,null,null,null,null,null,null,{"$f":"IF(ISBLANK(共通情報入力表!D44),\"　年　月　日\",共通情報入力表!D44)","v":"　年　月　日"},null,null,null,null,null,null,null,null,null,null,null,null,null,null,null,"健康保険等の加入状況",null,null,null,null,null,"　","保険加入の有無",null,null,null,null,"健康保険",null,null,null,null,null,null,null,null,null,"厚生年金保険",null,null,null,null,null,null,null,null,"雇用保険"]
[null,null,null,null,null,null,null,null,"至",null,{"$f":"IF(ISBLANK(共通情報入力表!D43),\"　年　月　日\",共通情報入力表!D43)","v":"　年　月　日"}]
[null,null,null,null,null,null,null,null,null,null,null,null,null,null,null,null,null,null,null,null,null,null,null,null,null,null,null,null,null,null,null,null,null,null,null,null,null,null,null,null,null,null,null,null,null,null,null,null,null,null,null,null,null,null,null,null,null,"加入　　未加入\n適用除外",null,null,null,null,null,null,null,null,null,"加入　　未加入\n適用除外",null,null,null,null,null,null,null,null,"加入　　未加入\n適用除外"]
[null,null,"建設業の\n許可",null,null,null,null,null,"施工に必要な許可業種",null,null,null,null,null,null,null,null,null,"許　可　番　号",null,null,null,null,null,null,null,null,null,null,null,null,null,"許可（更新）年月日"]
[null,null,null,null,null,null,null,null,null,null,null,null,null,null,null,null,null,null,null,null,null,null,null,null,null,null,null,null,null,null,null,null,null,null,null,null,null,null,null,null,null,null,null,null,null,null,null,null,null,null,null,"事業所\n整理記号等",null,null,null,null,null,"営業所の名称",null,null,null,null,null,null,"健康保険",null,null,null,null,null,null,null,"厚生年金保険",null,null,null,null,null,null,"雇用保険"]
[null,null,null,null,null,null,null,null,null,null,null,null,null,null,null,"工事業",null,null,"大臣　特定",null,null,null,null,null,null,"第",null,null,null,null,"号",null,"　　年　　月　　日"]
[null,null,null,null,null,null,null,null,null,null,null,null,null,null,null,null,null,null,"知事　一般"]
[null,null,null,null,null,null,null,null,null,null,null,null,null,null,null,"工事業",null,null,"大臣　特定",null,null,null,null,null,null,"第",null,null,null,null,"号",null,"　　年　　月　　日"]
[null,null,null,null,null,null,null,null,null,null,null,null,null,null,null,null,null,null,"知事　一般"]
[null,null,null,null,null,null,null,null,null,null,null,null,null,null,null,null,null,null,null,null,null,null,null,null,null,null,null,null,null,null,null,null,null,null,null,null,null,null,null,null,null,null,null,null,"現場代理人名",null,null,null,null,null,null,null,null,null,null,null,null,null,null,null,null,null,null,null,null,"安全衛生責任者名"]
[null,null,"健康保険等の加入状況",null,null,null,null,null,"　","保険加入の有無",null,null,null,null,"健康保険",null,null,null,null,null,null,null,null,null,"厚生年金保険",null,null,null,null,null,null,null,null,"雇用保険"]
[null,null,null,null,null,null,null,null,null,null,null,null,null,null,null,null,null,null,null,null,null,null,null,null,null,null,null,null,null,null,null,null,null,null,null,null,null,null,null,null,null,null,null,null,null,null,"権限及び\n意見申出方法",null,null,null,null,null,null,"工事請負契約書記載のとおり\n書面による",null,null,null,null,null,null,null,null,null,null,null,"安全衛生推進者名"]
[null,null,null,null,null,null,null,null,null,null,null,null,null,null,"加入　　未加入\n適用除外",null,null,null,null,null,null,null,null,null,"加入　　未加入\n適用除外",null,null,null,null,null,null,null,null,"加入　　未加入\n適用除外"]
[null,null,null,null,null,null,null,null,null,null,null,null,null,null,null,null,null,null,null,null,null,null,null,null,null,null,null,null,null,null,null,null,null,null,null,null,null,null,null,null,null,null,null,null,"主任技術者名",null,null,null,null,null,null,null,null,"専　任",null,null,null,null,null,null,null,null,null,null,null,"雇用管理責任者名"]
[null,null,null,null,null,null,null,null,"事業所\n整理記号等",null,null,null,null,null,"営業所の名称",null,null,null,null,null,null,"健康保険",null,null,null,null,null,null,null,"厚生年金保険",null,null,null,null,null,null,"雇用保険",null,null,null,null,null,null,null,null,null,null,null,null,null,null,null,null,"非専任"]
[null,null,null,null,null,null,null,null,null,null,null,null,null,null,null,null,null,null,null,null,null,null,null,null,null,null,null,null,null,null,null,null,null,null,null,null,null,null,null,null,null,null,null,null,null,null,"資格内容",null,null,null,null,null,null,null,null,null,null,null,null,null,null,null,null,null,null,"専門技術者名"]
[]
[null,null,null,null,null,null,null,null,null,null,null,null,null,null,null,null,null,null,null,null,null,null,null,null,null,null,null,null,null,null,null,null,null,null,null,null,null,null,null,null,null,null,null,null,null,null,null,null,null,null,null,null,null,null,null,null,null,null,null,null,null,null,null,null,null,null,null,"資格内容"]
[]
[null,"監督員名",null,null,null,null,null,null,null,null,null,null,null,null,null,null,null,null,null,null,null,null,"安全衛生責任者名",null,null,null,null,null,null,null,null,{"$f":"IF(ISBLANK(共通情報入力表!D48),\"\",共通情報入力表!D48)","v":""},null,null,null,null,null,null,null,null,null,null,null,null,null,null,null,null,null,null,null,null,null,null,null,null,null,null,null,null,null,null,null,null,null,null,null,"担当工事内容"]
[]
[null,null,null,"権限及び\n意見申出方法",null,null,null,null,null,null,null,null,null,null,null,null,null,null,null,null,null,null,"安全衛生推進者名",null,null,null,null,null,null,null,null,{"$f":"IF(ISBLANK(共通情報入力表!D49),\"\",共通情報入力表!D49)","v":""}]
[null,null,null,null,null,null,null,null,null,null,null,null,null,null,null,null,null,null,null,null,null,null,null,null,null,null,null,null,null,null,null,null,null,null,null,null,null,null,null,null,null,null,null,null,"一号特定技能外国人の従事の状況（有無）",null,null,null,null,null,null,null,"有　　無",null,null,null,null,null,null,"外国人建設就労者の従事の状況(有無)",null,null,null,null,null,null,"有　　無",null,null,null,null,null,null,"外国人技能実習生の従事の状況(有無)",null,null,null,null,null,"有　　無"]
[null,"現場代理人名",null,null,null,null,null,null,null,null,{"$f":"IF(ISBLANK(共通情報入力表!D45),\"\",共通情報入力表!D45)","v":""},null,null,null,null,null,null,null,null,null,null,null,"雇用管理責任者名",null,null,null,null,null,null,null,null,{"$f":"IF(ISBLANK(共通情報入力表!D50),\"\",共通情報入力表!D50)","v":""}]
[]
[null,null,null,"権限及び\n意見申出方法",null,null,null,null,null,null,"工事請負契約書記載のとおり\n書面による",null,null,null,null,null,null,null,null,null,null,null,"専門技術者名"]
[]
[null,"主任技術者名",null,null,null,null,null,null,null,null,"専　任",null,null,{"$f":"IF(ISBLANK(共通情報入力表!D46),\"\",共通情報入力表!D46)","v":""},null,null,null,null,null,null,null,null,null,null,"資格内容"]
[null,null,null,null,null,null,null,null,null,null,"非専任"]
[null,null,null,"資格内容",null,null,null,null,null,null,{"$f":"IF(ISBLANK(共通情報入力表!D47),\"\",共通情報入力表!D47)","v":""},null,null,null,null,null,null,null,null,null,null,null,null,null,"担当工事内容"]
[]
[]
[null,"一号特定技能外国人の従事の状況（有無）",null,null,null,null,null,null,null,"有　　無",null,null,null,null,null,null,"外国人建設就労者の従事の状況(有無)",null,null,null,null,null,null,"有　　無",null,null,null,null,null,null,"外国人技能実習生の従事の状況(有無)",null,null,null,null,null,"有　　無"]

{"sheet":"5.外国人建設就労者入場届出書","index":12,"n_rows":50,"n_cols":24,"rows_kept":50,"cut":false,"hidden":false,"merged":[[27,9,27,14],[27,16,27,21],[27,23,27,28],[32,1,32,7],[30,8,32,14],[30,15,32,21],[30,22,32,28],[1,1,1,9],[3,1,3,28],[12,1,12,28],[6,22,6,28],[19,8,19,14],[19,15,19,21],[19,22,19,28],[4,1,5,10],[6,18,6,21],[7,22,7,28],[8,22,8,28],[9,22,9,28],[5,23,5,28],[14,8,14,28],[15,8,15,28]]}
[]
[null,"全建統一様式第１号-甲-別紙"]
[]
[null,"　外国人建設就労者建設現場入場届出書　"]
[null,{"$f":"IF(ISBLANK(共通情報入力表!D7),\"\",共通情報入力表!D7)","v":""}]
[null,null,null,null,null,null,null,null,null,null,null,"作業所長殿",null,null,null,null,null,null,null,null,null,null,null," 年　 月 　日"]
[null,null,null,null,null,null,null,null,null,null,null,null,null,null,null,null,null,null,"会社名（一次）",null,null,null,{"$f":"IF(ISBLANK(共通情報入力表!D17),\"\",共通情報入力表!D17)","v":""}]
[null,null,null,null,null,null,null,null,null,null,null,null,null,null,null,null,null,null,"代表者名",null,null,null,{"$f":"IF(ISBLANK(共通情報入力表!D19),\"\",共通情報入力表!D19)","v":""}]
[null,null,null,null,null,null,null,null,null,null,null,null,null,null,null,null,null,null,"会 社 名"]
[null,null,null,null,null,null,null,null,null,null,null,null,null,null,null,null,null,null,"代表者名"]
[]
[null,"　外国人建設就労者等の建設現場への入場について下記のとおり届出ます。"]
[null,"記"]
[null,1,"建設工事に関する事項"]
[null," 建設工事の名称",null,null,null,null,null,null,{"$f":"IF(ISBLANK(共通情報入力表!D7),\"\",共通情報入力表!D7)","v":""}]
[null," 施工場所"]
[]
[null,2,"建設現場への入場を届け出る外国人建設就労者等に関する事項"]
[null," ※　4名以上の入場を申請する場合、必要に応じて欄の追加や別紙とする等対応すること。"]
[null,null,null,null,null,null,null,null,"外国人建設就労者等1",null,null,null,null,null,null,"外国人建設就労者等2",null,null,null,null,null,null,"外国人建設就労者等3"]
[null," 氏名"]
[null," 生年月日"]
[null," 性別"]
[null," 国籍"]
[null," 従事させる業務"]
[]
[null," 現場入場の期間"]
[null," 在留資格",null,null,null,null,null,null,"□","特定活動(外国人建設就労者)",null,null,null,null,null,"□","特定活動(外国人建設就労者)",null,null,null,null,null,"□","特定活動(外国人建設就労者)"]
[null," ※いずれかをチェック",null,null,null,null,null,null,"□","特定技能",null,null,null,null,null,"□","特定技能",null,null,null,null,null,"□","特定技能"]
[null," 在留期間満了日"]
[null," CCUS登録情報が最新",null,null,null,null,null,null,"□確認済　　　　　　　　(確認日：　　　　　)",null,null,null,null,null,null,"□確認済　　　　　　　　(確認日：　　　　　)",null,null,null,null,null,null,"□確認済　　　　　　　　(確認日：　　　　　)"]
[null," であることの確認"]
[null," ※登録義務のある者のみ"]
[]
[null,3,"受入企業・建設特定技能受入計画及び適正監理計画に関する事項"]
[null," 就労場所"]
[null," 従事させる業務の内容"]
[null," 従事させる期間（計画期間）"]
[null," 責任者(連絡窓口)",null,null,null,null,null,null,null,null," 役職",null,null,null,null,null,"氏名",null,null,null,null,null,"連絡先"]
[null," ※","就労場所・従事させる業務の内容・従事させる期間については、建設特定技能受入計画及び"]
[null,null,"適正監理計画の記載内容を正確に転機すること。"]
[]
[null,"○","添付書類"]
[null,null,"提出にあたっては下記に該当するものの写し各1部を添付すること"]
[null,null,1,"建設特定技能受入計画認定証又は適正監理計画認定証(複数ある場合にはすべて。建設特定技能受"]
[null,null,"　入計画認定証については別紙(建設特定技能受入計画に関する事項)も含む。)"]
[null,null,2,"パスポート(国籍、氏名等と在留許可のある部分)"]
[null,null,3,"在留カード"]
[null,null,4,"受入企業と外国人建設就労者との間の雇用条件書"]
[null,null,5,"建設キャリアアップシステムカード(登録義務のある者のみ)"]

{"sheet":"6.下請業者編成表","index":13,"n_rows":57,"n_cols":27,"rows_kept":57,"cut":false,"hidden":false,"merged":[[50,26,50,29],[46,22,46,25],[48,22,48,25],[48,26,48,29],[51,1,51,2],[51,3,51,9],[51,11,51,12],[51,13,51,19],[51,21,51,22],[51,23,51,29],[49,23,49,25],[49,26,49,29],[50,22,50,25],[15,11,15,15],[15,17,15,21],[49,1,50,1],[49,3,49,5],[49,6,49,9],[49,11,50,11],[49,13,49,15],[49,16,49,19],[49,21,50,21],[50,2,50,5],[50,6,50,9],[50,12,50,15],[50,16,50,19],[39,1,39,2],[39,3,39,9],[39,11,39,12],[39,13,39,19],[39,21,39,22],[36,2,36,5],[36,6,36,9],[36,12,36,15],[36,16,36,19],[36,22,36,25],[35,12,35,15],[39,23,39,29],[43,1,48,1],[43,11,48,11],[43,12,43,15],[43,16,43,19],[43,21,48,21],[44,2,44,5],[44,12,44,15],[44,22,44,25],[45,2,45,5],[45,6,45,9],[45,12,45,15],[45,16,45,19],[45,22,45,25],[45,26,45,29],[46,2,46,5],[46,6,46,9],[46,12,46,15],[46,16,46,19],[37,1,38,1],[37,3,37,5],[37,6,37,9],[37,11,38,11],[37,13,37,15],[37,16,37,19],[37,21,38,21],[37,23,37,25],[37,26,37,29],[38,2,38,5],[38,6,38,9],[38,12,38,15],[38,16,38,19],[38,22,38,25],[38,26,38,29],[32,22,32,25],[32,26,32,29],[33,2,33,5],[33,6,33,9],[33,12,33,15],[33,16,33,19],[33,22,33,25],[33,26,33,29],[35,16,35,19],[35,22,35,25],[35,26,35,29],[31,11,36,11],[31,12,31,15],[31,16,31,19],[31,21,36,21],[31,22,31,25],[31,26,31,29],[36,26,36,29],[31,2,31,5],[31,6,31,9],[34,16,34,19],[34,22,34,25],[34,26,34,29],[35,2,35,5],[34,2,34,5],[34,6,34,9],[34,12,34,15],[21,12,21,15],[21,16,21,19],[25,11,26,11],[26,12,26,15],[26,16,26,19],[19,21,24,21],[27,1,27,2],[25,16,25,19],[21,2,21,5],[20,6,20,9],[21,6,21,9],[20,16,20,19],[32,2,32,5],[32,6,32,9],[32,12,32,15],[32,16,32,19],[31,1,36,1],[35,6,35,9],[19,11,24,11],[20,12,20,15],[19,6,19,9],[25,21,26,21],[26,22,26,25],[26,26,26,29],[30,3,30,7],[30,13,30,17],[30,23,30,27],[27,3,27,9],[27,11,27,12],[27,13,27,19],[27,21,27,22],[27,23,27,29],[25,3,25,5],[25,6,25,9],[25,13,25,15],[26,2,26,5],[26,6,26,9],[7,10,7,14],[8,10,8,14],[13,10,13,14],[14,10,14,14],[7,15,7,21],[8,15,8,21],[13,15,13,21],[14,15,14,21],[13,9,14,9],[6,9,12,9],[53,1,53,3],[55,5,55,29],[53,5,54,29],[42,3,42,7],[42,13,42,17],[42,23,42,27],[43,22,43,25],[43,26,43,29],[43,2,43,5],[43,6,43,9],[44,6,44,9],[44,16,44,19],[44,26,44,29],[46,26,46,29],[47,2,47,5],[47,6,47,9],[47,12,47,15],[47,16,47,19],[47,22,47,25],[47,26,47,29],[48,2,48,5],[48,6,48,9],[48,12,48,15],[48,16,48,19],[19,12,19,15],[19,16,19,19],[19,22,19,25],[19,26,19,29],[22,2,22,5],[22,6,22,9],[22,12,22,15],[22,16,22,19],[22,22,22,25],[22,26,22,29],[21,22,21,25],[21,26,21,29],[24,12,24,15],[24,16,24,19],[23,2,23,5],[23,6,23,9],[23,12,23,15],[23,16,23,19],[20,2,20,5],[20,22,20,25],[20,26,20,29],[23,22,23,25],[23,26,23,29],[24,22,24,25],[24,26,24,29],[24,2,24,5],[24,6,24,9],[56,5,56,29],[1,1,1,7],[11,10,11,14],[11,15,11,21],[12,11,12,14],[12,15,12,21],[1,22,1,29],[2,10,2,20],[4,9,4,21],[15,9,15,10],[6,10,6,14],[6,15,6,21],[9,10,9,14],[9,15,9,21],[10,10,10,14],[10,15,10,21],[18,3,18,7],[18,13,18,17],[18,23,18,27],[19,2,19,5],[25,1,26,1],[19,1,24,1],[25,23,25,25],[25,26,25,29]]}
[]
[null,"全建統一様式第１号－乙",null,null,null,null,null,null,null,null,null,null,null,null,null,null,null,null,null,null,null,null,{"$f":"IF(ISBLANK(共通情報入力表!D16),\"令和 　年　月　日\",共通情報入力表!D16)","v":"令和 　年　月　日"}]
[null,null,null,null,null,null,null,null,null,null,"下請負業者編成表"]
[]
[null,null,null,null,null,null,null,null,null,"（一次下請負業者＝作成下請負業者）"]
[]
[null,null,null,null,null,null,null,null,null,null,"会　社　名",null,null,null,null,{"$f":"IF(ISBLANK(共通情報入力表!D17),\"\",共通情報入力表!D17)","v":""}]
[null,null,null,null,null,null,null,null,null,null,"代表者名",null,null,null,null,{"$f":"IF(ISBLANK(共通情報入力表!D19),\"\",共通情報入力表!D19)","v":""}]
[null,null,null,null,null,null,null,null,null,null,"建設業許可番号"]
[null,null,null,null,null,null,null,null,null,null,"安全衛生責任者",null,null,null,null,{"$f":"IF(ISBLANK(共通情報入力表!D30),\"\",共通情報入力表!D30)","v":""}]
[null,null,null,null,null,null,null,null,null,null,"主任技術者",null,null,null,null,{"$f":"IF(ISBLANK(共通情報入力表!D28),\"\",共通情報入力表!D28)","v":""}]
[null,null,null,null,null,null,null,null,null,null,"専門技術者"]
[null,null,null,null,null,null,null,null,null,null,null,"担当工事内容"]
[null,null,null,null,null,null,null,null,null,"工事","特定専門工事の有無",null,null,null,null,"有　・　無"]
[null,null,null,null,null,null,null,null,null,null,"登録基幹技能者"]
[null,null,null,null,null,null,null,null,null,"工期",null,{"$f":"IF(ISBLANK(共通情報入力表!D24),\"　年　月　日\",共通情報入力表!D24)","v":"　年　月　日"},null,null,null,null,"～",{"$f":"IF(ISBLANK(共通情報入力表!D25),\"　年　月　日\",共通情報入力表!D25)","v":"　年　月　日"}]
[]
[]
[null,null,null,"（二次下請負業者）",null,null,null,null,null,null,null,null,null,"（二次下請負業者）",null,null,null,null,null,null,null,null,null,"（二次下請負業者）"]
[null,null,"会　社　名",null,null,null,null,null,null,null,null,null,"会　社　名",null,null,null,null,null,null,null,null,null,"会　社　名"]
[null,null,"代表者名",null,null,null,null,null,null,null,null,null,"代表者名",null,null,null,null,null,null,null,null,null,"代表者名"]
[null,null,"建設業許可番号",null,null,null,null,null,null,null,null,null,"建設業許可番号",null,null,null,null,null,null,null,null,null,"建設業許可番号"]
[null,null,"安全衛生責任者",null,null,null,null,null,null,null,null,null,"安全衛生責任者",null,null,null,null,null,null,null,null,null,"安全衛生責任者"]
[null,null,"主任技術者",null,null,null,null,null,null,null,null,null,"主任技術者",null,null,null,null,null,null,null,null,null,"主任技術者"]
[null,null,"専門技術者",null,null,null,null,null,null,null,null,null,"専門技術者",null,null,null,null,null,null,null,null,null,"専門技術者"]
[null,"工事",null,"担当工事内容",null,null,null,null,null,null,null,"工事",null,"担当工事内容",null,null,null,null,null,null,null,"工事",null,"担当工事内容"]
[null,null,"特定専門工事の該当",null,null,null,"有 ・ 無",null,null,null,null,null,"特定専門工事の該当",null,null,null,"有 ・ 無",null,null,null,null,null,"特定専門工事の該当",null,null,null,"有 ・ 無"]
[null,"工期",null,"年　月　日～　年　月　日",null,null,null,null,null,null,null,"工期",null,"年　月　日～　年　月　日",null,null,null,null,null,null,null,"工期",null,"年　月　日～　年　月　日"]
[]
[]
[null,null,null,"（三次下請負業者）",null,null,null,null,null,null,null,null,null,"（三次下請負業者）",null,null,null,null,null,null,null,null,null,"（三次下請負業者）"]
[null,null,"会　社　名",null,null,null,null,null,null,null,null,null,"会　社　名",null,null,null,null,null,null,null,null,null,"会　社　名"]
[null,null,"代表者名",null,null,null,null,null,null,null,null,null,"代表者名",null,null,null,null,null,null,null,null,null,"代表者名"]
[null,null,"建設業許可番号",null,null,null,null,null,null,null,null,null,"建設業許可番号",null,null,null,null,null,null,null,null,null,"建設業許可番号"]
[null,null,"安全衛生責任者",null,null,null,null,null,null,null,null,null,"安全衛生責任者",null,null,null,null,null,null,null,null,null,"安全衛生責任者"]
[null,null,"主任技術者",null,null,null,null,null,null,null,null,null,"主任技術者",null,null,null,null,null,null,null,null,null,"主任技術者"]
[null,null,"専門技術者",null,null,null,null,null,null,null,null,null,"専門技術者",null,null,null,null,null,null,null,null,null,"専門技術者"]
[null,"工事",null,"担当工事内容",null,null,null,null,null,null,null,"工事",null,"担当工事内容",null,null,null,null,null,null,null,"工事",null,"担当工事内容"]
[null,null,"特定専門工事の該当",null,null,null,"有 ・ 無",null,null,null,null,null,"特定専門工事の該当",null,null,null,"有 ・ 無",null,null,null,null,null,"特定専門工事の該当",null,null,null,"有 ・ 無"]
[null,"工期",null,"年　月　日～　年　月　日",null,null,null,null,null,null,null,"工期",null,"年　月　日～　年　月　日",null,null,null,null,null,null,null,"工期",null,"年　月　日～　年　月　日"]
[]
[]
[null,null,null,"（四次下請負業者）",null,null,null,null,null,null,null,null,null,"（四次下請負業者）",null,null,null,null,null,null,null,null,null,"（四次下請負業者）"]
[null,null,"会　社　名",null,null,null,null,null,null,null,null,null,"会　社　名",null,null,null,null,null,null,null,null,null,"会　社　名"]
[null,null,"代表者名",null,null,null,null,null,null,null,null,null,"代表者名",null,null,null,null,null,null,null,null,null,"代表者名"]
[null,null,"建設業許可番号",null,null,null,null,null,null,null,null,null,"建設業許可番号",null,null,null,null,null,null,null,null,null,"建設業許可番号"]
[null,null,"安全衛生責任者",null,null,null,null,null,null,null,null,null,"安全衛生責任者",null,null,null,null,null,null,null,null,null,"安全衛生責任者"]
[null,null,"主任技術者",null,null,null,null,null,null,null,null,null,"主任技術者",null,null,null,null,null,null,null,null,null,"主任技術者"]
[null,null,"専門技術者",null,null,null,null,null,null,null,null,null,"専門技術者",null,null,null,null,null,null,null,null,null,"専門技術者"]
[null,"工事",null,"担当工事内容",null,null,null,null,null,null,null,"工事",null,"担当工事内容",null,null,null,null,null,null,null,"工事",null,"担当工事内容"]
[null,null,"特定専門工事の該当",null,null,null,"有 ・ 無",null,null,null,null,null,"特定専門工事の該当",null,null,null,"有 ・ 無",null,null,null,null,null,"特定専門工事の該当",null,null,null,"有 ・ 無"]
[null,"工期",null,"年　月　日～　年　月　日",null,null,null,null,null,null,null,"工期",null,"年　月　日～　年　月　日",null,null,null,null,null,null,null,"工期",null,"年　月　日～　年　月　日"]
[]
[null,"（記入要領）",null,null,1,"一次下請負業者は、二次下請負業者以下の業者から提出された「届出書」（様式1号－甲）に基づいて本表を作成の上、元請に届け出ること。"]
[]
[null,null,null,null,2,"この下請負業者編成表でまとめきれない場合には、本様式をコピーするなどして適宜使用すること。"]
[null,null,null,null,3,"二次下請負業者を使用しない場合は、この書類は提出不要。"]

{"sheet":"7.作業員名簿①(全建様式)","index":14,"n_rows":87,"n_cols":44,"rows_kept":87,"cut":false,"hidden":false,"merged":[[63,43,68,45],[69,43,74,45],[9,1,14,1],[9,4,14,4],[9,5,14,5],[1,1,1,3],[18,27,20,30],[60,27,62,30],[66,27,68,30],[72,27,74,30],[21,26,26,26],[24,27,26,30],[21,22,23,25],[24,22,26,25],[45,22,47,25],[48,22,50,25],[51,22,53,25],[54,22,56,25],[54,27,56,30],[5,1,5,2],[7,1,7,2],[6,1,6,2],[2,14,3,17],[4,15,4,16],[4,3,5,11],[6,3,6,11],[5,13,7,18],[15,1,20,1],[15,4,20,4],[15,5,20,5],[18,11,20,12],[18,13,20,13],[18,9,20,9],[18,7,20,8],[15,6,17,9],[15,2,16,3],[19,2,20,3],[17,2,18,3],[9,18,11,21],[12,18,14,21],[9,2,10,3],[11,2,12,3],[13,2,14,3],[9,6,11,9],[7,3,7,11],[12,6,14,9],[9,10,11,13],[12,10,14,13],[21,0,26,0],[21,1,26,1],[21,4,26,4],[21,5,26,5],[24,13,26,13],[24,9,26,9],[24,7,26,8],[21,6,23,9],[21,2,22,3],[25,2,26,3],[23,2,24,3],[24,11,26,12],[21,10,23,13],[27,37,32,38],[27,26,32,26],[30,11,32,12],[30,13,32,13],[30,27,32,30],[27,6,29,9],[27,18,29,21],[30,18,32,21],[27,22,29,25],[30,22,32,25],[30,7,32,8],[30,9,32,9],[27,14,29,17],[27,10,29,13],[33,0,38,0],[33,1,38,1],[33,4,38,4],[27,0,32,0],[27,1,32,1],[27,4,32,4],[27,5,32,5],[29,2,30,3],[27,35,32,36],[27,2,28,3],[31,2,32,3],[33,35,38,36],[36,9,38,9],[36,7,38,8],[33,6,35,9],[33,37,38,38],[42,11,44,12],[42,13,44,13],[33,26,38,26],[36,27,38,30],[42,27,44,30],[33,18,35,21],[36,18,38,21],[39,18,41,21],[42,18,44,21],[33,22,35,25],[36,22,38,25],[39,22,41,25],[42,22,44,25],[36,11,38,12],[36,13,38,13],[45,1,50,1],[45,4,50,4],[45,5,50,5],[48,9,50,9],[48,7,50,8],[48,32,50,32],[39,0,44,0],[39,1,44,1],[39,4,44,4],[39,5,44,5],[45,10,47,13],[42,9,44,9],[42,7,44,8],[39,6,41,9],[48,16,50,17],[45,26,50,26],[48,27,50,30],[69,0,74,0],[69,1,74,1],[69,4,74,4],[69,5,74,5],[71,2,72,3],[63,5,68,5],[65,2,66,3],[67,2,68,3],[51,26,56,26],[54,14,56,15],[54,16,56,17],[57,1,62,1],[57,4,62,4],[57,5,62,5],[60,11,62,12],[60,13,62,13],[57,18,59,21],[60,18,62,21],[51,1,56,1],[51,4,56,4],[51,5,56,5],[54,11,56,12],[54,13,56,13],[69,2,70,3],[73,2,74,3],[72,14,74,15],[72,16,74,17],[72,11,74,12],[72,13,74,13],[69,18,71,21],[69,6,71,9],[63,1,68,1],[63,4,68,4],[63,18,65,21],[66,11,68,12],[66,13,68,13],[69,26,74,26],[72,9,74,9],[72,7,74,8],[69,22,71,25],[72,22,74,25],[72,18,74,21],[69,14,71,17],[66,14,68,15],[66,16,68,17],[57,26,62,26],[66,22,68,25],[35,2,36,3],[41,2,42,3],[47,2,48,3],[53,2,54,3],[55,2,56,3],[57,2,58,3],[61,2,62,3],[63,2,64,3],[66,9,68,9],[66,7,68,8],[63,6,65,9],[33,5,38,5],[39,2,40,3],[43,2,44,3],[45,2,46,3],[49,2,50,3],[51,2,52,3],[33,2,34,3],[37,2,38,3],[59,2,60,3],[33,10,35,13],[39,10,41,13],[18,14,20,15],[18,16,20,17],[21,14,23,17],[15,10,17,13],[57,27,59,30],[63,27,65,30],[33,14,35,17],[39,14,41,17],[45,14,47,17],[51,14,53,17],[57,14,59,17],[63,14,65,17],[45,18,47,21],[48,18,50,21],[51,18,53,21],[54,18,56,21],[57,22,59,25],[60,22,62,25],[63,22,65,25],[63,26,68,26],[51,27,53,30],[66,18,68,21],[60,14,62,15],[60,16,62,17],[51,10,53,13],[57,10,59,13],[63,10,65,13],[69,10,71,13],[60,9,62,9],[60,7,62,8],[54,9,56,9],[54,7,56,8],[45,6,47,9],[51,6,53,9],[57,6,59,9],[48,11,50,12],[48,13,50,13],[1,37,2,45],[9,39,11,42],[12,39,14,42],[9,22,11,25],[12,22,14,25],[9,26,14,26],[9,27,11,30],[12,27,14,30],[9,31,10,31],[11,31,12,31],[13,31,14,31],[9,32,11,32],[12,32,14,32],[8,26,8,32],[1,35,1,36],[2,35,2,36],[6,26,6,28],[7,26,7,28],[6,29,6,32],[7,29,7,32],[21,43,26,45],[27,43,32,45],[33,43,38,45],[39,43,44,45],[45,43,50,45],[51,43,56,45],[57,43,62,45],[21,32,23,32],[9,14,11,17],[12,14,14,17],[15,26,20,26],[15,35,20,36],[15,37,20,38],[39,26,44,26],[39,35,44,36],[39,37,44,38],[15,22,17,25],[18,22,20,25],[21,37,26,38],[15,18,17,21],[18,18,20,21],[15,14,17,17],[21,18,23,21],[24,18,26,21],[15,43,20,45],[12,33,14,34],[15,33,20,34],[6,34,6,35],[7,34,7,35],[8,34,8,44],[6,36,6,45],[7,36,7,45],[9,33,11,38],[12,35,14,36],[12,37,14,38],[9,43,14,45],[24,32,26,32],[27,32,29,32],[30,32,32,32],[33,32,35,32],[36,32,38,32],[39,32,41,32],[42,32,44,32],[45,32,47,32],[72,39,74,42],[63,35,68,36],[63,37,68,38],[27,39,29,42],[30,39,32,42],[33,39,35,42],[36,39,38,42],[39,39,41,42],[21,35,26,36],[69,39,71,42],[24,39,26,42],[69,35,74,36],[69,37,74,38],[57,35,62,36],[57,37,62,38],[51,35,56,36],[51,37,56,38],[42,39,44,42],[45,39,47,42],[48,39,50,42],[51,39,53,42],[54,39,56,42],[57,39,59,42],[60,39,62,42],[51,32,53,32],[54,32,56,32],[57,32,59,32],[60,32,62,32],[45,35,50,36],[45,37,50,38],[69,27,71,30],[73,31,74,31],[69,31,70,31],[71,31,72,31],[27,27,29,30],[33,27,35,30],[39,27,41,30],[45,27,47,30],[63,33,68,34],[63,32,65,32],[59,31,60,31],[31,31,32,31],[33,31,34,31],[69,32,71,32],[72,32,74,32],[51,31,52,31],[53,31,54,31],[55,31,56,31],[39,33,44,34],[45,33,50,34],[51,33,56,34],[57,33,62,34],[69,33,74,34],[15,0,20,0],[45,0,50,0],[57,0,62,0],[63,0,68,0],[51,0,56,0],[57,31,58,31],[63,31,64,31],[65,31,66,31],[67,31,68,31],[15,27,17,30],[35,31,36,31],[15,31,16,31],[17,31,18,31],[19,31,20,31],[21,27,23,30],[24,14,26,15],[24,16,26,17],[30,14,32,15],[36,14,38,15],[36,16,38,17],[42,14,44,15],[42,16,44,17],[30,16,32,17],[48,14,50,15],[15,32,17,32],[18,32,20,32],[37,31,38,31],[39,31,40,31],[41,31,42,31],[63,39,65,42],[66,39,68,42],[15,39,17,42],[18,39,20,42],[21,39,23,42],[21,31,22,31],[23,31,24,31],[25,31,26,31],[27,31,28,31],[29,31,30,31],[61,31,62,31],[66,32,68,32],[43,31,44,31],[45,31,46,31],[47,31,48,31],[49,31,50,31],[21,33,26,34],[27,33,32,34],[33,33,38,34]]}
[]
[null,"全建統一様式第5号",null,null,null,null,null,null,null,null,null,null,null,null,null,null,null,null,null,null,null,null,null,null,null,null,null,null,null,null,null,null,null,null,null,"元請"]
[null,null,null,null,null,null,null,null,null,null,null,null,null,null,"作業員名簿",null,null,null,null,null,null,null,null,null,null,null,null,null,null,null,null,null,null,null,null,"確認欄"]
[]
[null,null,null,{"$f":"IF(ISBLANK(共通情報入力表!D7),\"\",共通情報入力表!D7)","v":""},null,null,null,null,null,null,null,null,null,null,"（",null,null,"作成）"]
[null,"事業所の名称",null,null,null,null,null,null,null,null,null,null,null,"本書面に記載した内容は、作業員名簿として、安全衛生管理や労働災害発生時の緊急連絡・対応のために元請負業者に提示することについて、記載者本人は同意しています。"]
[null,"現場ID",null,{"$f":"IF(ISBLANK(共通情報入力表!D8),\"\",共通情報入力表!D8)","v":""},null,null,null,null,null,null,null,null,null,null,null,null,null,null,null,null,null,null,null,null,null,null,"一次会社名・",null,null,{"$f":"IF(ISBLANK(共通情報入力表!D17),\"\",共通情報入力表!D17)","v":""},null,null,null,null,"(   次）会社名"]
[null,"所長名",null,{"$f":"IF(ISBLANK(共通情報入力表!D10),\"\",共通情報入力表!D10&\"　\"&\"殿\")","v":""},null,null,null,null,null,null,null,null,null,null,null,null,null,null,null,null,null,null,null,null,null,null,"事業者ID",null,null,{"$f":"IF(ISBLANK(共通情報入力表!D18),\"\",共通情報入力表!D18)","v":""},null,null,null,null,"事業者ID"]
[null,null,null,null,null,null,null,null,null,null,null,null,null,null,null,null,null,null,null,null,null,null,null,null,null,null,"［建設業退職金制度加入について　建退共・中退共・その他・無］",null,null,null,null,null,null,null,"［建設業退職金制度加入について　建退共・中退共・その他・無］"]
[null,"番号","ふりがな",null,"職種","※","雇入年月日",null,null,null,"生年月日",null,null,null,"現　 住 　所",null,null,null,"(TEL)",null,null,null,"最近の健康診断",null,null,null,"血液型","特殊健康診断日",null,null,null,"健康保険","建設業退職金共済制度","教　育・資　格・免　許",null,null,null,null,null,"入場年月日",null,null,null,"退職金共済手帳所有の有無"]
[]
[null,null,"氏　　　名",null,null,null,null,null,null,null,null,null,null,null,null,null,null,null,null,null,null,null,null,null,null,null,null,null,null,null,null,"年金保険"]
[null,null,null,null,null,null,"経験年数",null,null,null,"年齢",null,null,null,"家族連絡先",null,null,null,"(TEL)",null,null,null,"血圧",null,null,null,null,"種類",null,null,null,null,"中小企業退職金共済制度","雇入・職長　　特別教育",null,"技能講習",null,"免　　許",null,"受入教育　　　　　　　実施年月日"]
[null,null,"技能者ID",null,null,null,null,null,null,null,null,null,null,null,null,null,null,null,null,null,null,null,null,null,null,null,null,null,null,null,null,"雇用保険"]
[]
[null,null,null,null,null,null,null,null,null,null,null,null,null,null,null,null,null,null,null,null,null,null,null,null,null,null,null,"　 年　 月　 日",null,null,null,null,null,null,null,null,null,null,null,"　 年　 月　 日"]
[]
[]
[null,null,null,null,null,null,null,null,null,"年",null,null,null,"歳",{"$f":"IF(ISBLANK(A16),\"\",\"同上\")","v":""},null,{"$f":"IF(ISBLANK($A16),\"\",VLOOKUP($A16,[0]!作業員管理台帳,24))&IF(ISBLANK($A16),\"\",\"・\")&IF(ISBLANK($A16),\"\",VLOOKUP($A16,[0]!作業員管理台帳,25))","v":""},null,null,null,null,null,null,null,null,null,null,null,null,null,null,null,null,null,null,null,null,null,null,"　 年　 月　 日"]
[]
[]
[null,null,null,null,null,null,null,null,null,null,null,null,null,null,null,null,null,null,null,null,null,null,null,null,null,null,null,"　 年　 月　 日",null,null,null,null,null,null,null,null,null,null,null,"　 年　 月　 日"]
[]
[]
[null,null,null,null,null,null,null,null,null,"年",null,null,null,"歳",{"$f":"IF(ISBLANK(A22),\"\",\"同上\")","v":""},null,{"$f":"IF(ISBLANK($A22),\"\",VLOOKUP($A22,[0]!作業員管理台帳,24))&IF(ISBLANK($A22),\"\",\"・\")&IF(ISBLANK($A22),\"\",VLOOKUP($A22,[0]!作業員管理台帳,25))","v":""},null,null,null,null,null,null,null,null,null,null,null,null,null,null,null,null,null,null,null,null,null,null,"　 年　 月　 日"]
[]
[]
[null,null,null,null,null,null,null,null,null,null,null,null,null,null,null,null,null,null,null,null,null,null,null,null,null,null,null,"　 年　 月　 日",null,null,null,null,null,null,null,null,null,null,null,"　 年　 月　 日"]
[]
[]
[null,null,null,null,null,null,null,null,null,"年",null,null,null,"歳",{"$f":"IF(ISBLANK(A28),\"\",\"同上\")","v":""},null,{"$f":"IF(ISBLANK($A28),\"\",VLOOKUP($A28,[0]!作業員管理台帳,24))&IF(ISBLANK($A28),\"\",\"・\")&IF(ISBLANK($A28),\"\",VLOOKUP($A28,[0]!作業員管理台帳,25))","v":""},null,null,null,null,null,null,null,null,null,null,null,null,null,null,null,null,null,null,null,null,null,null,"　 年　 月　 日"]
[]
[]
[null,null,null,null,null,null,null,null,null,null,null,null,null,null,null,null,null,null,null,null,null,null,null,null,null,null,null,"　 年　 月　 日",null,null,null,null,null,null,null,null,null,null,null,"　 年　 月　 日"]
[]
[]
[null,null,null,null,null,null,null,null,null,"年",null,null,null,"歳",{"$f":"IF(ISBLANK(A34),\"\",\"同上\")","v":""},null,{"$f":"IF(ISBLANK($A34),\"\",VLOOKUP($A34,[0]!作業員管理台帳,24))&IF(ISBLANK($A34),\"\",\"・\")&IF(ISBLANK($A34),\"\",VLOOKUP($A34,[0]!作業員管理台帳,25))","v":""},null,null,null,null,null,null,null,null,null,null,null,null,null,null,null,null,null,null,null,null,null,null,"　 年　 月　 日"]
[]
[]
[null,null,null,null,null,null,null,null,null,null,null,null,null,null,null,null,null,null,null,null,null,null,null,null,null,null,null,"　 年　 月　 日",null,null,null,null,null,null,null,null,null,null,null,"　 年　 月　 日"]
[]
[]
[null,null,null,null,null,null,null,null,null,"年",null,null,null,"歳",{"$f":"IF(ISBLANK(A40),\"\",\"同上\")","v":""},null,{"$f":"IF(ISBLANK($A40),\"\",VLOOKUP($A40,[0]!作業員管理台帳,24))&IF(ISBLANK($A40),\"\",\"・\")&IF(ISBLANK($A40),\"\",VLOOKUP($A40,[0]!作業員管理台帳,25))","v":""},null,null,null,null,null,null,null,null,null,null,null,null,null,null,null,null,null,null,null,null,null,null,"　 年　 月　 日"]
[]
[]
[null,null,null,null,null,null,null,null,null,null,null,null,null,null,null,null,null,null,null,null,null,null,null,null,null,null,null,"　 年　 月　 日",null,null,null,null,null,null,null,null,null,null,null,"　 年　 月　 日"]
[]
[]
[null,null,null,null,null,null,null,null,null,"年",null,null,null,"歳",{"$f":"IF(ISBLANK(A46),\"\",\"同上\")","v":""},null,{"$f":"IF(ISBLANK($A46),\"\",VLOOKUP($A46,[0]!作業員管理台帳,24))&IF(ISBLANK($A46),\"\",\"・\")&IF(ISBLANK($A46),\"\",VLOOKUP($A46,[0]!作業員管理台帳,25))","v":""},null,null,null,null,null,null,null,null,null,null,null,null,null,null,null,null,null,null,null,null,null,null,"　 年　 月　 日"]
[]
[]
[null,null,null,null,null,null,null,null,null,null,null,null,null,null,null,null,null,null,null,null,null,null,null,null,null,null,null,"　 年　 月　 日",null,null,null,null,null,null,null,null,null,null,null,"　 年　 月　 日"]
[]
[]
[null,null,null,null,null,null,null,null,null,"年",null,null,null,"歳",{"$f":"IF(ISBLANK(A52),\"\",\"同上\")","v":""},null,{"$f":"IF(ISBLANK($A52),\"\",VLOOKUP($A52,[0]!作業員管理台帳,24))&IF(ISBLANK($A52),\"\",\"・\")&IF(ISBLANK($A52),\"\",VLOOKUP($A52,[0]!作業員管理台帳,25))","v":""},null,null,null,null,null,null,null,null,null,null,null,null,null,null,null,null,null,null,null,null,null,null,"　 年　 月　 日"]
[]
[]
[null,null,null,null,null,null,null,null,null,null,null,null,null,null,null,null,null,null,null,null,null,null,null,null,null,null,null,"　 年　 月　 日",null,null,null,null,null,null,null,null,null,null,null,"　 年　 月　 日"]
[]
[]
[null,null,null,null,null,null,null,null,null,"年",null,null,null,"歳",{"$f":"IF(ISBLANK(A58),\"\",\"同上\")","v":""},null,{"$f":"IF(ISBLANK($A58),\"\",VLOOKUP($A58,[0]!作業員管理台帳,24))&IF(ISBLANK($A58),\"\",\"・\")&IF(ISBLANK($A58),\"\",VLOOKUP($A58,[0]!作業員管理台帳,25))","v":""},null,null,null,null,null,null,null,null,null,null,null,null,null,null,null,null,null,null,null,null,null,null,"　 年　 月　 日"]
[]
[]
[null,null,null,null,null,null,null,null,null,null,null,null,null,null,null,null,null,null,null,null,null,null,null,null,null,null,null,"　 年　 月　 日",null,null,null,null,null,null,null,null,null,null,null,"　 年　 月　 日"]
[]
[]
[null,null,null,null,null,null,null,null,null,"年",null,null,null,"歳",{"$f":"IF(ISBLANK(A64),\"\",\"同上\")","v":""},null,{"$f":"IF(ISBLANK($A64),\"\",VLOOKUP($A64,[0]!作業員管理台帳,24))&IF(ISBLANK($A64),\"\",\"・\")&IF(ISBLANK($A64),\"\",VLOOKUP($A64,[0]!作業員管理台帳,25))","v":""},null,null,null,null,null,null,null,null,null,null,null,null,null,null,null,null,null,null,null,null,null,null,"　 年　 月　 日"]
[]
[]
[null,null,null,null,null,null,null,null,null,null,null,null,null,null,null,null,null,null,null,null,null,null,null,null,null,null,null,"　 年　 月　 日",null,null,null,null,null,null,null,null,null,null,null,"　 年　 月　 日"]
[]
[]
[null,null,null,null,null,null,null,null,null,"年",null,null,null,"歳",{"$f":"IF(ISBLANK(A70),\"\",\"同上\")","v":""},null,{"$f":"IF(ISBLANK($A70),\"\",VLOOKUP($A70,[0]!作業員管理台帳,24))&IF(ISBLANK($A70),\"\",\"・\")&IF(ISBLANK($A70),\"\",VLOOKUP($A70,[0]!作業員管理台帳,25))","v":""},null,null,null,null,null,null,null,null,null,null,null,null,null,null,null,null,null,null,null,null,null,null,"　 年　 月　 日"]
[]
[]
[]
[null,"（注）１．※印欄には次の記号を入れる。（表示されない情報があります。）",null,null,null,null,null,null,null,null,null,null,null,null,null,null,null,null,null,null,null,null,null,null,null,"（注）７．健康保険欄には、健康保険の名称（健康保険組合、協会けんぽ、建設国保、国民健康保険）を記載。"]
[null,null,"現　…　現場代理人",null,null,null,"作　…　作業主任者((注2).)",null,null,null,null,null,null,null,"女　…　女子作業員",null,null,"未　…　18歳未満の作業員",null,null,null,null,null,null,null,"　　　　　上記の保険に加入しておらず、後期高齢者である等により、国民健康保険の適用除外である場合には、「適用除外」と記載。"]
[null,null,"主　…　主任技術者",null,null,null,"職　…　職長",null,null,null,null,null,null,null,"安　…　安全衛生責任者",null,null,"能　…　能力向上教育",null,null,null,null,null,null,null,"（注）８．年金保険欄には、年金保険の名称（厚生年金、国民年金等）を記載。各年金の受給者である場合は、「受給者」と記載。"]
[null,null,"再　…　危険有害業務・再発防止教育",null,null,null,"習　…　外国人技能実習生",null,null,null,null,null,null,null,"就　…　外国人建設就労者",null,null,"1特　…　1号特定技能外国人",null,null,null,null,null,null,null,"（注）９．雇用保険欄には、被保険者番号の下４けたを記載。（日雇労働被保険者の場合には、「日雇保険」と追記）"]
[null,"（注）２．作業主任者は作業を直接指揮する義務を負うので、同時に施工されている他の現場や、同一現場においても他の作業個所との作業主任者を兼務する",null,null,null,null,null,null,null,null,null,null,null,null,null,null,null,null,null,null,null,null,null,null,null,"　　　　　事業主である等により雇用保険の適用除外である場合には、「適用除外」と記載。"]
[null,"　　　　　ことは、法的に認められていないので、複数の選任としなければならない。",null,null,null,null,null,null,null,null,null,null,null,null,null,null,null,null,null,null,null,null,null,null,null,"（注）10．安全衛生に関する教育の内容（例：雇入時教育、職長教育、建設リフトの運転の業務に係る特別教育）については「雇入・職長特別教育」"]
[null,"（注）３．事業者及び技能者が建設キャリアアップシステムに登録されている場合は、当該事業者の事業者ＩＤ及び現場ＩＤ並びに当該技能者の技能者ＩＤを記載。",null,null,null,null,null,null,null,null,null,null,null,null,null,null,null,null,null,null,null,null,null,null,null,"　　　　　欄に記載。"]
[null,"（注）４．経験年数は現在担当している仕事の経験年数を記入する。",null,null,null,null,null,null,null,null,null,null,null,null,null,null,null,null,null,null,null,null,null,null,null,"（注）11．建設工事に係る知識及び技術又は技能に関する資格（例：登録○○基幹技能者、○級○○技能士）を有する場合は、「免許」欄に記入。"]
[null,"（注）５．各社別に作成するのが原則であるが、リース機械等の運転手は一緒でもよい。",null,null,null,null,null,null,null,null,null,null,null,null,null,null,null,null,null,null,null,null,null,null,null,"（注）12．退職金共済手帳所有の有無については、建退共手帳所有の場合には「建」を、中退共手帳所有の場合には「中」を、その他の手帳所有の場"]
[null,"（注）６．資格・免許等の写しを添付すること。",null,null,null,null,null,null,null,null,null,null,null,null,null,null,null,null,null,null,null,null,null,null,null,"　　　　　合には「他」を、所有していない場合には「無」を○で囲む。"]
[null,null,null,null,null,null,null,null,null,null,null,null,null,null,null,null,null,null,null,null,null,null,null,null,null,"（注）13．記載事項の一部について、別紙を用いて記載しても差し支えない。"]

{"sheet":"7.作業員名簿②(国交省HPより)","index":15,"n_rows":83,"n_cols":24,"rows_kept":83,"cut":false,"hidden":false,"merged":[[51,0,56,0],[57,0,62,0],[71,2,71,5],[15,0,20,0],[21,0,26,0],[27,0,32,0],[33,0,38,0],[39,0,44,0],[45,0,50,0],[59,2,60,5],[41,2,42,5],[23,2,24,5],[57,1,62,1],[43,2,44,5],[15,1,20,1],[15,2,16,5],[73,1,74,16],[73,17,75,25],[76,17,77,25],[78,17,79,25],[80,17,81,25],[86,13,87,25],[66,13,66,14],[66,17,70,25],[71,6,71,10],[71,12,71,13],[71,17,72,25],[72,2,72,4],[72,6,72,10],[72,12,72,13],[60,15,62,15],[60,23,62,24],[61,2,62,5],[61,13,62,13],[61,14,62,14],[57,14,58,14],[57,15,59,15],[57,16,62,16],[57,17,62,21],[57,22,62,22],[57,23,59,24],[57,2,58,5],[57,6,62,8],[57,9,62,9],[57,10,59,12],[57,13,58,13],[59,13,60,13],[59,14,60,14],[60,10,62,12],[51,15,53,15],[51,16,56,16],[51,17,56,21],[51,22,56,22],[51,23,53,24],[53,2,54,5],[53,13,54,13],[53,14,54,14],[54,10,56,12],[54,15,56,15],[54,23,56,24],[55,2,56,5],[55,13,56,13],[55,14,56,14],[49,13,50,13],[49,14,50,14],[51,1,56,1],[51,2,52,5],[51,6,56,8],[51,9,56,9],[51,10,53,12],[51,13,52,13],[51,14,52,14],[45,1,50,1],[45,2,46,5],[45,6,50,8],[45,9,50,9],[45,10,47,12],[45,13,46,13],[47,2,48,5],[47,13,48,13],[48,10,50,12],[49,2,50,5],[45,14,46,14],[45,15,47,15],[45,16,50,16],[45,17,50,21],[45,22,50,22],[45,23,47,24],[47,14,48,14],[48,15,50,15],[48,23,50,24],[42,15,44,15],[42,23,44,24],[43,13,44,13],[43,14,44,14],[39,14,40,14],[39,15,41,15],[39,16,44,16],[39,17,44,21],[39,22,44,22],[39,23,41,24],[39,1,44,1],[39,2,40,5],[39,6,44,8],[39,9,44,9],[39,10,41,12],[39,13,40,13],[41,13,42,13],[41,14,42,14],[42,10,44,12],[33,15,35,15],[33,16,38,16],[33,17,38,21],[33,22,38,22],[33,23,35,24],[35,2,36,5],[35,13,36,13],[35,14,36,14],[36,10,38,12],[36,15,38,15],[36,23,38,24],[37,2,38,5],[37,13,38,13],[37,14,38,14],[31,13,32,13],[31,14,32,14],[33,1,38,1],[33,2,34,5],[33,6,38,8],[33,9,38,9],[33,10,35,12],[33,13,34,13],[33,14,34,14],[27,1,32,1],[27,2,28,5],[27,6,32,8],[27,9,32,9],[27,10,29,12],[27,13,28,13],[29,2,30,5],[29,13,30,13],[30,10,32,12],[31,2,32,5],[21,23,23,24],[27,14,28,14],[27,15,29,15],[27,16,32,16],[27,17,32,21],[27,22,32,22],[27,23,29,24],[29,14,30,14],[30,15,32,15],[30,23,32,24],[18,15,20,15],[18,23,20,24],[19,2,20,5],[19,13,20,13],[19,14,20,14],[21,1,26,1],[21,2,22,5],[21,6,26,8],[21,9,26,9],[21,10,23,12],[21,13,22,13],[23,13,24,13],[23,14,24,14],[24,10,26,12],[24,15,26,15],[24,23,26,24],[25,2,26,5],[25,13,26,13],[25,14,26,14],[21,14,22,14],[21,15,23,15],[21,16,26,16],[21,17,26,21],[21,22,26,22],[15,6,20,8],[15,9,20,9],[15,10,17,12],[15,13,16,13],[15,14,16,14],[9,23,11,24],[11,2,12,5],[11,13,12,14],[12,10,14,12],[12,15,14,15],[12,16,14,16],[12,17,14,21],[12,22,14,22],[12,23,14,24],[13,2,14,5],[15,15,17,15],[15,16,20,16],[15,17,20,21],[15,22,20,22],[15,23,17,24],[17,2,18,5],[17,13,18,13],[17,14,18,14],[18,10,20,12],[9,1,14,1],[9,2,10,5],[9,6,14,8],[9,9,14,9],[9,10,11,12],[9,13,10,14],[9,15,11,15],[9,16,11,22],[13,13,14,14],[1,13,1,19],[2,13,2,19],[2,22,3,22],[2,23,3,24],[3,1,3,3],[3,4,3,9],[3,11,6,13],[4,1,4,3],[4,4,4,9],[4,22,4,24],[6,16,6,19],[6,23,6,24]]}
[]
[null,null,null,null,null,null,null,null,null,null,null,null,null,"作　　業　　員　　名　　簿"]
[null,null,null,null,null,null,null,null,null,null,null,null,null,"（　　 年 　　月 　　日作成）",null,null,null,null,null,null,null,null,"元請\n確認欄"]
[null,"事業所の名称\n・現場ID",null,null,{"$f":"IF(ISBLANK(共通情報入力表!D7),\"\",共通情報入力表!D7)&IF(ISBLANK(共通情報入力表!D6),\"\",CHAR(10)&共通情報入力表!D6)","v":""},null,null,null,null,null,null," 本書面に記載した内容は、作業員名簿として安全衛生管理や労働災害発生時の緊急連絡・対応のために元請負業者に提示することについて、記載者本人は同意しています。"]
[null,"所長名",null,null,{"$f":"IF(ISBLANK(共通情報入力表!D10),\"\",共通情報入力表!D10&\"　\"&\"殿\")","v":""},null,null,null,null,null,null,null,null,null,null,null,null,null,null,null,null,null,"提出日　　　　　年　　　月　　　日"]
[]
[null,null,null,null,null,null,null,null,null,null,null,null,null,null,null,"一次会社名\n・事業者ID",{"$f":"IF(ISBLANK(共通情報入力表!D17),\"\",共通情報入力表!D17)&IF(ISBLANK(共通情報入力表!D18),\"\",CHAR(10)&共通情報入力表!D18)","v":""},null,null,null,null,null,"(   次）会社名\n・事業者ID"]
[]
[]
[null,"番号","ふりがな",null,null,null,"職種",null,null,"※","生年月日",null,null,"健康保険",null,"建設業退職金\n共済制度","教　育・資　格・免　許",null,null,null,null,null,null,"入場年月日"]
[]
[null,null,"氏名",null,null,null,null,null,null,null,null,null,null,"年金保険"]
[null,null,null,null,null,null,null,null,null,null,"年齢",null,null,null,null,"中小企業退職金\n共済制度","雇入・職長\n特別教育","技能講習",null,null,null,null,"免　許","受入教育\n実施年月日"]
[null,null,"技能者ID",null,null,null,null,null,null,null,null,null,null,"雇用保険"]
[]
[null,null,null,null,null,null,null,null,null,null,"年　 月 　日",null,null,null,null,null,null,null,null,null,null,null,null,"年　月　日"]
[]
[]
[null,null,null,null,null,null,null,null,null,null,{"$f":"IF(ISBLANK(A16),\"　　　歳\",(LEFT(VLOOKUP(A16,[0]!作業員管理台帳,8),2))&\" 歳\")","v":"　　　歳"},null,null,null,null,null,null,null,null,null,null,null,null,"年　月　日"]
[]
[]
[null,null,null,null,null,null,null,null,null,null,"年　 月 　日",null,null,null,null,null,null,null,null,null,null,null,null,"年　月　日"]
[]
[]
[null,null,null,null,null,null,null,null,null,null,{"$f":"IF(ISBLANK(A22),\"　　　歳\",(LEFT(VLOOKUP(A22,[0]!作業員管理台帳,8),2))&\" 歳\")","v":"　　　歳"},null,null,null,null,null,null,null,null,null,null,null,null,"年　月　日"]
[]
[]
[null,null,null,null,null,null,null,null,null,null,"年　 月 　日",null,null,null,null,null,null,null,null,null,null,null,null,"年　月　日"]
[]
[]
[null,null,null,null,null,null,null,null,null,null,{"$f":"IF(ISBLANK(A28),\"　　　歳\",(LEFT(VLOOKUP(A28,[0]!作業員管理台帳,8),2))&\" 歳\")","v":"　　　歳"},null,null,null,null,null,null,null,null,null,null,null,null,"年　月　日"]
[]
[]
[null,null,null,null,null,null,null,null,null,null,"年　 月 　日",null,null,null,null,null,null,null,null,null,null,null,null,"年　月　日"]
[]
[]
[null,null,null,null,null,null,null,null,null,null,{"$f":"IF(ISBLANK(A34),\"　　　歳\",(LEFT(VLOOKUP(A34,[0]!作業員管理台帳,8),2))&\" 歳\")","v":"　　　歳"},null,null,null,null,null,null,null,null,null,null,null,null,"年　月　日"]
[]
[]
[null,null,null,null,null,null,null,null,null,null,"年　 月 　日",null,null,null,null,null,null,null,null,null,null,null,null,"年　月　日"]
[]
[]
[null,null,null,null,null,null,null,null,null,null,{"$f":"IF(ISBLANK(A40),\"　　　歳\",(LEFT(VLOOKUP(A40,[0]!作業員管理台帳,8),2))&\" 歳\")","v":"　　　歳"},null,null,null,null,null,null,null,null,null,null,null,null,"年　月　日"]
[]
[]
[null,null,null,null,null,null,null,null,null,null,"年　 月 　日",null,null,null,null,null,null,null,null,null,null,null,null,"年　月　日"]
[]
[]
[null,null,null,null,null,null,null,null,null,null,{"$f":"IF(ISBLANK(A46),\"　　　歳\",(LEFT(VLOOKUP(A46,[0]!作業員管理台帳,8),2))&\" 歳\")","v":"　　　歳"},null,null,null,null,null,null,null,null,null,null,null,null,"年　月　日"]
[]
[]
[null,null,null,null,null,null,null,null,null,null,"年　 月 　日",null,null,null,null,null,null,null,null,null,null,null,null,"年　月　日"]
[]
[]
[null,null,null,null,null,null,null,null,null,null,{"$f":"IF(ISBLANK(A52),\"　　　歳\",(LEFT(VLOOKUP(A52,[0]!作業員管理台帳,8),2))&\" 歳\")","v":"　　　歳"},null,null,null,null,null,null,null,null,null,null,null,null,"年　月　日"]
[]
[]
[null,null,null,null,null,null,null,null,null,null,"年　 月 　日",null,null,null,null,null,null,null,null,null,null,null,null,"年　月　日"]
[]
[]
[null,null,null,null,null,null,null,null,null,null,{"$f":"IF(ISBLANK(A58),\"　　　歳\",(LEFT(VLOOKUP(A58,[0]!作業員管理台帳,8),2))&\" 歳\")","v":"　　　歳"},null,null,null,null,null,null,null,null,null,null,null,null,"年　月　日"]
[]
[]
[null,"（注)１.※印欄には次の記号を入れる。",null,null,null,null,null,null,null,null,null,null,null,null,null,null,null,"（注）３．各社別に作成するのが原則だが、リース機械等の運転者は一緒でもよい。"]
[null,null,null,null,null,null,null,null,null,null,null,null,null,null,null,null,null,"（注）４．資格・免許等の写しを添付することが望ましい。"]
[]
[null,null," …現場代理人",null,null," …作業主任者（（注）2.)",null,null,null,null,null," …女性作業員",null,"       …18歳未満の作業員",null,null,null,"（注）５．健康保険欄には、左欄に健康保険の名称（健康保険組合、協会けんぽ、\n 建設国保、国民健康保険）を記載。上記の保険に加入しておらず、後期高齢者で\n ある等により、国民健康保険の適用除外である場合には、左欄に「適用除外」と記\n 載。"]
[]
[]
[null,null," …主任技術者",null,null," …職　長",null,null,null," …安全衛生責任者",null,null," …能力向上教育",null," …危険有害業務・再発防止教育"]
[]
[null,null," …外国人技能実習生",null,null,null," …外国人建設就労者",null,null,null,null,null," …１号特定技能外国人",null,null,null,null,"（注）６．年金保険欄には、左欄に年金保険の名称（厚生年金、国民年金）を記載。\n　各年金の受給者である場合は、左欄に「受給者」と記載。"]
[]
[null,"（注）２.作業主任者は作業を直接指揮する義務を負うので、同時に施工されている他の現場や、同一現場においても\n  他の作業個所との作業主任者を兼務することは、法的に認められていないので、複数の選任としなければならない。",null,null,null,null,null,null,null,null,null,null,null,null,null,null,null,"（注）７．雇用保険欄には右欄に被保険者番号の下４けたを記載。（日雇労働被保\n 険者の場合には左欄に「日雇保険」と記載）事業主である等により雇用保険の適用\n 除外である場合には左欄に「適用除外」と記載。"]
[]
[]
[null,null,null,null,null,null,null,null,null,null,null,null,null,null,null,null,null,"（注）８．建設業退職金共済制度及び中小企業退職金共済制度への加入の有無につい\n ては、それぞれの欄に「有」又は「無」と記載。"]
[]
[null,null,null,null,null,null,null,null,null,null,null,null,null,null,null,null,null,"（注）９．安全衛生に関する教育の内容（例：雇入時教育、職長教育、建設用リフト\n の運転の業務に係る特別教育）については「雇入・職長特別教育」欄に記載。"]
[]
[null,null,null,null,null,null,null,null,null,null,null,null,null,null,null,null,null,"（注）１０．建設工事に係る知識及び技術又は技能に関する資格（例：登録○○基幹\n 技能者、○級○○施工管理技士）を有する場合は、「免許」欄に記載。"]
[]
[null,null,null,null,null,null,null,null,null,null,null,null,null,null,null,null,null,"（注）１１．記載事項の一部について、別紙を用いて記載しても差し支えない。"]

{"sheet":"8.社会保険加入状況","index":16,"n_rows":39,"n_cols":34,"rows_kept":39,"cut":false,"hidden":false,"merged":[[38,1,38,33],[42,5,42,8],[35,1,36,1],[35,2,35,7],[35,8,35,15],[35,16,35,24],[35,25,35,33],[36,2,36,7],[36,8,36,15],[36,16,36,24],[36,25,36,33],[33,1,34,1],[33,2,33,7],[33,8,33,15],[33,16,33,24],[33,25,33,33],[34,2,34,7],[34,8,34,15],[34,16,34,24],[34,25,34,33],[31,1,32,1],[31,2,31,7],[31,8,31,15],[31,16,31,24],[31,25,31,33],[32,2,32,7],[32,8,32,15],[32,16,32,24],[32,25,32,33],[29,1,30,1],[29,2,29,7],[29,8,29,15],[29,16,29,24],[29,25,29,33],[30,2,30,7],[30,8,30,15],[30,16,30,24],[30,25,30,33],[27,1,28,1],[27,2,27,7],[27,8,27,15],[27,16,27,24],[27,25,27,33],[28,2,28,7],[28,8,28,15],[28,16,28,24],[28,25,28,33],[25,1,26,1],[25,2,25,7],[25,8,25,15],[25,16,25,24],[25,25,25,33],[26,2,26,7],[26,8,26,15],[26,16,26,24],[26,25,26,33],[23,1,24,1],[23,2,23,7],[23,8,23,15],[23,16,23,24],[23,25,23,33],[24,2,24,7],[24,8,24,15],[24,16,24,24],[24,25,24,33],[21,1,22,1],[21,2,21,7],[21,8,21,15],[21,16,21,24],[21,25,21,33],[22,2,22,7],[22,8,22,15],[22,16,22,24],[22,25,22,33],[19,1,20,1],[19,2,19,7],[19,8,19,15],[19,16,19,24],[19,25,19,33],[20,2,20,7],[20,8,20,15],[20,16,20,24],[20,25,20,33],[13,1,16,1],[13,2,13,7],[13,8,14,33],[14,2,16,7],[15,8,16,15],[15,16,16,24],[15,25,16,33],[17,1,18,1],[17,2,17,7],[17,8,17,15],[17,16,17,24],[17,25,17,33],[18,2,18,7],[18,8,18,15],[18,16,18,24],[18,25,18,33],[1,1,1,6],[1,20,2,23],[1,24,2,33],[5,1,6,33],[8,4,9,9],[9,1,9,3],[9,11,10,13],[9,14,10,19],[9,23,9,24],[9,27,10,32],[10,1,10,3],[10,4,10,8],[10,22,10,26],[3,25,3,27]]}
[]
[null,"全建統一様式 第5号-別紙",null,null,null,null,null,null,null,null,null,null,null,null,null,null,null,null,null,null,"元　請\n確認欄"]
[]
[null,null,null,null,null,null,null,null,null,null,null,null,null,null,null,null,null,null,null,null,null,null,null,null,"提出日",null,null,null,null,"年",null,"月",null,"日"]
[]
[null,"社会保険加入状況"]
[]
[null,null,null,null,null,null,null,null,null,"（ ",null,null,"年",null,"月",null,"日","　作成 ）"]
[null,null,null,null,{"$f":"IF(ISBLANK(共通情報入力表!D7),\"\",共通情報入力表!D7)","v":""}]
[null,"事業所の名称",null,null,null,null,null,null,null,null,null,"一　次\n会社名",null,null,{"$f":"IF(ISBLANK(共通情報入力表!D17),\"\",共通情報入力表!D17)","v":""},null,null,null,null,null,null,null,"（",null,null,"次","）"]
[null,"所 　長　 名",null,null,{"$f":"IF(ISBLANK(共通情報入力表!D10),\"\",共通情報入力表!D10)","v":""},null,null,null,null,"殿",null,null,null,null,null,null,null,null,null,null,"㊞",null,"会社名",null,null,null,null,null,null,null,null,null,null,"㊞"]
[]
[]
[null,"番　号","ふ　 り　 が　 な",null,null,null,null,null,"社　会　保　険"]
[null,null,"氏　　　　 　　名"]
[null,null,null,null,null,null,null,null,"健　康　保　険",null,null,null,null,null,null,null,"年　金　保　険",null,null,null,null,null,null,null,null,"雇　用　保　険"]
[]
[null,1]
[]
[null,2]
[]
[null,3]
[]
[null,4]
[]
[null,5]
[]
[null,6]
[]
[null,7]
[]
[null,8]
[]
[]
[]
[]
[]
[]
[null,"（注）個人情報保護の観点から、被保険者番号等は本人の同意を得たうえで記載する。\n（記入要領）\n１．健康保険欄には、上段に健康保険の名称（健康保険組合、協会けんぽ、建設国保、国民健康保険）\n　　を、下欄に健康保険被保険者証の番号の下４桁（番号が４桁以下の場合は、当該番号）を記載する。\n　　なお、上記の保険に加入しておらず、後期高齢者である等により、国民健康保険の適用除外である\n　　場合には、上段に「適用除外」と記載する。\n２．年金保険欄には、上段に年金保険の名称（厚生年金、国民年金）を、各年金の受給者である場合は、\n　　上段に「受給者」と記載する。\n３．雇用保険欄には、下段に被保険者番号の下４桁（日雇労働被保険者の場合は、上段に「日雇保険」\n　　と）を、事業主である等により雇用保険の適用除外である場合は、上段に「適用除外」と記載する。"]

{"sheet":"9.作業主任者専任報告書","index":17,"n_rows":51,"n_cols":22,"rows_kept":51,"cut":false,"hidden":false,"merged":[[1,15,1,16],[1,17,1,21],[2,1,2,21],[4,1,5,9],[9,11,9,12],[9,14,9,21],[10,11,10,12],[10,14,10,21],[11,11,11,12],[11,14,11,20],[13,5,13,16],[16,12,16,15],[16,16,16,21],[17,1,18,6],[17,8,17,11],[17,12,17,15],[17,16,18,21],[18,8,18,11],[18,12,18,15],[16,1,16,6],[16,7,16,11],[19,12,19,15],[19,16,20,21],[20,8,20,11],[20,12,20,15],[21,1,22,6],[21,8,21,11],[21,12,21,15],[21,16,22,21],[22,8,22,11],[22,12,22,15],[19,1,20,6],[19,8,19,11],[23,12,23,15],[23,16,24,21],[24,8,24,11],[24,12,24,15],[25,1,26,6],[25,8,25,11],[25,12,25,15],[25,16,26,21],[26,8,26,11],[26,12,26,15],[23,1,24,6],[23,8,23,11],[27,1,28,6],[27,8,27,11],[27,12,27,15],[27,16,28,21],[28,8,28,11],[28,12,28,15],[29,1,30,6],[29,8,29,11],[29,12,29,15],[29,16,30,21],[30,8,30,11],[30,12,30,15],[31,1,32,6],[31,8,31,11],[31,12,31,15],[31,16,32,21],[32,8,32,11],[32,12,32,15],[33,1,34,6],[33,8,33,11],[33,12,33,15],[33,16,34,21],[34,8,34,11],[34,12,34,15],[35,1,36,6],[35,8,35,11],[35,12,35,15],[35,16,36,21],[36,8,36,11],[36,12,36,15],[37,1,38,6],[37,8,37,11],[37,12,37,15],[37,16,38,21],[38,8,38,11],[38,12,38,15],[39,1,40,6],[39,8,39,11],[39,12,39,15],[39,16,40,21],[40,8,40,11],[40,12,40,15],[50,3,50,14],[41,1,42,6],[41,8,41,11],[41,12,41,15],[41,16,42,21],[42,8,42,11],[42,12,42,15],[43,1,44,6],[44,12,44,15],[44,8,44,11],[43,16,44,21],[43,12,43,15],[43,8,43,11]]}
[]
[null,null,null,null,null,null,null,null,null,null,null,null,null,null,null,"（届出日）",null,"　 年　 月　 日"]
[null,"作 業 主 任 者 届"]
[]
[null,{"$f":"IF(ISBLANK(共通情報入力表!D7),\"\",共通情報入力表!D7)","v":""}]
[null,null,null,null,null,null,null,null,null,null,"作業所長 殿"]
[]
[null,null,null,null,null,null,null,null,null,null,"【報告下請請負業者】"]
[null,null,null,null,null,null,null,null,null,null,null,null,null,null,"〒",null,"－"]
[null,null,null,null,null,null,null,null,null,null,null,"住所"]
[null,null,null,null,null,null,null,null,null,null,null,"会社名"]
[null,null,null,null,null,null,null,null,null,null,null,"代表者名",null,null,null,null,null,null,null,null,null,"㊞"]
[]
[null,null,"　このたび、",null,null,{"$f":"IF(ISBLANK(共通情報入力表!D7),\"\",共通情報入力表!D7)","v":""},null,null,null,null,null,null,null,null,null,null,null,"の下記作業について、"]
[null,null,"作業主任者を選任致しましたので、お届けいたします。"]
[]
[null,"作業主任者を要する作業名",null,null,null,null,null,"氏　　　　名",null,null,null,null,"取得番号",null,null,null,"備　　　　　考"]
[null,null,null,null,null,null,null,"(正)"]
[null,null,null,null,null,null,null,"(副)"]
[null,null,null,null,null,null,null,"(正)"]
[null,null,null,null,null,null,null,"(副)"]
[null,null,null,null,null,null,null,"(正)"]
[null,null,null,null,null,null,null,"(副)"]
[null,null,null,null,null,null,null,"(正)"]
[null,null,null,null,null,null,null,"(副)"]
[null,null,null,null,null,null,null,"(正)"]
[null,null,null,null,null,null,null,"(副)"]
[null,null,null,null,null,null,null,"(正)"]
[null,null,null,null,null,null,null,"(副)"]
[null,null,null,null,null,null,null,"(正)"]
[null,null,null,null,null,null,null,"(副)"]
[null,null,null,null,null,null,null,"(正)"]
[null,null,null,null,null,null,null,"(副)"]
[null,null,null,null,null,null,null,"(正)"]
[null,null,null,null,null,null,null,"(副)"]
[null,null,null,null,null,null,null,"(正)"]
[null,null,null,null,null,null,null,"(副)"]
[null,null,null,null,null,null,null,"(正)"]
[null,null,null,null,null,null,null,"(副)"]
[null,null,null,null,null,null,null,"(正)"]
[null,null,null,null,null,null,null,"(副)"]
[null,null,null,null,null,null,null,"(正)"]
[null,null,null,null,null,null,null,"(副)"]
[null,null,null,null,null,null,null,"(正)"]
[null,null,null,null,null,null,null,"(副)"]
[null,"（注記）１．選任項目に関しては別紙　作業主任者等選任一覧表参照してください。"]
[null,"　　　　２．複数選任の場合や作業名の記載が無い場合は、空欄及び別記にて追加してください。"]
[null,"　　　　３．この現場に、実際に現入する作業主任者の選任をしてください。"]
[null,"　　　　４．作業主任者を変更、追加する場合は、当日の作業開始前までに届出を行ってください。"]
[null,"　　　　　　（※届出の無い場合は、作業が出来ません。）"]
[null,null,"※","職場のあんぜんサイト：作業主任者[安全衛生キーワード] (mhlw.go.jp)"]

{"sheet":"※作業主任者専任一覧 ","index":18,"n_rows":47,"n_cols":5,"rows_kept":47,"cut":false,"hidden":false,"merged":[[1,1,1,4],[34,1,36,1],[34,3,36,3],[34,4,37,4],[8,4,11,4],[16,1,18,1],[16,3,18,3],[16,4,18,4],[5,1,7,1],[5,3,7,3],[5,4,7,4],[8,1,11,1],[17,2,18,2],[6,2,7,2],[41,4,44,4],[42,1,44,1],[42,3,44,3]]}
[]
[null,"作業主任者の選任が必要な業務一覧（労働安全衛生法施行令第６条、労働安全衛生規則別表第１）"]
[null,null,"作業主任者を選任すべき作業","作業主任者になれる者","作業主任者の名称"]
[null,1,"高圧室内作業（潜函工法その他の圧気工法により、大気圧を超える気圧下の作業室又はシャフトの内部において行う作業に限る。）","高圧室内作業主任者免許を受けた者","高圧室内作業主任者"]
[null,2,"アセチレン溶接装置又はガス集合溶接装置を用いて行う金属の溶接、溶断又は加熱の作業","ガス溶接作業主任者免許を受けた者","ガス溶接作業主任者"]
[null,3,"次のいずれかに該当する機械集材装置もしくは運材索道の組立て、解体、変更もしくは修理の作業又はこれらの設備による集材もしくは運材の作業","林業架線作業主任者免許を受けた者","林業架線作業主任者"]
[null,null,"イ　原動機の定格出力が7.5kWを超えるもの\n\n\nロ　支間の斜距離の合計が350ｍ以上のもの\n\n\nハ　最大使用荷重が200kg以上のもの"]
[]
[null,4,"　\n伝熱面積の合計が500㎡以上の場合（貫流ボイラーのみを取り扱う場合を除く。）における当該ボイラーの取扱いの作業","\n特級ボイラー技士免許を受けた者","ボイラー取扱作業主任者"]
[null,null,"伝熱面積の合計が25㎡以上500㎡未満の場合（貫流ボイラーのみを取り扱う場合において、その伝熱面積の合計が500㎡以上のときを含む。）における当該ボイラーの取扱いの作業","特級ボイラー技師免許又は一級ボイラー技士免許を受けた者"]
[null,null,"伝熱面積の合計が25㎡未満の場合における当該ボイラーの取扱いの作業","特級ボイラー技士免許、一級ボイラー技士免許又は二級ボイラー技士免許を受けた者"]
[null,null,"労働安全衛生法施行令第２０条第５号イからニまでに掲げるボイラーのみを取り扱う作業","特級ボイラー技士免許、１級ボイラー技士免許もしくは２級ボイラー技士免許を受けた者又はボイラー取扱技能講習を修了した者"]
[null,5,"エックス線装置の使用又は検査の業務等に係る作業（医療用又は波高値による定格管電圧が1,000kV以上のエックス線を発生させる装置を使用するものを除く。）","エックス線作業主任者免許を受けた者","エックス線作業主任者"]
[null,6,"ガンマ線照射装置を用いて行う透過写真の撮影の作業","ガンマ線透過写真撮影作業主任者免許を受けた者","ガンマ線透過写真撮影作業主任者"]
[null,7,"木材加工用機械（丸のこ盤、帯のこ盤、かんな盤、面取り盤及びルーターに限るものとし、携帯用のものを除く。）を５台以上（当該機械のうちに自動送材車式帯のこ盤が含まれている場合には、３台以上）有す事業場において行う当該機械による作業","木材加工用機械作業主任者技能講習を修了した者","木材加工用機械作業主任者"]
[null,8,"動力により駆動されるプレス機械を５台以上有する事業場において行う当該機械による作業","プレス機械作業主任者技能講習を修了した者","プレス機械作業主任者"]
[null,9,"次に掲げる設備による物の加熱乾燥の作業","乾燥設備作業主任者技能講習を修了した者","乾燥設備作業主任者"]
[null,null,"イ　乾燥設備のうち、危険物等に係る設備で、内容積が１㎥以上のもの\n\nロ　乾燥設備のうち、イの危険物等以外の物に係る設備で、熱源として燃料を使用するもの（その最大消費量が、固体燃料にあっては10kg/h以上、液体燃料にあっては10 ℓ/h以上、気体燃料にあっては１㎥/h以上であるものに限る。）又は熱源として電力を使用するもの（定格消費電力が10kW以上のものに限る。）"]
[]
[null,10,"コンクリート破砕器を用いて行う破砕の作業","コンクリート破砕器作業主任者技能講習を修了した者","コンクリート破砕器作業主任者"]
[null,11,"掘削面の高さが２ｍ以上となる地山の掘削（ずい道及びたて坑以外の坑の掘削を除く。）の作業（15に掲げる作業を除く。）","地山の掘削及び土止め支保工作業主任者技能講習を修了した者","地山の掘削作業主任者"]
[null,12,"土止め支保工の切りばり又は腹おこしの取付け又は取りはずしの作業","地山の掘削及び土止め支保工作業主任者技能講習を修了した者","土止め支保工作業主任者"]
[null,13,"ずい道等（ずい道及びたて坑以外の坑（岩石の採取のためのものを除く。）をいう。）の掘削の作業（掘削用機械を用いて行う掘削の作業のうち労働者が切羽に近接することなく行うものを除く。）又はこれに伴うずり積み、ずい道支保工（ずい道等における落盤、肌落ち等を防止するための支保工をいう。）の組立て、ロックボルトの取付け若しくはコンクリート等の吹付けの作業","ずい道等の掘削等作業主任者技能講習を修了した者","ずい道等の掘削等作業主任者"]
[null,14,"ずい道等の覆工（ずい道型わく支保工（ずい道等におけるアーチコンクリート及び側壁コンクリートの打設に用いる型わく並びにこれを支持するための支柱、はり、つなぎ、筋かい等の部材により構成される仮設の設備をいう。）の組立て、移動若しくは解体又は当該組立て若しくは移動に伴うコンクリートの打設をいう。）の作業","ずい道等の覆工作業主任者技能講習を修了した者","ずい道等の覆工作業主任者"]
[null,15,"掘削面の高さが２ｍ以上となる岩石の採取のための掘削の作業","採石のための掘削作業主任者技能講習を修了した者","採石のための掘削作業主任者"]
[null,16,"高さが２ｍ以上のはいのはい付け又ははいくずしの作業（荷役機械の運転者のみによって行われるものを除く。）","はい作業主任者技能講習を修了した者","はい作業主任者"]
[null,17,"船舶に荷を積み、船舶から荷を卸し、又は船舶において荷を移動させる作業（総トン数500ｔ未満の船舶（船員室の新設、増設又は拡大により総トン数が500トン未満から500トン以上となったもの（510トン未満のものに限る。）のうち厚生労働省令で定めるものを含む。）において揚貨装置を用いないで行うものを除く。）","船内荷役作業主任者技能講習を修了した者","船内荷役作業主任者"]
[null,18,"型わく支保工の組立て又は解体の作業","型枠支保工の組立て等作業主任者技能講習を修了した者","型枠支保工の組立て等作業主任者"]
[null,19,"つり足場（ゴンドラのつり足場を除く。）、張出し足場又は高さが５ｍ以上の構造の足場の組立て、解体又は変更の作業","足場の組立て等作業主任者技能講習を修了した者","足場の組立て等作業主任者"]
[null,20,"建築物の骨組み又は塔であって、金属製の部材により構成されるもの（その高さが５ｍ以上のものに限る。）の組立て、解体又は変更の作業","建築物等の鉄骨の組立て等作業主任者技能講習を修了した者","建築物等の鉄骨の組立て等作業主任者"]
[null,21,"橋梁の上部構造であって、金属製の部材により構成されるもの（その高さが５ｍ以上であるもの又は当該上部構造のうち橋梁の支間が30ｍ以上である部分に限る。）の架設、解体又は変更の作業","鋼橋架設等作業主任者技能講習を修了した者","鋼橋架設等作業主任者"]
[null,22,"軒の高さが５ｍ以上の木造建築物の構造部材の組立て又はこれに伴う屋根下地若しくは外壁下地の取付けの作業","木造建築物の組立て等作業主任者技能講習を修了した者","木造建築物の組立て等作業主任者"]
[null,23,"コンクリート造の工作物（その高さが５ｍ以上であるものに限る。）の解体又は破壊の作業","コンクリート造の工作物の解体等作業主任者技能講習を修了した者","コンクリート造の工作物の解体等作業主任者"]
[null,24,"橋梁の上部構造であって、コンクリート造のもの（その高さが５ｍ以上であるもの又は当該上部構造のうち橋梁の支間が30ｍ以上である部分に限る。）の架設又は変更の作業","コンクリート橋架設等作業主任者技能講習を修了した者","コンクリート橋架設等作業主任者"]
[null,25,"第１種圧力容器（小型圧力容器及び次に掲げる容器を除く。）の取扱いの作業（26の作業を除く。）","特級ボイラー技士免許、１級ボイラー技士免許もしくは２級ボイラー技士免許を受けた者又は化学設備関係第１種圧力容器取扱作業主任者技能講習もしくは普通第１種圧力容器取扱作業主任者技能講習を修了した者","第１種圧力容器取扱作業主任者"]
[null,null,"イ　労働安全衛生法施行令第１条第５号イに掲げる容器で、内容積が５㎥以下のもの"]
[null,null,"ロ　労働安全衛生法施行令第１条第５号ロからニまでに掲げる容器で、内容積が１㎥以下のもの"]
[null,26,"25の作業のうち化学設備に係る第１種圧力容器の取扱いの作業","化学設備関係第１種圧力容器取扱作業主任者技能講習を修了した者"]
[null,27,"特定化学物質を製造し、又は取り扱う作業（試験研究のため取り扱う作業を除く。）","特定化学物質及び四アルキル鉛等作業主任者技能講習（特別有機溶剤の場合、有機溶剤作業主任者技能講習）を修了した者","特定化学物質作業主任者"]
[null,28,"鉛業務（遠隔操作によって行う隔離室におけるものを除く。）に係る作業","鉛作業主任者技能講習を修了した者","鉛作業主任者技能講習"]
[null,29,"四アルキル鉛等業務（遠隔操作によって行う隔離室におけるものを除く。）に係る作業","特定化学物質及び四アルキル鉛等作業主任者技能講習を修了した者","四アルキル鉛等作業主任者"]
[null,30,"酸素欠乏危険場所における作業（31に掲げる作業を除く。）","酸素欠乏危険作業主任者技能講習又は酸素欠乏・硫化水素危険作業主任者技能講習を修了した者","酸素欠乏危険作業主任者"]
[null,31,"酸素欠乏危険場所における作業（次に掲げる場所におけるものに限る。）","酸素欠乏・硫化水素危険作業主任者技能講習を修了した者"]
[null,null,"イ　海水が滞留しており、若しくは滞留したことのある熱交換器、管、暗きょ、マンホール、溝もしくはピット（以下「熱交換器等」という。）又は海水を相当期間入れてあり、若しくは入れたことのある熱交換器等の内部"]
[null,null,"ロ　し尿、腐泥、汚水、パルプ液その他腐敗し、又は分解しやすい物質を入れてあり、又は入れたことのあるタンク、船倉、槽、管、暗きょ、マンホール、溝又はピットの内部"]
[null,32,"作業場等において一定の有機溶剤を製造し、又は取り扱う業務のうち一定のものに係る作業","有機溶剤作業主任者技能講習を修了した者","有機溶剤作業主任者"]
[null,33,"石綿等を取り扱う作業（試験研究のために取り扱う作業を除く。）又は石綿等を試験研究のために製造する作業","石綿作業主任者技能講習を修了した者","石綿作業主任者"]

{"sheet":"10.新規入場時教育実施報告","index":19,"n_rows":37,"n_cols":28,"rows_kept":37,"cut":false,"hidden":false,"merged":[[36,1,36,5],[36,6,36,27],[34,17,34,27],[35,17,35,27],[31,1,31,5],[32,1,32,5],[33,1,33,5],[34,1,34,5],[34,6,34,16],[35,6,35,16],[31,17,31,27],[32,17,32,27],[33,17,33,27],[32,6,32,16],[33,6,33,16],[31,6,31,16],[15,27,16,27],[19,6,19,27],[20,6,20,27],[17,16,17,19],[30,17,30,27],[30,6,30,16],[15,16,16,19],[15,20,16,26],[29,6,29,27],[28,6,28,27],[27,6,27,27],[26,6,26,27],[25,6,25,27],[24,6,24,27],[23,6,23,27],[22,6,22,27],[22,1,22,5],[19,1,19,5],[29,1,29,5],[24,1,28,5],[23,1,23,5],[20,1,20,5],[21,1,21,5],[12,1,13,4],[12,5,13,11],[1,16,3,18],[1,19,3,27],[1,1,1,6],[9,1,10,4],[9,5,10,12],[12,12,13,12],[5,21,5,27],[12,16,13,19],[12,20,13,27],[7,1,7,27]]}
[]
[null,"全建統一様式第7号",null,null,null,null,null,null,null,null,null,null,null,null,null,null,"元　請　　確認欄"]
[]
[]
[]
[null,null,null,null,null,null,null,null,null,null,null,null,null,null,null,null,null,null,null,null,null,"　 年 　月 　日"]
[]
[null,"新規入場時等教育実施報告書"]
[]
[null,"事業所の名称",null,null,null,{"$f":"IF(ISBLANK(共通情報入力表!D7),\"\",共通情報入力表!D7)","v":""}]
[]
[null,null,null,null,null,null,null,null,null,null,null,null,null,null,null,null,null,null,null,null,"　株式会社　山下技建"]
[null,"所長名",null,null,null,{"$f":"IF(ISBLANK(共通情報入力表!D10),\"\",共通情報入力表!D10)","v":""},null,null,null,null,null,null,"殿",null,null,null,"会 社 名"]
[]
[]
[null,null,null,null,null,null,null,null,null,null,null,null,null,null,null,null,"現場代理人\n(現場責任者)　\n",null,null,null,null,null,null,null,null,null,null,"㊞"]
[]
[]
[]
[null,"項　　　目",null,null,null,null,"摘　　　　　　　　　　　要　"]
[null,"教育の種類",null,null,null,null,"新 規 入 場 時 　　・　　 雇 　入 　時　　 ・　　送 り 出 し 時"]
[null,"実施日時",null,null,null,null,null,null,null,"年",null,"月",null,"日",null,null,"時",null,"～",null,null,"時","（",null,"時間）"]
[null,"実施場所"]
[null,"教育方法"]
[null,"教育内容"]
[]
[]
[]
[]
[null,"講　　　　師"]
[]
[]
[null,"受講者氏名"]
[null,"（受講者に氏名を自筆させること）"]
[]
[]
[null,"資　　　　料"]

{"sheet":"11.新規入場者調査票","index":20,"n_rows":50,"n_cols":29,"rows_kept":50,"cut":false,"hidden":false,"merged":[[49,27,49,29],[1,7,1,11],[47,1,47,4],[47,5,47,8],[47,9,47,12],[48,1,48,4],[48,5,48,8],[48,9,48,12],[45,1,45,4],[45,5,45,8],[45,9,45,12],[45,15,45,25],[45,26,48,27],[45,28,48,29],[46,1,46,4],[46,5,46,8],[46,9,46,12],[46,15,46,25],[43,1,43,4],[43,5,43,8],[43,9,43,12],[43,26,43,29],[44,1,44,4],[44,5,44,8],[44,9,44,12],[44,15,44,25],[44,26,44,27],[44,28,44,29],[41,1,41,4],[41,5,41,8],[41,9,41,12],[41,16,41,29],[42,1,42,4],[42,5,42,8],[42,9,42,12],[39,1,39,12],[39,16,39,29],[40,1,40,4],[40,5,40,8],[40,9,40,12],[40,16,40,29],[34,16,34,29],[35,5,35,12],[35,16,35,29],[36,1,36,12],[36,16,36,29],[38,1,38,2],[38,16,38,29],[31,1,31,2],[31,3,31,5],[31,6,31,9],[31,16,31,29],[32,16,32,29],[33,16,33,29],[29,1,29,2],[29,3,29,5],[29,6,29,9],[29,16,29,29],[30,1,30,2],[30,3,30,5],[30,6,30,9],[30,16,30,29],[27,1,27,2],[27,16,27,29],[28,1,28,2],[28,3,28,5],[28,6,28,9],[28,16,28,29],[24,1,26,2],[24,16,24,29],[25,3,25,9],[25,10,25,12],[25,16,25,29],[26,3,26,9],[26,10,26,12],[26,16,26,29],[21,1,21,3],[21,4,21,9],[21,10,21,12],[21,16,21,29],[23,1,23,2],[23,16,23,29],[19,1,19,3],[19,4,19,12],[19,16,19,29],[20,1,20,2],[20,3,20,6],[20,7,20,8],[20,9,20,12],[20,16,20,29],[16,1,16,2],[16,8,16,9],[16,16,16,29],[17,1,17,8],[17,9,18,12],[17,16,17,29],[18,1,18,8],[18,16,18,29],[12,3,12,12],[12,15,13,15],[12,16,13,29],[14,1,14,2],[14,16,14,29],[15,1,15,2],[15,3,16,7],[15,8,15,9],[15,10,16,12],[15,16,15,29],[8,1,9,2],[8,3,8,12],[8,16,8,29],[9,3,9,12],[9,16,9,29],[10,1,12,2],[10,3,10,12],[10,16,10,29],[11,3,11,12],[11,16,11,29],[6,16,6,29],[7,1,7,2],[7,3,7,6],[7,7,7,8],[7,9,7,12],[7,16,7,29],[4,15,4,22],[5,1,5,2],[5,3,5,4],[5,5,5,6],[5,10,5,12],[5,16,5,29],[3,1,3,2],[4,1,4,2],[4,3,4,4],[4,5,4,6],[4,7,6,8],[4,10,4,12],[6,1,6,2],[6,3,6,6],[6,9,6,12],[0,1,1,4],[0,5,0,6],[0,7,0,12],[0,15,1,19],[0,21,0,23],[0,24,0,28],[1,5,1,6],[1,21,1,23],[1,24,1,28]]}
[null,"新規入場者教育アンケート",null,null,null,"実施年月日",null,"R　　　年　　　　月　　　　日",null,null,null,null,null,null,null,"新規入場者教育実施記録",null,null,null,null,null,"教育実施日",null,null,"R　　年　　　月　　　日"]
[null,null,null,null,null,"作業所名",null,{"$f":"IF(ISBLANK(共通情報入力表!D7),\"\",共通情報入力表!D7)","v":""},null,null,null,null,"作業所",null,null,null,null,null,null,null,null,"教育実施者",null,null,"株式会社　山下技建　　○○　△△"]
[]
[null,"個人表"]
[null,"フリガナ",null,null,null,null,null,"生年月日",null,"昭和","年　　　月　　　日",null,null,null,null,"〔確認・制約事項〕"]
[null,"氏名",null,null,null,null,null,null,null,"平成","（　　　　　　歳）",null,null,null,null,"１","服装は作業に適したもの(長袖)とし、保護帽・安全靴・安全帯は正しく着用します。"]
[null,"血液型",null,"Ａ・Ｂ・Ｏ・ＡＢ型",null,null,null,null,null,"※18歳未満は危険作業できません",null,null,null,null,null,"２","高所作業(2ｍ以上)や墜落の危険がある作業では必ず墜落制止用器具を使用します。"]
[null,"職種",null,null,null,null,null,"経験年数",null,"年　　",null,null,null,null,null,"３","朝礼には遅刻せず、必ず参加します。"]
[null,"住所・連絡先",null,"住所：　　　　　　　　　　　　　　　",null,null,null,null,null,null,null,null,null,null,null,"４","作業開始前に安全ミーティングを行い作業に関する注意事項を確認します。"]
[null,null,null,"自宅：　　　（　　　）　　　　　　　携帯：　　　（　　　）",null,null,null,null,null,null,null,null,null,null,null,"５","使用機械・器具の始業前点検は必ず実施します。"]
[null,"緊急時連絡先",null,"住所：　　　　　　　　　　　　　　　",null,null,null,null,null,null,null,null,null,null,null,"６","資格の必要な作業では、免許証・修了証は常時携帯します。"]
[null,null,null,"氏名：　　　　　　　　　　　　　　　続柄：",null,null,null,null,null,null,null,null,null,null,null,"７","吊荷下や立入禁止区域には絶対に入りません。"]
[null,null,null,"自宅：　　　（　　　）　　　　　　　携帯：　　　（　　　）",null,null,null,null,null,null,null,null,null,null,null,"８","指定場所以外での喫煙は行いません。"]
[]
[null,"雇用情報",null,null,null,null,null,null,null,null,null,null,null,null,null,"９","くわえ煙草で作業は行いません。"]
[null,"あなたの",null,"第　　　次協力会社",null,null,null,null,"雇入教育",null,"　　年月日",null,null,null,null,"１０","休憩所・トイレ等の共同施設はきれいに使用します。"]
[null,"所属会社名",null,null,null,null,null,null,"実施日",null,null,null,null,null,null,"１１","指導・指示は素直に聞き、改善します。"]
[null,"あなたの所属する会社で事前に送り出し教育を受けましたか？",null,null,null,null,null,null,null,"（　受けた　・　受けていない　）",null,null,null,null,null,"１２","指導・指示は素直に聞き、改善し、ルールを守り、安全作業に努めます。"]
[null,"※受けていない場合は、作業開始前までに所属する会社の職長より必ず受けること。",null,null,null,null,null,null,null,null,null,null,null,null,null,"１３","作業中に負傷した場合は、軽微なケガであっても、職長を通じ速やかに報告します。"]
[null,"送り出し教育実施者",null,null,"事業者　・　事業者に代わる工事担当管理者　・　職長　・　安全衛生責任者",null,null,null,null,null,null,null,null,null,null,"１４","近道行為等の不安全行動は行いません。"]
[null,"実施日",null,"年　　　月　　　日　　",null,null,null,"実施者氏名",null,null,null,null,null,null,null,"１５","施工図・施工要領所を遵守し作業します。"]
[null,"反社会的勢力との関係",null,null,"あなたは、反社会的勢力等に属していますか。",null,null,null,null,null,"はい　・　いいえ",null,null,null,null,"１６","一作業が完了した時点で報告を行います。"]
[]
[null,"健康状態",null,null,null,null,null,null,null,null,null,null,null,null,null,"１７","毎日の安全・工程打合せには必ず出席します。(職長・安全衛生責任者)"]
[null,"健康診断",null,"あなたは健康診断を受けましたか？　※年1回義務づけられています",null,null,null,null,null,null,null,null,null,null,null,"１８","現場内は常に整理整頓を行い、型枠材・丁張材等の釘じまいを徹底します。"]
[null,null,null,"１.受けた（　　　　　年　　　　　月）",null,null,null,null,null,null,"血圧",null,null,null,null,"１９","年少者・女性の就業制限業務について該当する作業は就業しません。"]
[null,null,null,"２.受けていない→理由（　　　　　　　　　　　　　）",null,null,null,null,null,null,"上　　　　～下　　　",null,null,null,null,"２０","１８歳未満のものは年少者就労報告書を提出します。"]
[null,null,null,"特殊健康診断を受けている方のみ記入して下さい",null,null,null,null,null,null,null,null,null,null,null,"２１","１６歳未満のものについては、保護者の承諾書を提出し、住民票等にて年齢を確認できるようにします。"]
[null,"特殊",null,"　・じん肺",null,null,"：　　　年　　　月　　　日",null,null,null,"結果：",null,null,null,null,"２２","事業主・一人親方で労災特別加入制度に未加入のものは入場しません。"]
[null,"健康診断",null,"　・有機溶剤",null,null,"：　　　年　　　月　　　日",null,null,null,"結果：",null,null,null,null,"２３","ヘルメットは飛墜兼用を使用し、氏名・血液型を貼り付けます。"]
[null,"（該当に○）",null,"　・振動病",null,null,"：　　　年　　　月　　　日",null,null,null,"結果：",null,null,null,null,"２４","暴力団等の反社会的勢力に関係または利益供与したことが判明した場合は、現場への入場を拒否されても一切申し立ては致しません。"]
[null,null,null,"　・その他（　　　　　）",null,null,"：　　　年　　　月　　　日",null,null,null,"結果：",null,null,null,null,"２５","近隣住民・施主等には礼儀正しく挨拶を行います。"]
[null,"現在の健康状態はいかがですか？（該当に○）",null,null,null,null,null,null,null,null,null,null,null,null,null,"２６","作業前に職長の指示をよく聞き、分からないことがあれば、分かるまで聞きます。"]
[null,"また、病気・ケガなどによる具合の悪いところはありますか？",null,null,null,null,null,null,null,null,null,null,null,null,null,"２７","作業中に他の作業員が不安全行動をおこなっていたら、注意します。"]
[null,"　良い　　・　　普通　　・　　悪い",null,null,null,null,null,null,null,null,null,null,null,null,null,"２８","重機を使用する際は、作業計画書に基づき作業所長と事前に打ち合わせを行います。"]
[null,"　病気（　有　・　無　）　→",null,null,null,"高血圧(160～90以上)　・　低血圧　・　難聴　・　腰痛",null,null,null,null,null,null,null,null,null,"２９","交通ルールを順守し、過積載・スピード違反・急な前後進等は行いません。"]
[null,"　その他（　　　　　　　　　　　　）　※作業に支障がある場合、職長に届け出てください",null,null,null,null,null,null,null,null,null,null,null,null,null,"３０","通行者・一般車両・住民を最優先とし、作業を行います。"]
[]
[null,"取得資格",null,null,null,null,null,null,null,null,null,null,null,null,null,"３１"]
[null,"免許・技能講習等資格（該当に○）"]
[null,"１.　（普通・中型・大型）　自動車運転免許",null,null,null,"２.　職長・安全衛生責任者教育修了者",null,null,null,"３.　移動式クレーン運転士（5ｔ以上・小型）"]
[null,"４.危険物取扱者免許（甲・乙・丙）第　　類",null,null,null,"５.地山掘削作業主任者",null,null,null,"６.土止め支保工作業主任者"]
[null,"７.型枠支保工作業主任者",null,null,null,"８.足場組立等作業主任者",null,null,null,"９.ガス溶接作業主任者"]
[null,"１０.酸素欠乏危険作業主任者（１種・２種）",null,null,null,"１１.木材加工用機械作業主任者",null,null,null,"１２.玉掛技能１ｔ（以上・未満）",null,null,null,null,null,null,null,null,null,null,null,null,null,null,null,null,"確　　認　　欄"]
[null,"１３.車両系建設機械[整地・運搬]３ｔ（以上・未満）",null,null,null,"１４.車両系建設機械[基礎工事用]３ｔ（以上・未満）",null,null,null,"１５.車両系建設機械[コンクリート打設用]",null,null,null,null,null,"　　私は新規入場者教育を受けました。ついては当作業所のルール・",null,null,null,null,null,null,null,null,null,null,"統括安全衛生責任者",null,"安全担当者"]
[null,"１６.車両系建設機械[解体用]３ｔ（以上・未満）",null,null,null,"１７.車両系建設機械[締固め用]",null,null,null,"１８.不整地運搬車１ｔ（以上・未満）",null,null,null,null,null,"　安全規則に従って作業を行い、災害防止に努め自分の身の安全を"]
[null,"１９.ﾎﾞｰﾘﾝｸﾞﾏｼﾝ運転業務",null,null,null,"２０.ｼｮﾍﾞﾙﾛｰﾀﾞｰ運転１ｔ（以上・未満）",null,null,null,"２１.研削砥石取替等の業務",null,null,null,null,null,"　守ります。"]
[null,"２２.アーク溶接の業務",null,null,null,"２３.鉄筋ガス圧接技能",null,null,null,"２４.土木施工管理技士（1級・2級）",null,null,null,null,null,null,"自筆署名"]
[null,"２５.建設機械施工管理技士（1級・2級）",null,null,null,"２６.その他"]
[null,null,null,null,null,null,null,null,null,null,null,null,"裏面へ⇒",null,null,null,null,null,null,null,null,null,null,null,null,null,null,"株式会社　山下技建"]

{"sheet":"※新規入場者調査票見本","index":21,"n_rows":50,"n_cols":28,"rows_kept":50,"cut":false,"hidden":false,"merged":[[49,26,49,28],[47,0,47,3],[47,4,47,7],[47,8,47,11],[47,16,47,20],[48,0,48,3],[48,4,48,7],[48,8,48,11],[45,0,45,3],[45,4,45,7],[45,8,45,11],[45,14,45,24],[45,25,48,26],[45,27,48,28],[46,0,46,3],[46,4,46,7],[46,8,46,11],[46,14,46,24],[43,0,43,3],[43,4,43,7],[43,8,43,11],[43,25,43,28],[44,0,44,3],[44,4,44,7],[44,8,44,11],[44,14,44,24],[44,25,44,26],[44,27,44,28],[41,0,41,3],[41,4,41,7],[41,8,41,11],[41,15,41,28],[42,0,42,3],[42,4,42,7],[42,8,42,11],[39,0,39,11],[39,15,39,28],[40,0,40,3],[40,4,40,7],[40,8,40,11],[40,15,40,28],[34,15,34,28],[35,4,35,11],[35,15,35,28],[36,0,36,11],[36,15,36,28],[38,0,38,1],[38,15,38,28],[31,0,31,1],[31,2,31,4],[31,5,31,8],[31,15,31,28],[32,15,32,28],[33,15,33,28],[29,0,29,1],[29,2,29,4],[29,5,29,8],[29,15,29,28],[30,0,30,1],[30,2,30,4],[30,5,30,8],[30,15,30,28],[27,0,27,1],[27,15,27,28],[28,0,28,1],[28,2,28,4],[28,5,28,8],[28,15,28,28],[24,0,26,1],[24,15,24,28],[25,2,25,8],[25,9,25,11],[25,15,25,28],[26,2,26,8],[26,9,26,11],[26,15,26,28],[21,0,21,2],[21,3,21,8],[21,9,21,11],[21,15,21,28],[23,0,23,1],[23,15,23,28],[19,0,19,2],[19,3,19,11],[19,15,19,28],[20,0,20,1],[20,2,20,5],[20,6,20,7],[20,8,20,11],[20,15,20,28],[16,0,16,1],[16,7,16,8],[16,15,16,28],[17,0,17,7],[17,8,18,11],[17,15,17,28],[18,0,18,7],[18,15,18,28],[12,2,12,11],[12,14,13,14],[12,15,13,28],[14,0,14,1],[14,15,14,28],[15,0,15,1],[15,2,16,6],[15,7,15,8],[15,9,16,11],[15,15,15,28],[8,0,9,1],[8,2,8,11],[8,15,8,28],[9,2,9,11],[9,15,9,28],[10,0,12,1],[10,2,10,11],[10,15,10,28],[11,2,11,11],[11,15,11,28],[6,15,6,28],[7,0,7,1],[7,2,7,5],[7,6,7,7],[7,8,7,11],[7,15,7,28],[4,14,4,21],[5,0,5,1],[5,2,5,3],[5,4,5,5],[5,9,5,11],[5,15,5,28],[3,0,3,1],[4,0,4,1],[4,2,4,3],[4,4,4,5],[4,6,6,7],[4,9,4,11],[6,0,6,1],[6,2,6,5],[6,8,6,11],[0,0,1,3],[0,4,0,5],[0,6,0,11],[0,14,1,18],[0,20,0,22],[0,23,0,27],[1,4,1,5],[1,6,1,11],[1,20,1,22],[1,23,1,27]]}
["新規入場者教育アンケート",null,null,null,"実施年月日",null,"R　○年　○月　○日",null,null,null,null,null,null,null,"新規入場者教育実施記録",null,null,null,null,null,"教育実施日",null,null,"年　　　　月　　　日　　"]
[null,null,null,null,"作業所名",null,"第○○号　○○工事　作業所",null,null,null,null,null,null,null,null,null,null,null,null,null,"教育実施者",null,null,"株式会社　山下技建　　渡邉　宏光"]
[]
["個人表"]
["フリガナ",null,"ヤマシタ",null,"タロウ",null,"生年月日",null,"昭和","○年　　○月　　○日",null,null,null,null,"〔確認・制約事項〕"]
["氏名",null,"山下",null,"太郎",null,null,null,"平成","（　　　○○歳）",null,null,null,null,"１","服装は作業に適したもの(長袖)とし、保護帽・安全靴・安全帯は正しく着用します。"]
["血液型",null,"Ａ・Ｂ・Ｏ・ＡＢ型",null,null,null,null,null,"※18歳未満は危険作業できません",null,null,null,null,null,"２","高所作業(2ｍ以上)や墜落の危険がある作業では必ず安全帯を使用します。"]
["職種",null,"例：土工　オペレーター　等",null,null,null,"経験年数",null,"１０年　　",null,null,null,null,null,"３","朝礼には遅刻せず、必ず参加します。"]
["住所・連絡先",null,"住所：新潟市北区浦木2519",null,null,null,null,null,null,null,null,null,null,null,"４","作業開始前に安全ミーティングを行い作業に関する注意事項を確認します。"]
[null,null,"自宅：025(388)2519　　携帯：090(1234)5678",null,null,null,null,null,null,null,null,null,null,null,"５","使用機械・器具の始業前点検は必ず実施します。"]
["緊急時連絡先",null,"住所：新潟市北区内沼○○",null,null,null,null,null,null,null,null,null,null,null,"６","資格の必要な作業では、免許証・修了証は常時携帯します。"]
[null,null,"氏名：山下　花子　　　　　　続柄：妻",null,null,null,null,null,null,null,null,null,null,null,"７","吊荷下や立入禁止区域には絶対に入りません。"]
[null,null,"自宅：025(388)2519　　携帯：090(9876)5432",null,null,null,null,null,null,null,null,null,null,null,"８","手摺等の安全施設は勝手に取り外したりしません。やむを得ない場合は、事前に作業所長の許可を受け、事後速やかに復旧します。"]
[]
["雇用情報",null,null,null,null,null,null,null,null,null,null,null,null,null,"９","指定場所以外での喫煙は行いません。"]
["あなたの",null,"第　1　次協力会社　(株)山下技建",null,null,null,null,"雇入教育",null,"○○年○月○日",null,null,null,null,"１０","くわえ煙草で作業は行いません。"]
["所属会社名",null,null,null,null,null,null,"実施日",null,null,null,null,null,null,"１１","休憩所・トイレ等の共同施設はきれいに使用します。"]
["あなたの所属する会社で事前に送り出し教育を受けましたか？",null,null,null,null,null,null,null,"（　受けた　・　受けていない　）",null,null,null,null,null,"１２","指導・指示は素直に聞き、改善します。"]
["※受けていない場合は、作業開始前までに所属する会社の職長より必ず受けること。",null,null,null,null,null,null,null,null,null,null,null,null,null,"１３","ルールを守り、安全作業に努めます。"]
["送り出し教育実施者",null,null,"事業者　・　事業者に代わる工事担当管理者　・　職長　・　安全衛生責任者",null,null,null,null,null,null,null,null,null,null,"１４","作業中に負傷した場合は、軽微なケガであっても、職長を通じ速やかに報告します。"]
["実施日",null,"○○年　　○月　　○日　　",null,null,null,"実施者氏名",null,"山下　一郎",null,null,null,null,null,"１５","近道行為等の不安全行動は行いません。"]
["反社会的勢力との関係",null,null,"あなたは、反社会的勢力等に属していますか。",null,null,null,null,null,"はい　・　いいえ",null,null,null,null,"１６","足場の作業前点検の実施・報告を行います。"]
[]
["健康状態",null,null,null,null,null,null,null,null,null,null,null,null,null,"１７","施工図・施工要領書を遵守し作業します。"]
["健康診断",null,"あなたは健康診断を受けましたか？　※年1回義務づけられています",null,null,null,null,null,null,null,null,null,null,null,"１８","一作業が完了した時点で報告を行います。"]
[null,null,"１.受けた（　　　○○年　　　　○月）",null,null,null,null,null,null,"血圧",null,null,null,null,"１９","毎日の安全・工程打合せには必ず出席します。(職長・安全衛生責任者)"]
[null,null,"２.受けていない→理由（　　　　　　　　　　　　　）",null,null,null,null,null,null,"上　　　　～下　　　",null,null,null,null,"２０","現場内は常に整理整頓を行い、型枠材・丁張材等の釘じまいを徹底します。"]
[null,null,"特殊健康診断を受けている方のみ記入して下さい",null,null,null,null,null,null,null,null,null,null,null,"２１","年少者・女性の就業制限業務について該当する作業は就業しません。"]
["特殊",null,"　・じん肺",null,null,"：　　　年　　　月　　　日",null,null,null,"結果：",null,null,null,null,"２２","１８歳未満のものは年少者就労報告書を提出します。"]
["健康診断",null,"　・有機溶剤",null,null,"：　　　年　　　月　　　日",null,null,null,"結果：",null,null,null,null,"２３","１６歳未満のものについては、保護者の承諾書を提出し、住民票等にて年齢を確認できるようにします。"]
["（該当に○）",null,"　・振動病",null,null,"：　　　年　　　月　　　日",null,null,null,"結果：",null,null,null,null,"２４","事業主・一人親方で労災特別加入制度に未加入のものは入場しません。"]
[null,null,"　・その他（　　　　　）",null,null,"：　　　年　　　月　　　日",null,null,null,"結果：",null,null,null,null,"２５","ヘルメットは飛墜兼用を使用し、氏名・血液型を貼り付けます。"]
["現在の健康状態はいかがですか？（該当に○）",null,null,null,null,null,null,null,null,null,null,null,null,null,"２６","暴力団等の反社会的勢力に関係または利益供与したことが判明した場合は、現場への入場を拒否されても一切申し立ては致しません。"]
["また、病気・ケガなどによる具合の悪いところはありますか？",null,null,null,null,null,null,null,null,null,null,null,null,null,"２７","近隣住民・施主等には礼儀正しく挨拶を行います。"]
["　良い　　・　　普通　　・　　悪い",null,null,null,null,null,null,null,null,null,null,null,null,null,"２８","作業前に職長の指示をよく聞き、分からないことがあれば、分かるまで聞きます。"]
["　病気（　有　・　無　）　→",null,null,null,"高血圧(160～90以上)　・　低血圧　・　難聴　・　腰痛",null,null,null,null,null,null,null,null,null,"２９","作業中に他の作業員が不安全行動をおこなっていたら、注意します。"]
["　その他（　　　　　　　　　　　　）　※作業に支障がある場合、職長に届け出てください",null,null,null,null,null,null,null,null,null,null,null,null,null,"３０","重機を使用する際は、作業計画書に基づき作業所長と事前に打ち合わせを行います。"]
[]
["取得資格",null,null,null,null,null,null,null,null,null,null,null,null,null,"３１","交通ルールを順守し、過積載・スピード違反・急な前後進等は行いません。"]
["免許・技能講習等資格（該当に○）",null,null,null,null,null,null,null,null,null,null,null,null,null,"３２","通行者・一般車両・住民を最優先とし、作業を行います。"]
["１.　（普通・中型・大型）　自動車運転免許",null,null,null,"２.　職長・安全衛生責任者教育修了者",null,null,null,"３.　移動式クレーン運転士（5ｔ以上・小型）"]
["４.危険物取扱者免許（甲・乙・丙）第　　類",null,null,null,"５.地山掘削作業主任者",null,null,null,"６.土止め支保工作業主任者"]
["７.型枠支保工作業主任者",null,null,null,"８.足場組立等作業主任者",null,null,null,"９.ガス溶接作業主任者"]
["１０.酸素欠乏危険作業主任者（１種・２種）",null,null,null,"１１.木材加工用機械作業主任者",null,null,null,"１２.玉掛技能１ｔ（以上・未満）",null,null,null,null,null,null,null,null,null,null,null,null,null,null,null,null,"確　　認　　欄"]
["１３.車両系建設機械[整地・運搬]３ｔ（以上・未満）",null,null,null,"１４.車両系建設機械[基礎工事用]３ｔ（以上・未満）",null,null,null,"１５.車両系建設機械[コンクリート打設用]",null,null,null,null,null,"　　私は新規入場者教育を受けました。ついては当作業所のルール・",null,null,null,null,null,null,null,null,null,null,"統括安全衛生責任者",null,"安全担当者"]
["１６.車両系建設機械[解体用]３ｔ（以上・未満）",null,null,null,"１７.車両系建設機械[締固め用]",null,null,null,"１８.不整地運搬車１ｔ（以上・未満）",null,null,null,null,null,"　安全規則に従って作業を行い、災害防止に努め自分の身の安全を"]
["１９.ﾎﾞｰﾘﾝｸﾞﾏｼﾝ運転業務",null,null,null,"２０.ｼｮﾍﾞﾙﾛｰﾀﾞｰ運転１ｔ（以上・未満）",null,null,null,"２１.研削砥石取替等の業務",null,null,null,null,null,"　守ります。"]
["２２.アーク溶接の業務",null,null,null,"２３.鉄筋ガス圧接技能",null,null,null,"２４.土木施工管理技士（1級・2級）",null,null,null,null,null,null,"自筆署名","山下　太郎"]
["２５.建設機械施工管理技士（1級・2級）",null,null,null,"２６.その他"]
[null,null,null,null,null,null,null,null,null,null,null,"裏面へ⇒",null,null,null,null,null,null,null,null,null,null,null,null,null,null,"株式会社　山下技建"]

{"sheet":"12.送り出し教育実施報告書","index":22,"n_rows":124,"n_cols":59,"rows_kept":124,"cut":false,"hidden":false,"merged":[[123,2,123,9],[123,10,123,11],[123,12,123,60],[125,2,125,36],[17,26,18,30],[17,9,18,25],[117,12,120,26],[117,27,120,28],[117,29,120,43],[117,44,120,45],[117,46,120,60],[122,2,122,9],[122,10,122,11],[122,12,122,34],[122,35,122,36],[122,37,122,60],[109,46,112,60],[112,2,115,9],[113,10,116,11],[113,12,116,26],[113,27,116,28],[113,29,116,43],[113,44,116,45],[113,46,116,60],[116,2,119,9],[117,10,120,11],[105,27,108,28],[105,29,108,43],[105,44,108,45],[105,46,108,60],[108,2,110,9],[109,10,112,11],[109,12,112,26],[109,27,112,28],[109,29,112,43],[109,44,112,45],[96,50,99,60],[101,2,107,9],[101,10,104,11],[101,12,104,26],[101,27,104,28],[101,29,104,43],[101,44,104,45],[101,46,104,60],[105,10,108,11],[105,12,108,26],[96,2,99,9],[96,10,99,15],[96,16,99,29],[96,30,99,34],[96,35,99,44],[96,45,99,49],[84,16,86,60],[87,13,89,15],[87,16,89,60],[90,13,92,15],[90,16,92,60],[93,13,95,15],[93,16,95,60],[72,10,95,12],[72,13,74,15],[72,16,74,60],[75,13,77,15],[75,16,77,60],[78,13,80,15],[78,16,80,60],[81,13,83,15],[81,16,83,60],[84,13,86,15],[61,13,63,15],[61,16,63,60],[64,13,66,15],[64,16,66,60],[67,13,71,15],[67,16,69,60],[70,16,71,60],[52,16,54,60],[53,2,55,9],[55,13,57,15],[55,16,57,60],[58,13,60,15],[58,16,60,60],[43,2,49,9],[43,13,45,15],[43,16,45,60],[46,13,48,15],[46,16,48,60],[49,10,66,12],[49,13,51,15],[49,16,51,60],[50,2,52,9],[52,13,54,15],[31,2,32,29],[33,2,35,60],[37,2,39,9],[37,10,39,60],[40,2,42,9],[40,10,42,60],[25,38,26,44],[25,46,26,59],[27,38,28,44],[29,6,30,31],[29,36,30,44],[29,49,30,57],[29,58,30,59],[17,2,18,7],[21,2,22,7],[21,15,22,26],[21,29,22,30],[0,49,0,60],[2,43,7,46],[2,47,7,60],[3,2,5,15],[3,17,5,22],[10,15,13,46]]}
[]
[]
[null,null,null,null,null,null,null,null,null,null,null,null,null,null,null,null,null,null,null,null,null,null,null,null,null,null,null,null,null,null,null,null,null,null,null,null,null,null,null,null,null,null,null,"元　請確認欄"]
[]
[]
[]
[]
[]
[]
[]
[null,null,null,null,null,null,null,null,null,null,null,null,null,null,null,"送り出し教育実施報告書"]
[]
[]
[]
[]
[]
[]
[null,null,"作業所名",null,null,null,null,null,null,{"$f":"IF(ISBLANK(共通情報入力表!D7),\"\",共通情報入力表!D7)","v":""},null,null,null,null,null,null,null,null,null,null,null,null,null,null,null,null,"作業所"]
[]
[]
[]
[null,null,"所長",null,null,null,null,null,null,null,null,null,null,null,null,{"$f":"IF(ISBLANK(共通情報入力表!D10),\"\",共通情報入力表!D10)","v":""},null,null,null,null,null,null,null,null,null,null,null,null,null,"殿"]
[]
[]
[]
[null,null,null,null,null,null,null,null,null,null,null,null,null,null,null,null,null,null,null,null,null,null,null,null,null,null,null,null,null,null,null,null,null,null,null,null,null,null,"雇用会社名"]
[]
[null,null,null,null,null,null,null,null,null,null,null,null,null,null,null,null,null,null,null,null,null,null,null,null,null,null,null,null,null,null,null,null,null,null,null,null,null,null,"（  ）次"]
[]
[null,null,null,null,null,null,"※ 雇用会社ごとに報告してください。",null,null,null,null,null,null,null,null,null,null,null,null,null,null,null,null,null,null,null,null,null,null,null,null,null,null,null,null,null,"事業主又は代行者",null,null,null,null,null,null,null,null,null,"　",null,null,null,null,null,null,null,null,null,null,null,"印"]
[]
[]
[]
[null,null,"　下記の通り、「送り出し教育」を実施しましたので報告いたします。"]
[]
[]
[]
[null,null,"実　施　日",null,null,null,null,null,null,null,"　　　年　月　　日　　【時間】　（　　　：　　～　　：　　）"]
[]
[]
[null,null,"実 施 場 所"]
[]
[]
[null,null,"内　　　容",null,null,null,null,null,null,null,null,null,null,1,null,null,"作業所の概要と規則"]
[]
[]
[null,null,null,null,null,null,null,null,null,null,null,null,null,2,null,null,"担当工事の内容、範囲、工事期間等"]
[]
[]
[null,null,null,null,null,null,null,null,null,null,"一般的な確認事項",null,null,3,null,null,"職長、安全衛生責任者の選任と周知（管理体制・指揮命令系統）"]
[null,null," 実施項目に"]
[]
[null,null,null,null,null,null,null,null,null,null,null,null,null,4,null,null,"作業主任者の選任（工区毎）と職務の再確認"]
[null,null,"　　　○印"]
[]
[null,null,null,null,null,null,null,null,null,null,null,null,null,5,null,null,"資格が必要な業務の確認と有資格者の選任・周知"]
[]
[]
[null,null,null,null,null,null,null,null,null,null,null,null,null,6,null,null,"高齢者、年少者、未熟練作業者の確認と適正配置"]
[]
[]
[null,null,null,null,null,null,null,null,null,null,null,null,null,7,null,null,"雇用形態の確認（特に一人親方、中小事業主等の労災保険特別加入の確認）"]
[]
[]
[null,null,null,null,null,null,null,null,null,null,null,null,null,8,null,null,"持込機械等の事前点検と作業所への届出"]
[]
[]
[null,null,null,null,null,null,null,null,null,null,null,null,null,9,null,null,"上記以外で実施する教育事項"]
[]
[]
[null,null,null,null,null,null,null,null,null,null,null,null,null,null,null,null,"（健康診断の実施及び健康管理について)　　　　　　　　　　　　　　　　　　　　　　　　　　　　　　　　　　　　　）"]
[]
[null,null,null,null,null,null,null,null,null,null,"安衛則（第三十五号）",null,null,"一",null,null,"機械等、原材料等の危険性又は有害性及びこれらの取扱方法に関すること。"]
[]
[]
[null,null,null,null,null,null,null,null,null,null,null,null,null,"二",null,null,"安全装置、有害物抑制装置又は保護具の性能及びこれらの取扱方法に関すること。"]
[]
[]
[null,null,null,null,null,null,null,null,null,null,null,null,null,"三",null,null,"作業手順に関すること。"]
[]
[]
[null,null,null,null,null,null,null,null,null,null,null,null,null,"四",null,null,"作業開始時の点検に関すること。"]
[]
[]
[null,null,null,null,null,null,null,null,null,null,null,null,null,"五",null,null,"当該業務に関して発生するおそれのある疾病の原因及び予防に関すること。"]
[]
[]
[null,null,null,null,null,null,null,null,null,null,null,null,null,"六",null,null,"整理、整頓及び清潔の保持に関すること。"]
[]
[]
[null,null,null,null,null,null,null,null,null,null,null,null,null,"七",null,null,"事故時等における応急措置及び退避に関すること。"]
[]
[]
[null,null,null,null,null,null,null,null,null,null,null,null,null,"八",null,null,"前各号に掲げるもののほか、当該業務に関する安全又は衛生の為に必要な事項。"]
[]
[]
[null,null,"実　施　者",null,null,null,null,null,null,null,"会社名",null,null,null,null,null,null,null,null,null,null,null,null,null,null,null,null,null,null,null,"役　職",null,null,null,null,null,null,null,null,null,null,null,null,null,null,"氏　名"]
[]
[]
[]
[]
[null,null,"受講者氏名",null,null,null,null,null,null,null,1,null,null,null,null,null,null,null,null,null,null,null,null,null,null,null,null,6,null,null,null,null,null,null,null,null,null,null,null,null,null,null,null,null,11]
[]
[]
[]
[null,null,null,null,null,null,null,null,null,null,2,null,null,null,null,null,null,null,null,null,null,null,null,null,null,null,null,7,null,null,null,null,null,null,null,null,null,null,null,null,null,null,null,null,12]
[]
[]
[null,null," （受講者自筆）"]
[null,null,null,null,null,null,null,null,null,null,3,null,null,null,null,null,null,null,null,null,null,null,null,null,null,null,null,8,null,null,null,null,null,null,null,null,null,null,null,null,null,null,null,null,13]
[]
[]
[]
[null,null,null,null,null,null,null,null,null,null,4,null,null,null,null,null,null,null,null,null,null,null,null,null,null,null,null,9,null,null,null,null,null,null,null,null,null,null,null,null,null,null,null,null,14]
[]
[]
[null,null,"※欄不足の場合は別紙"]
[null,null,null,null,null,null,null,null,null,null,5,null,null,null,null,null,null,null,null,null,null,null,null,null,null,null,null,10,null,null,null,null,null,null,null,null,null,null,null,null,null,null,null,null,15]
[]
[]
[]
[]
[null,null,"教 育 資 料",null,null,null,null,null,null,null,1,null,"作業所からの「新規入場者「送り出し・受入」教育資料」",null,null,null,null,null,null,null,null,null,null,null,null,null,null,null,null,null,null,null,null,null,null,2,null,"送り出し教育教本"]
[null,null,"　 該当に○印",null,null,null,null,null,null,null,3,null,"その他(　　　　　　　)"]

{"sheet":"※送り出し教育実施報告書見本","index":23,"n_rows":125,"n_cols":58,"rows_kept":125,"cut":false,"hidden":false,"merged":[[124,1,124,8],[124,9,124,10],[124,11,124,59],[126,1,126,35],[118,11,121,25],[118,26,121,27],[118,28,121,42],[118,43,121,44],[118,45,121,59],[123,11,123,33],[123,34,123,35],[123,36,123,59],[110,45,113,59],[113,1,116,8],[114,9,117,10],[114,11,117,25],[114,26,117,27],[114,28,117,42],[114,43,117,44],[114,45,117,59],[117,1,120,8],[118,9,121,10],[109,1,111,8],[110,9,113,10],[110,11,113,25],[110,26,113,27],[110,28,113,42],[110,43,113,44],[102,45,105,59],[106,9,109,10],[106,11,109,25],[106,26,109,27],[106,28,109,42],[106,43,109,44],[106,45,109,59],[102,1,108,8],[102,9,105,10],[102,11,105,25],[102,26,105,27],[102,28,105,42],[102,43,105,44],[91,15,93,59],[94,12,96,14],[94,15,96,59],[97,1,100,8],[97,9,100,14],[97,15,100,28],[97,29,100,33],[97,34,100,43],[97,44,100,48],[97,49,100,59],[76,15,78,59],[79,12,81,14],[79,15,81,59],[82,12,84,14],[82,15,84,59],[85,12,87,14],[85,15,87,59],[62,15,64,59],[65,12,67,14],[65,15,67,59],[68,12,72,14],[68,15,70,59],[71,15,72,59],[44,1,50,8],[44,12,46,14],[44,15,46,59],[47,12,49,14],[47,15,49,59],[50,9,67,11],[50,12,52,14],[50,15,52,59],[51,1,53,8],[53,12,55,14],[32,1,33,28],[34,1,36,59],[38,1,40,8],[38,9,40,59],[41,1,43,8],[41,9,43,59],[123,1,123,8],[123,9,123,10],[11,14,14,45],[17,8,18,20],[17,22,18,29],[25,37,25,43],[25,45,25,58],[26,37,27,43],[73,9,96,11],[73,12,75,14],[73,15,75,59],[76,12,78,14],[88,12,90,14],[88,15,90,59],[91,12,93,14],[59,12,61,14],[59,15,61,59],[62,12,64,14],[53,15,55,59],[54,1,56,8],[56,12,58,14],[56,15,58,59],[30,5,31,30],[30,35,31,43],[30,48,31,56],[30,57,31,58],[26,45,27,58],[28,37,29,43],[17,1,18,6],[21,1,22,6],[21,14,22,25],[21,28,22,29],[0,48,0,59],[2,42,7,45],[2,46,7,59],[3,1,5,14],[3,16,5,21]]}
[]
[]
[null,null,null,null,null,null,null,null,null,null,null,null,null,null,null,null,null,null,null,null,null,null,null,null,null,null,null,null,null,null,null,null,null,null,null,null,null,null,null,null,null,null,"元　請確認欄"]
[null,null,null,null,null,null,null,null,null,null,null,null,null,null,null,null,"（記載例）"]
[]
[]
[]
[]
[]
[]
[]
[null,null,null,null,null,null,null,null,null,null,null,null,null,null,"送り出し教育実施報告書"]
[]
[]
[]
[]
[]
[null,"作業所名",null,null,null,null,null,null,"丸の内ビル新築",null,null,null,null,null,null,null,null,null,null,null,null,null,"工事 作業所"]
[]
[]
[]
[null,"所長",null,null,null,null,null,null,null,null,null,null,null,null,"夏　川　　二　郎",null,null,null,null,null,null,null,null,null,null,null,null,null,"殿"]
[]
[]
[]
[]
[null,null,null,null,null,null,null,null,null,null,null,null,null,null,null,null,null,null,null,null,null,null,null,null,null,null,null,null,null,null,null,null,null,null,null,null,null,"雇用会社名",null,null,null,null,null,null,null,"㈱山田工務店"]
[]
[null,null,null,null,null,null,null,null,null,null,null,null,null,null,null,null,null,null,null,null,null,null,null,null,null,null,null,null,null,null,null,null,null,null,null,null,null,"（二）次"]
[]
[null,null,null,null,null,"※ 雇用会社ごとに報告してください。",null,null,null,null,null,null,null,null,null,null,null,null,null,null,null,null,null,null,null,null,null,null,null,null,null,null,null,null,null,"事業主又は代行者",null,null,null,null,null,null,null,null,null,"　",null,null,"山田　一郎",null,null,null,null,null,null,null,null,"印"]
[]
[]
[]
[null,"　下記の通り、「送り出し教育」を実施しましたので報告いたします。"]
[]
[]
[]
[null,"実　施　日",null,null,null,null,null,null,null,"　　　20○○年○○月○○日　　【時間】　（　１４：００　　～　１７：００）"]
[]
[]
[null,"実 施 場 所",null,null,null,null,null,null,null,"　　　㈱山田工務店本社会議室（東京都練馬区田柄北１－２－３）"]
[]
[]
[null,"内　　　容",null,null,null,null,null,null,null,null,null,null,1,null,null,"作業所の概要と規則"]
[]
[]
[null,null,null,null,null,null,null,null,null,null,null,null,2,null,null,"担当工事の内容、範囲、工事期間等"]
[]
[]
[null,null,null,null,null,null,null,null,null,"一般的な確認事項",null,null,3,null,null,"職長、安全衛生責任者の選任と周知（管理体制・指揮命令系統）"]
[null," 実施項目に"]
[]
[null,null,null,null,null,null,null,null,null,null,null,null,4,null,null,"作業主任者の選任（工区毎）と職務の再確認"]
[null,"　　　○印"]
[]
[null,null,null,null,null,null,null,null,null,null,null,null,5,null,null,"資格が必要な業務の確認と有資格者の選任・周知"]
[]
[]
[null,null,null,null,null,null,null,null,null,null,null,null,6,null,null,"高齢者、年少者、未熟練作業者の確認と適正配置"]
[]
[]
[null,null,null,null,null,null,null,null,null,null,null,null,7,null,null,"雇用形態の確認（特に一人親方、中小事業主等の労災保険特別加入の確認）"]
[]
[]
[null,null,null,null,null,null,null,null,null,null,null,null,8,null,null,"持込機械等の事前点検と作業所への届出"]
[]
[]
[null,null,null,null,null,null,null,null,null,null,null,null,9,null,null,"上記以外で実施する教育事項"]
[]
[]
[null,null,null,null,null,null,null,null,null,null,null,null,null,null,null,"（健康診断の実施及び健康管理について)　　　　　　　　　　　　　　　　　　　　　　　　　　　　　　　　　　　　　）"]
[]
[null,null,null,null,null,null,null,null,null,"安衛則（第三十五号）",null,null,"一",null,null,"機械等、原材料等の危険性又は有害性及びこれらの取扱方法に関すること。"]
[]
[]
[null,null,null,null,null,null,null,null,null,null,null,null,"二",null,null,"安全装置、有害物抑制装置又は保護具の性能及びこれらの取扱方法に関すること。"]
[]
[]
[null,null,null,null,null,null,null,null,null,null,null,null,"三",null,null,"作業手順に関すること。"]
[]
[]
[null,null,null,null,null,null,null,null,null,null,null,null,"四",null,null,"作業開始時の点検に関すること。"]
[]
[]
[null,null,null,null,null,null,null,null,null,null,null,null,"五",null,null,"当該業務に関して発生するおそれのある疾病の原因及び予防に関すること。"]
[]
[]
[null,null,null,null,null,null,null,null,null,null,null,null,"六",null,null,"整理、整頓及び清潔の保持に関すること。"]
[]
[]
[null,null,null,null,null,null,null,null,null,null,null,null,"七",null,null,"事故時等における応急措置及び退避に関すること。"]
[]
[]
[null,null,null,null,null,null,null,null,null,null,null,null,"八",null,null,"前各号に掲げるもののほか、当該業務に関する安全又は衛生の為に必要な事項。"]
[]
[]
[null,"実　施　者",null,null,null,null,null,null,null,"会社名",null,null,null,null,null,"　　㈱　山田工務店",null,null,null,null,null,null,null,null,null,null,null,null,null,"役　職",null,null,null,null,"雇用管理責任者",null,null,null,null,null,null,null,null,null,"氏　名",null,null,null,null,"山田　三郎"]
[]
[]
[]
[]
[null,"受講者氏名",null,null,null,null,null,null,null,1,null,"　　間島　健児",null,null,null,null,null,null,null,null,null,null,null,null,null,null,6,null,null,null,null,null,null,null,null,null,null,null,null,null,null,null,null,11]
[]
[]
[]
[null,null,null,null,null,null,null,null,null,2,null,"　　秋田　一郎",null,null,null,null,null,null,null,null,null,null,null,null,null,null,7,null,null,null,null,null,null,null,null,null,null,null,null,null,null,null,null,12]
[]
[]
[null," （受講者自筆）"]
[null,null,null,null,null,null,null,null,null,3,null,"　　福島　四郎",null,null,null,null,null,null,null,null,null,null,null,null,null,null,8,null,null,null,null,null,null,null,null,null,null,null,null,null,null,null,null,13]
[]
[]
[]
[null,null,null,null,null,null,null,null,null,4,null,"　　岩手　二郎",null,null,null,null,null,null,null,null,null,null,null,null,null,null,9,null,null,null,null,null,null,null,null,null,null,null,null,null,null,null,null,14]
[]
[]
[null,"※欄不足の場合は別紙"]
[null,null,null,null,null,null,null,null,null,5,null,"　　山形　信一",null,null,null,null,null,null,null,null,null,null,null,null,null,null,10,null,null,null,null,null,null,null,null,null,null,null,null,null,null,null,null,15]
[]
[]
[]
[]
[null,"教 育 資 料",null,null,null,null,null,null,null,1,null,"作業所からの「新規入場者「送り出し・受入」教育資料」",null,null,null,null,null,null,null,null,null,null,null,null,null,null,null,null,null,null,null,null,null,null,2,null,"送り出し教育教本"]
[null,"　 該当に○印",null,null,null,null,null,null,null,3,null,"その他(作業手順書　　　　　　　)"]

{"sheet":"13.持込機械（車両系）","index":24,"n_rows":64,"n_cols":57,"rows_kept":64,"cut":false,"hidden":false,"merged":[[55,1,61,6],[37,7,38,14],[39,7,40,14],[49,18,50,19],[51,18,52,19],[35,7,36,11],[35,27,36,27],[35,28,36,29],[49,26,50,30],[49,24,50,25],[51,24,52,25],[51,26,52,30],[49,16,50,17],[43,5,44,6],[43,7,44,11],[41,7,42,14],[37,15,38,30],[39,15,40,30],[41,15,42,30],[45,7,46,11],[43,26,48,30],[47,4,48,6],[43,18,48,22],[37,2,42,5],[47,54,49,55],[4,34,4,44],[15,36,15,42],[16,47,16,53],[19,36,19,42],[11,34,27,34],[11,46,16,46],[1,24,1,30],[63,1,65,1],[16,17,17,20],[23,1,23,15],[23,16,23,30],[24,29,26,30],[24,16,26,28],[16,21,17,30],[49,12,50,15],[51,12,52,15],[51,16,52,17],[49,20,50,23],[51,20,52,23],[33,12,36,14],[62,21,62,30],[49,1,52,6],[53,1,54,6],[47,46,49,46],[47,53,49,53],[17,46,17,53],[20,36,20,42],[18,46,18,53],[20,46,20,53],[32,36,32,42],[46,46,46,53],[44,36,44,42],[30,36,30,42],[21,46,21,53],[22,46,22,53],[23,46,23,53],[23,36,23,42],[42,46,42,53],[40,46,40,53],[41,46,41,53],[36,46,36,53],[37,46,37,53],[38,46,38,53],[45,46,45,53],[34,36,34,42],[31,45,37,45],[17,36,17,42],[1,1,1,6],[3,9,3,17],[4,9,4,17],[3,18,4,19],[7,17,8,20],[7,5,8,14],[7,1,8,4],[2,56,2,58],[10,1,11,4],[4,56,4,60],[5,45,5,55],[6,55,7,55],[6,34,7,44],[8,34,8,44],[9,34,10,42],[27,1,28,6],[27,7,28,10],[27,11,28,14],[27,15,28,23],[28,27,28,30],[31,36,31,42],[5,34,5,44],[22,36,22,42],[19,46,19,53],[6,45,7,54],[24,46,24,53],[11,36,11,42],[13,36,13,42],[16,36,16,42],[21,36,21,42],[25,46,25,53],[26,46,26,53],[13,47,13,53],[15,47,15,53],[11,47,11,53],[12,47,12,53],[14,47,14,53],[18,36,18,42],[21,45,30,45],[16,35,24,35],[11,45,20,45],[47,34,49,34],[46,36,46,42],[43,45,46,45],[47,35,49,35],[42,35,46,35],[42,34,46,34],[38,45,42,45],[42,36,42,42],[33,35,41,35],[41,36,41,42],[36,36,36,42],[40,36,40,42],[33,36,33,42],[45,36,45,42],[12,36,12,42],[47,42,49,42],[47,43,49,44],[11,35,15,35],[14,36,14,42],[47,45,49,45],[44,46,44,53],[43,46,43,53],[43,36,43,42],[9,54,9,55],[9,45,10,53],[9,43,9,44],[8,45,8,55],[24,36,24,42],[26,36,26,42],[27,46,27,53],[39,46,39,53],[28,36,28,42],[32,46,32,53],[39,36,39,42],[37,36,37,42],[35,36,35,42],[33,46,33,53],[34,46,34,53],[29,36,29,42],[28,46,28,53],[29,46,29,53],[30,46,30,53],[35,46,35,53],[38,36,38,42],[31,46,31,53],[3,21,4,24],[62,12,62,20],[63,12,65,20],[62,1,62,11],[63,2,65,11],[29,2,32,5],[33,2,34,5],[29,27,32,30],[47,7,48,11],[45,5,46,6],[43,12,48,17],[35,2,36,5],[49,7,52,9],[49,10,50,11],[51,10,52,11],[63,28,65,30],[63,21,65,27],[33,24,34,30],[35,25,36,26],[27,27,27,30],[28,34,41,34],[43,23,48,25],[43,1,48,3],[43,4,46,4],[7,21,8,30],[10,17,10,20],[11,18,11,19],[25,36,25,42],[10,21,11,30],[13,21,14,29],[27,24,28,26],[13,30,14,30],[13,17,14,20],[19,1,21,30],[24,1,26,15],[28,35,32,35],[29,24,32,25],[29,26,32,26],[29,7,32,10],[29,11,32,14],[29,15,32,23],[10,13,11,14],[10,5,11,12],[33,7,34,11],[33,15,36,23],[25,35,27,35],[27,36,27,42]]}
[]
[null,"全建統一様式第9号",null,null,null,null,null,null,null,null,null,null,null,null,null,null,null,null,null,null,null,null,null,null,"　年　月　日"]
[]
[null,null,null,null,null,null,null,null,null,"移動式クレーン",null,null,null,null,null,null,null,null,"等",null,null,"使用届"]
[null,null,null,null,null,null,null,null,null,"車両系建設機械",null,null,null,null,null,null,null,null,null,null,null,null,null,null,null,null,null,null,null,null,null,null,null,null,"持込時の点検表",null,null,null,null,null,null,null,null,null,null,null,null,null,null,null,null,null,null,null,null,null,"機　械　名"]
[null,null,null,null,null,null,null,null,null,null,null,null,null,null,null,null,null,null,null,null,null,null,null,null,null,null,null,null,null,null,null,null,null,null,"所 有 会 社 名",null,null,null,null,null,null,null,null,null,null,"代　表　者　名"]
[null,null,null,null,null,null,null,null,null,null,null,null,null,null,null,null,null,null,null,null,null,null,null,null,null,null,null,null,null,null,null,null,null,null,null,null,null,null,null,null,null,null,null,null,null,null,null,null,null,null,null,null,null,null,null,"㊞"]
[null,"事業所の名称",null,null,null,{"$f":"IF(ISBLANK(共通情報入力表!D7),\"\",共通情報入力表!D7)","v":""},null,null,null,null,null,null,null,null,null,null,null,"一次会社名",null,null,null,{"$f":"IF(ISBLANK(共通情報入力表!D17),\"\",共通情報入力表!D17)","v":""}]
[null,null,null,null,null,null,null,null,null,null,null,null,null,null,null,null,null,null,null,null,null,null,null,null,null,null,null,null,null,null,null,null,null,null,"移動式クレーン等",null,null,null,null,null,null,null,null,null,null,"車両系建設機械等"]
[null,null,null,null,null,null,null,null,null,null,null,null,null,null,null,null,null,null,null,null,null,null,null,null,null,null,null,null,null,null,null,null,null,null,"点検事項",null,null,null,null,null,null,null,null,"点検結果",null,"点検事項",null,null,null,null,null,null,null,null,"点検結果"]
[null,"所長名",null,null,null,{"$f":"IF(ISBLANK(共通情報入力表!D10),\"\",共通情報入力表!D10)","v":""},null,null,null,null,null,null,null,"殿",null,null,null,"持込会社名",null,null,null,null,null,null,null,null,null,null,null,null,null,null,null,null,null,null,null,null,null,null,null,null,null,"（Ａ）","（Ｂ）",null,null,null,null,null,null,null,null,null,"（Ａ）","（Ｂ）"]
[null,null,null,null,null,null,null,null,null,null,null,null,null,null,null,null,null,"(",null,null,"次)",null,null,null,null,null,null,null,null,null,null,null,null,null,"Ａクレーン部（上部旋回体）","安全装置","巻過防止装置",null,null,null,null,null,null,null,null,"Ｄ安全装置","各種ロック","旋回"]
[null,null,null,null,null,null,null,null,null,null,null,null,null,null,null,null,null,null,null,null,null,null,null,null,null,null,null,null,null,null,null,null,null,null,null,null,"過負荷防止装置",null,null,null,null,null,null,null,null,null,null,"バケット"]
[null,null,null,null,null,null,null,null,null,null,null,null,null,null,null,null,null,"代表者名",null,null,null,null,null,null,null,null,null,null,null,null,"㊞",null,null,null,null,null,"フックのはずれ止め",null,null,null,null,null,null,null,null,null,null,"ブーム・アーム"]
[null,null,null,null,null,null,null,null,null,null,null,null,null,null,null,null,null,null,null,null,null,null,null,null,null,null,null,null,null,null,null,null,null,null,null,null,"起伏制御装置"]
[null,null,null,null,null,null,null,null,null,null,null,null,null,null,null,null,null,null,null,null,null,null,null,null,null,null,null,null,null,null,null,null,null,null,null,null,"旋回警報装置"]
[null,null,null,null,null,null,null,null,null,null,null,null,null,null,null,null,null,"電　　　話",null,null,null,null,null,null,null,null,null,null,null,null,null,null,null,null,null,"制御装置・作業装置","主巻・補巻"]
[null,null,null,null,null,null,null,null,null,null,null,null,null,null,null,null,null,null,null,null,null,null,null,null,null,null,null,null,null,null,null,null,null,null,null,null,"起伏・旋回",null,null,null,null,null,null,null,null,null,"警報装置"]
[null,null,null,null,null,null,null,null,null,null,null,null,null,null,null,null,null,null,null,null,null,null,null,null,null,null,null,null,null,null,null,null,null,null,null,null,"クラッチ",null,null,null,null,null,null,null,null,null,"アウトリガー"]
[null,"このたび、下記機械等を裏面の点検表により、点検整備のうえ持込・使用しますので、お届けします。なお、使用に際しては、関係法令に定められた事項を遵守します。",null,null,null,null,null,null,null,null,null,null,null,null,null,null,null,null,null,null,null,null,null,null,null,null,null,null,null,null,null,null,null,null,null,null,"ブレーキ・ロック",null,null,null,null,null,null,null,null,null,"ヘッドガード"]
[null,null,null,null,null,null,null,null,null,null,null,null,null,null,null,null,null,null,null,null,null,null,null,null,null,null,null,null,null,null,null,null,null,null,null,null,"ジブ",null,null,null,null,null,null,null,null,null,"照明"]
[null,null,null,null,null,null,null,null,null,null,null,null,null,null,null,null,null,null,null,null,null,null,null,null,null,null,null,null,null,null,null,null,null,null,null,null,"滑車",null,null,null,null,null,null,null,null,"Ｅ作業装置","操作装置"]
[null,null,null,null,null,null,null,null,null,null,null,null,null,null,null,null,null,null,null,null,null,null,null,null,null,null,null,null,null,null,null,null,null,null,null,null,"フック・バケット",null,null,null,null,null,null,null,null,null,"バケッド・ブレード"]
[null,"使　用　会　社　名",null,null,null,null,null,null,null,null,null,null,null,null,null,null,"代　表　者　名",null,null,null,null,null,null,null,null,null,null,null,null,null,null,null,null,null,null,null,"ワイヤロープ・チェーン",null,null,null,null,null,null,null,null,null,"ブーム・アーム"]
[null,null,null,null,null,null,null,null,null,null,null,null,null,null,null,null,null,null,null,null,null,null,null,null,null,null,null,null,null,"㊞",null,null,null,null,null,null,"玉掛用具",null,null,null,null,null,null,null,null,null,"ジブ"]
[null,null,null,null,null,null,null,null,null,null,null,null,null,null,null,null,null,null,null,null,null,null,null,null,null,null,null,null,null,null,null,null,null,null,null,"その他","操作装置",null,null,null,null,null,null,null,null,null,"リーダ"]
[null,null,null,null,null,null,null,null,null,null,null,null,null,null,null,null,null,null,null,null,null,null,null,null,null,null,null,null,null,null,null,null,null,null,null,null,"性能表示",null,null,null,null,null,null,null,null,null,"ハンマ・オーガ・バイブロ"]
[null,null,null,null,null,null,null,"名称",null,null,null,"メーカー",null,null,null,"規格・性能",null,null,null,null,null,null,null,null,"製造年",null,null,"管理番号",null,null,null,null,null,null,null,null,"照明",null,null,null,null,null,null,null,null,null,"油圧駆動装置"]
[null,null,null,null,null,null,null,null,null,null,null,null,null,null,null,null,null,null,null,null,null,null,null,null,null,null,null,"（整理番号）",null,null,null,null,null,null,"Ｂ車両部（下部走行体）","走行部","ブレーキ",null,null,null,null,null,null,null,null,null,"ワーヤロープ・チェーン"]
[null,null,"機　　　　械　　　　　　　　　",null,null,null,null,null,null,null,null,null,null,null,null,null,null,null,null,null,null,null,null,null,null,null,"年",null,null,null,null,null,null,null,null,null,"クラッチ",null,null,null,null,null,null,null,null,null,"吊り具等"]
[null,null,null,null,null,null,null,null,null,null,null,null,null,null,null,null,null,null,null,null,null,null,null,null,null,null,null,null,null,null,null,null,null,null,null,null,"ハンドル",null,null,null,null,null,null,null,null,null,"滑車"]
[null,null,null,null,null,null,null,null,null,null,null,null,null,null,null,null,null,null,null,null,null,null,null,null,null,null,null,null,null,null,null,null,null,null,null,null,"タイヤ",null,null,null,null,null,null,null,null,"Ｆ走行部","ブレーキ"]
[null,null,null,null,null,null,null,null,null,null,null,null,null,null,null,null,null,null,null,null,null,null,null,null,null,null,null,null,null,null,null,null,null,null,null,null,"クローラ",null,null,null,null,null,null,null,null,null,"駐車ブレーキ"]
[null,null,"持込年月日",null,null,null,null,"年　  月　  日",null,null,null,null,"使用場所",null,null,null,null,null,null,null,null,null,null,null,"自社・リースの区別",null,null,null,null,null,null,null,null,null,null,"安全装置等","警報装置",null,null,null,null,null,null,null,null,null,"ブレーキロック"]
[null,null,null,null,null,null,null,null,null,null,null,null,null,null,null,null,null,null,null,null,null,null,null,null,null,null,null,null,null,null,null,null,null,null,null,null,"各種ミラー",null,null,null,null,null,null,null,null,null,"クラッチ"]
[null,null,"搬出予定年月日",null,null,null,null,"年　  月　  日",null,null,null,null,null,null,null,null,null,null,null,null,null,null,null,null,null,"自社",null,"・","リース",null,null,null,null,null,null,null,"方向指示器",null,null,null,null,null,null,null,null,null,"操縦装置"]
[null,null,null,null,null,null,null,null,null,null,null,null,null,null,null,null,null,null,null,null,null,null,null,null,null,null,null,null,null,null,null,null,null,null,null,null,"前後照灯",null,null,null,null,null,null,null,null,null,"タイヤ・鉄輪"]
[null,null,"運転者　　　（取扱者）",null,null,null,null,"氏名",null,null,null,null,null,null,null,"資格の種類",null,null,null,null,null,null,null,null,null,null,null,null,null,null,null,null,null,null,null,null,"左折プロテクター",null,null,null,null,null,null,null,null,null,"クローラ"]
[null,null,null,null,null,null,null,null,null,null,null,null,null,null,null,null,null,null,null,null,null,null,null,null,null,null,null,null,null,null,null,null,null,null,null,null,"アウトリガー",null,null,null,null,null,null,null,null,"Ｇ電気装置","配電盤"]
[null,null,null,null,null,null,null,null,null,null,null,null,null,null,null,null,null,null,null,null,null,null,null,null,null,null,null,null,null,null,null,null,null,null,null,null,"昇降装置",null,null,null,null,null,null,null,null,null,"碍配線"]
[null,null,null,null,null,null,null,null,null,null,null,null,null,null,null,null,null,null,null,null,null,null,null,null,null,null,null,null,null,null,null,null,null,null,null,null,"ベッセル",null,null,null,null,null,null,null,null,null,"絶縁"]
[null,null,null,null,null,null,null,null,null,null,null,null,null,null,null,null,null,null,null,null,null,null,null,null,null,null,null,null,null,null,null,null,null,null,null,null,"後方監視装置",null,null,null,null,null,null,null,null,null,"アース"]
[null,null,null,null,null,null,null,null,null,null,null,null,null,null,null,null,null,null,null,null,null,null,null,null,null,null,null,null,null,null,null,null,null,null,"Ｃゴンドラ",null,"突りょう"]
[null,"自主検査　　　　　有効期限",null,null,"定期","年次",null,"年　  月　  日",null,null,null,null,"移動式クレーン等の　　性能検査有効期限",null,null,null,null,null,"年　　月　　日",null,null,null,null,"自動車　　検査証　　有効期限",null,null,"年　　月　　日",null,null,null,null,null,null,null,null,null,"作業床",null,null,null,null,null,null,null,null,"Ｈその他"]
[null,null,null,null,null,null,null,null,null,null,null,null,null,null,null,null,null,null,null,null,null,null,null,null,null,null,null,null,null,null,null,null,null,null,null,null,"昇降装置"]
[null,null,null,null,null,"月次",null,"年　  月　  日",null,null,null,null,null,null,null,null,null,null,null,null,null,null,null,null,null,null,null,null,null,null,null,null,null,null,null,null,"電気装置"]
[null,null,null,null,null,null,null,null,null,null,null,null,null,null,null,null,null,null,null,null,null,null,null,null,null,null,null,null,null,null,null,null,null,null,null,null,"ワイヤ・ライフライン"]
[null,null,null,null,"特定",null,null,"年　  月　  日",null,null,null,null,null,null,null,null,null,null,null,null,null,null,null,null,null,null,null,null,null,null,null,null,null,null,"(a)","点検日",null,"年",null,"月",null,"日","点検者","㊞",null,"(b)","点検日",null,"年",null,"月",null,"日","点検者","㊞"]
[null,null,null,null,null,null,null,null,null,null,null,null,null,null,null,null,null,null,null,null,null,null,null,null,null,null,null,null,null,null,null,null,null,null,null,null,null,null,"・",null,"・",null,null,null,null,null,null,null,null,"・",null,"・"]
[null,"任意保険",null,null,null,null,null,"加入額",null,null,"対人",null,null,null,null,null,"千円",null,"搭乗者",null,null,null,null,null,"千円",null,"有効期限"]
[]
[null,null,null,null,null,null,null,null,null,null,"対物",null,null,null,null,null,"千円",null,"その他",null,null,null,null,null,"千円",null,"年　　月　　日"]
[null,null,null,null,null,null,null,null,null,null,null,null,null,null,null,null,null,null,null,null,null,null,null,null,null,null,null,null,null,null,null,null,null,null,"（注）",null,"1.　持込機械等の届出は、当該機械を持込む会社（貸与を受けた会社が下請の場合はその会社）の代表者が所長に届け出"]
[null,"接触防止措置等",null,null,null,null,null,null,null,null,null,null,null,null,null,null,null,null,null,null,null,null,null,null,null,null,null,null,null,null,null,null,null,null,null,null,"　　ること。"]
[null,null,null,null,null,null,null,null,null,null,null,null,null,null,null,null,null,null,null,null,null,null,null,null,null,null,null,null,null,null,null,null,null,null,null,null,"2.　点検表の点検結果欄には、該当する箇所へ✓印を記入すること。"]
[null,"機械等の特性・その他その使用上注意すべき事項",null,null,null,null,null,null,null,null,null,null,null,null,null,null,null,null,null,null,null,null,null,null,null,null,null,null,null,null,null,null,null,null,null,null,"3.　自社の点検表にて点検したものは、その点検表を貼付する（転記の必要はなし）。"]
[null,null,null,null,null,null,null,null,null,null,null,null,null,null,null,null,null,null,null,null,null,null,null,null,null,null,null,null,null,null,null,null,null,null,null,null,"4.　機械名（1）から（6）まではＡ、Ｂ欄を、（7）はＣ欄を、（8）から（42）まではＤ、Ｅ、Ｆ、Ｇ欄を、（43）から"]
[null,null,null,null,null,null,null,null,null,null,null,null,null,null,null,null,null,null,null,null,null,null,null,null,null,null,null,null,null,null,null,null,null,null,null,null,"　　（47）まではＢ欄を、（48）はＢ、Ｄ、Ｅ欄を使用して点検すること。"]
[null,null,null,null,null,null,null,null,null,null,null,null,null,null,null,null,null,null,null,null,null,null,null,null,null,null,null,null,null,null,null,null,null,null,null,null,"5.　点検結果の（a）は、機械所有会社の確認欄とし、（b）は持込会社又は機械使用会社の確認欄とする。元請が確認す"]
[null,null,null,null,null,null,null,null,null,null,null,null,null,null,null,null,null,null,null,null,null,null,null,null,null,null,null,null,null,null,null,null,null,null,null,null,"　　るときは（b）欄を利用すること。"]
[]
[]
[null,"元　請　確　認　欄",null,null,null,null,null,null,null,null,null,null,"受　理　番　号",null,null,null,null,null,null,null,null,"受　理　証　確　認　者"]
[null,"担当者",null,null,null,null,null,null,null,null,null,null,null,null,null,null,null,null,null,null,null,"　年　　　月　　　日"]

{"sheet":"14.持込機械（電動工具）","index":25,"n_rows":61,"n_cols":51,"rows_kept":61,"cut":false,"hidden":false,"merged":[[7,21,8,30],[5,46,6,46],[5,45,6,45],[5,41,6,41],[9,39,10,39],[9,40,10,40],[7,37,8,37],[11,37,12,37],[5,40,6,40],[5,38,6,38],[5,37,6,37],[7,44,8,44],[7,45,8,45],[9,45,10,45],[11,45,12,45],[5,43,6,43],[7,42,8,42],[7,43,8,43],[9,42,10,42],[9,35,10,35],[11,35,12,35],[9,37,10,37],[9,46,10,46],[11,42,12,42],[2,34,2,37],[25,46,26,46],[27,39,28,39],[27,40,28,40],[27,41,28,41],[27,42,28,42],[27,43,28,43],[27,44,28,44],[27,45,28,45],[25,39,26,39],[25,40,26,40],[25,41,26,41],[25,42,26,42],[25,43,26,43],[25,44,26,44],[25,45,26,45],[23,38,24,38],[5,39,6,39],[5,42,6,42],[9,43,10,43],[9,44,10,44],[13,39,14,39],[15,39,16,39],[15,40,16,40],[31,35,32,35],[33,35,34,35],[27,35,28,35],[13,38,14,38],[13,37,14,37],[5,44,6,44],[49,46,50,46],[43,44,44,44],[27,46,28,46],[21,45,22,45],[21,46,22,46],[23,46,24,46],[23,45,24,45],[23,44,24,44],[23,43,24,43],[23,42,24,42],[21,42,22,42],[21,43,22,43],[29,46,30,46],[29,45,30,45],[35,42,36,42],[39,45,40,45],[33,38,34,38],[35,35,36,35],[53,37,54,37],[49,35,50,35],[51,35,52,35],[53,35,54,35],[23,35,24,35],[25,35,26,35],[43,42,44,42],[39,42,40,42],[39,41,40,41],[23,39,24,39],[39,37,40,37],[39,38,40,38],[39,39,40,39],[39,40,40,40],[31,37,32,37],[31,38,32,38],[31,39,32,39],[29,39,30,39],[29,42,30,42],[23,41,24,41],[23,40,24,40],[25,37,26,37],[29,38,30,38],[29,35,30,35],[37,35,38,35],[39,35,40,35],[33,42,34,42],[33,43,34,43],[37,42,38,42],[37,41,38,41],[37,40,38,40],[51,37,52,37],[35,46,36,46],[43,45,44,45],[43,46,44,46],[39,46,40,46],[37,45,38,45],[37,37,38,37],[45,35,46,35],[47,35,48,35],[29,43,30,43],[29,44,30,44],[29,37,30,37],[29,40,30,40],[35,38,36,38],[33,40,34,40],[35,40,36,40],[33,41,34,41],[33,45,34,45],[35,45,36,45],[33,44,34,44],[31,40,32,40],[31,46,32,46],[31,44,32,44],[31,45,32,45],[35,44,36,44],[31,41,32,41],[29,41,30,41],[33,39,34,39],[35,39,36,39],[55,1,57,1],[46,25,47,27],[30,25,31,27],[32,25,33,27],[38,28,39,30],[40,28,41,30],[38,25,39,27],[30,1,31,2],[32,1,33,2],[42,28,43,30],[51,1,51,9],[34,25,35,27],[36,25,37,27],[54,1,54,17],[55,2,57,17],[54,18,54,30],[40,1,41,2],[42,1,43,2],[50,1,50,9],[46,1,47,2],[46,28,47,30],[42,25,43,27],[28,1,29,2],[44,1,45,2],[4,12,4,20],[36,28,37,30],[13,17,14,20],[10,13,11,14],[44,25,45,27],[26,3,27,9],[26,1,27,2],[44,28,45,30],[34,1,35,2],[36,1,37,2],[38,1,39,2],[32,28,33,30],[34,28,35,30],[40,25,41,27],[26,19,26,23],[27,19,27,23],[28,25,29,27],[28,28,29,30],[30,28,31,30],[10,17,10,20],[7,1,8,4],[7,17,8,20],[49,44,50,44],[49,42,50,42],[49,43,50,43],[49,40,50,40],[43,37,44,37],[43,38,44,38],[43,39,44,39],[49,37,50,37],[49,38,50,38],[49,39,50,39],[39,44,40,44],[37,43,38,43],[43,43,44,43],[39,43,40,43],[41,34,42,46],[37,38,38,38],[37,39,38,39],[37,46,38,46],[19,42,20,42],[19,43,20,43],[21,44,22,44],[45,42,46,42],[45,43,46,43],[51,40,52,40],[51,38,52,38],[19,46,20,46],[21,37,22,37],[21,38,22,38],[19,38,20,38],[19,37,20,37],[21,39,22,39],[21,41,22,41],[49,41,50,41],[35,37,36,37],[33,37,34,37],[27,38,28,38],[27,37,28,37],[25,38,26,38],[35,43,36,43],[35,41,36,41],[43,40,44,40],[43,41,44,41],[23,37,24,37],[53,46,54,46],[51,45,52,45],[53,38,54,38],[53,39,54,39],[53,40,54,40],[53,41,54,41],[53,42,54,42],[53,43,54,43],[53,44,54,44],[53,45,54,45],[51,39,52,39],[51,41,52,41],[51,42,52,42],[51,43,52,43],[51,44,52,44],[51,46,52,46],[31,42,32,42],[31,43,32,43],[33,46,34,46],[45,44,46,44],[45,45,46,45],[49,45,50,45],[37,44,38,44],[17,42,18,42],[17,43,18,43],[17,44,18,44],[13,44,14,44],[11,44,12,44],[15,42,16,42],[15,43,16,43],[15,44,16,44],[17,38,18,38],[15,38,16,38],[21,35,22,35],[11,41,12,41],[19,41,20,41],[15,41,16,41],[19,39,20,39],[19,40,20,40],[11,38,12,38],[17,39,18,39],[17,40,18,40],[17,41,18,41],[17,37,18,37],[1,1,1,5],[10,1,11,4],[16,17,17,20],[1,34,1,36],[16,21,17,30],[3,5,4,10],[3,12,3,20],[3,21,4,22],[3,23,4,26],[13,35,14,35],[15,35,16,35],[17,35,18,35],[11,18,11,19],[7,5,8,14],[3,34,3,46],[4,34,4,36],[2,24,2,30],[10,5,11,12],[10,21,11,30],[13,21,14,29],[13,30,14,30],[9,41,10,41],[9,38,10,38],[11,43,12,43],[26,10,27,14],[45,37,46,37],[45,38,46,38],[45,39,46,39],[45,40,46,40],[45,41,46,41],[43,35,44,35],[11,46,12,46],[19,45,20,45],[26,15,26,17],[26,25,27,27],[27,15,27,17],[26,28,27,30],[19,35,20,35],[20,1,22,30],[19,44,20,44],[13,41,14,41],[13,43,14,43],[13,42,14,42],[13,40,14,40],[13,46,14,46],[13,45,14,45],[15,45,16,45],[17,45,18,45],[5,35,6,35],[7,35,8,35],[7,38,8,38],[7,39,8,39],[7,40,8,40],[7,41,8,41],[45,46,46,46],[47,37,48,37],[47,38,48,38],[47,39,48,39],[47,40,48,40],[47,41,48,41],[47,42,48,42],[47,43,48,43],[47,44,48,44],[47,45,48,45],[47,46,48,46],[7,46,8,46],[11,39,12,39],[11,40,12,40],[15,46,16,46],[17,46,18,46],[21,40,22,40],[15,37,16,37]]}
[]
[null,"参考様式第6号",null,null,null,null,null,null,null,null,null,null,null,null,null,null,null,null,null,null,null,null,null,null,null,null,null,null,null,null,null,null,null,null,"持込時の点検表"]
[null,null,null,null,null,null,null,null,null,null,null,null,null,null,null,null,null,null,null,null,null,null,null,null,"　年　月　日",null,null,null,null,null,null,null,null,null,null,null,null,null,null,null,null,"点検","　　　年　　 月　 　日"]
[null,null,null,null,null,"持込機械等",null,null,null,null,null,null,"電動工具",null,null,null,null,null,null,null,null,"等",null,"使用届",null,null,null,null,null,null,null,null,null,null,"電　動　工　具・電　気　溶　接　機　等",null,null,null,null,null,null,null,null,null,null,null,null,null,null,null,"機　械　名"]
[null,null,null,null,null,null,null,null,null,null,null,null,"電気溶接機",null,null,null,null,null,null,null,null,null,null,null,null,null,null,null,null,null,null,null,null,null,null,null,null,1,2,3,4,5,6,7,8,9,10]
[null,null,null,null,null,null,null,null,null,null,null,null,null,null,null,null,null,null,null,null,null,null,null,null,null,null,null,null,null,null,null,null,null,null,null,"アース線"]
[]
[null,"事業所の名称",null,null,null,{"$f":"IF(ISBLANK(共通情報入力表!D7),\"\",共通情報入力表!D7)","v":""},null,null,null,null,null,null,null,null,null,null,null,"一次会社名",null,null,null,{"$f":"IF(ISBLANK(共通情報入力表!D17),\"\",共通情報入力表!D17)","v":""},null,null,null,null,null,null,null,null,null,null,null,null,null,"接地クランプ"]
[]
[null,null,null,null,null,null,null,null,null,null,null,null,null,null,null,null,null,null,null,null,null,null,null,null,null,null,null,null,null,null,null,null,null,null,null,"キャップタイヤ"]
[null,"所長名",null,null,null,{"$f":"IF(ISBLANK(共通情報入力表!D10),\"\",共通情報入力表!D10)","v":""},null,null,null,null,null,null,null,"殿",null,null,null,"持込会社名"]
[null,null,null,null,null,null,null,null,null,null,null,null,null,null,null,null,null,"(",null,null,"次)",null,null,null,null,null,null,null,null,null,null,null,null,null,null,"コネクタ"]
[]
[null,null,null,null,null,null,null,null,null,null,null,null,null,null,null,null,null,"代表者名",null,null,null,null,null,null,null,null,null,null,null,null,"㊞",null,null,null,null,"接地端子の締結"]
[]
[null,null,null,null,null,null,null,null,null,null,null,null,null,null,null,null,null,null,null,null,null,null,null,null,null,null,null,null,null,null,null,null,null,null,null,"充電部の絶縁"]
[null,null,null,null,null,null,null,null,null,null,null,null,null,null,null,null,null,"電話"]
[null,null,null,null,null,null,null,null,null,null,null,null,null,null,null,null,null,null,null,null,null,null,null,null,null,null,null,null,null,null,null,null,null,null,null,"自動電撃防止装置"]
[]
[null,null,null,null,null,null,null,null,null,null,null,null,null,null,null,null,null,null,null,null,null,null,null,null,null,null,null,null,null,null,null,null,null,null,null,"絶縁ホルダー"]
[null,"このたび、下記機械等を裏面の点検表により、点検整備のうえ持込・使用しますので、お届けします。なお、使用に際しては関係法令に定められた事項を遵守します。"]
[null,null,null,null,null,null,null,null,null,null,null,null,null,null,null,null,null,null,null,null,null,null,null,null,null,null,null,null,null,null,null,null,null,null,null,"溶接保護面"]
[]
[null,null,null,null,null,null,null,null,null,null,null,null,null,null,null,null,null,null,null,null,null,null,null,null,null,null,null,null,null,null,null,null,null,null,null,"操作スイッチ"]
[]
[null,null,null,null,null,null,null,null,null,null,null,null,null,null,null,null,null,null,null,null,null,null,null,null,null,null,null,null,null,null,null,null,null,null,null,"絶縁抵抗測定値"]
[null,"番号",null,"機　械　名",null,null,null,null,null,null,"規格性能",null,null,null,null,"管理番号",null,null,null,"持込年月日",null,null,null,null,null,"点検者",null,null,"取扱者"]
[null,null,null,null,null,null,null,null,null,null,null,null,null,null,null,"受付番号",null,null,null,"搬出予定年月日",null,null,null,null,null,null,null,null,null,null,null,null,null,null,null,"各種ブレーキの作動"]
[null,1,null,null,null,null,null,null,null,null,null,null,null,null,null,null,null,null,null,null,"年",null,"月",null,"日"]
[null,null,null,null,null,null,null,null,null,null,null,null,null,null,null,null,null,null,null,null,"年",null,"月",null,"日",null,null,null,null,null,null,null,null,null,null,"手すり・囲い"]
[null,2,null,null,null,null,null,null,null,null,null,null,null,null,null,null,null,null,null,null,"年",null,"月",null,"日"]
[null,null,null,null,null,null,null,null,null,null,null,null,null,null,null,null,null,null,null,null,"年",null,"月",null,"日",null,null,null,null,null,null,null,null,null,null,"フックのはずれ止め"]
[null,3,null,null,null,null,null,null,null,null,null,null,null,null,null,null,null,null,null,null,"年",null,"月",null,"日"]
[null,null,null,null,null,null,null,null,null,null,null,null,null,null,null,null,null,null,null,null,"年",null,"月",null,"日",null,null,null,null,null,null,null,null,null,null,"ワイヤロープ・チェーン"]
[null,4,null,null,null,null,null,null,null,null,null,null,null,null,null,null,null,null,null,null,"年",null,"月",null,"日"]
[null,null,null,null,null,null,null,null,null,null,null,null,null,null,null,null,null,null,null,null,"年",null,"月",null,"日",null,null,null,null,null,null,null,null,null,null,"滑　　　車"]
[null,5,null,null,null,null,null,null,null,null,null,null,null,null,null,null,null,null,null,null,"年",null,"月",null,"日"]
[null,null,null,null,null,null,null,null,null,null,null,null,null,null,null,null,null,null,null,null,"年",null,"月",null,"日",null,null,null,null,null,null,null,null,null,null,"回転部の囲い等"]
[null,6,null,null,null,null,null,null,null,null,null,null,null,null,null,null,null,null,null,null,"年",null,"月",null,"日"]
[null,null,null,null,null,null,null,null,null,null,null,null,null,null,null,null,null,null,null,null,"年",null,"月",null,"日",null,null,null,null,null,null,null,null,null,null,"危険表示"]
[null,7,null,null,null,null,null,null,null,null,null,null,null,null,null,null,null,null,null,null,"年",null,"月",null,"日"]
[null,null,null,null,null,null,null,null,null,null,null,null,null,null,null,null,null,null,null,null,"年",null,"月",null,"日",null,null,null,null,null,null,null,null,null,"そ　　　の　　　他"]
[null,8,null,null,null,null,null,null,null,null,null,null,null,null,null,null,null,null,null,null,"年",null,"月",null,"日"]
[null,null,null,null,null,null,null,null,null,null,null,null,null,null,null,null,null,null,null,null,"年",null,"月",null,"日",null,null,null,null,null,null,null,null,null,null,"圧力スイッチ"]
[null,9,null,null,null,null,null,null,null,null,null,null,null,null,null,null,null,null,null,null,"年",null,"月",null,"日"]
[null,null,null,null,null,null,null,null,null,null,null,null,null,null,null,null,null,null,null,null,"年",null,"月",null,"日",null,null,null,null,null,null,null,null,null,null,"安全弁"]
[null,10,null,null,null,null,null,null,null,null,null,null,null,null,null,null,null,null,null,null,"年",null,"月",null,"日"]
[null,null,null,null,null,null,null,null,null,null,null,null,null,null,null,null,null,null,null,null,"年",null,"月",null,"日",null,null,null,null,null,null,null,null,null,null,"圧力計"]
[]
[]
[null,"機械の特性・その他その"]
[null,"使用上注意すべき事項"]
[]
[]
[null,"元　　請　　確　　認　　欄",null,null,null,null,null,null,null,null,null,null,null,null,null,null,null,null,"受　付　確　認　者"]
[null,"担当者"]
[null,null,null,null,null,null,null,null,null,null,null,null,null,null,null,null,null,null,null,null,"年",null,"月",null,"日",null,null,null,null,null,null,null,null,null,"（注）１．持込機械等の届出は、当該機械を持ち込む会社（貸与を受けた会社が下請の場合はその会社）"]
[null,null,null,null,null,null,null,null,null,null,null,null,null,null,null,null,null,null,null,null,null,null,null,null,null,null,null,null,null,null,null,null,null,null," 　　　　 の代表者が所長に届け出ること。"]
[null,null,null,null,null,null,null,null,null,null,null,null,null,null,null,null,null,null,null,null,null,null,null,null,null,null,null,null,null,null,null,null,null,null,"　　　２．点検者の点検結果欄には、該当する箇所へ✔印を記入する事。"]
[null,null,null,null,null,null,null,null,null,null,null,null,null,null,null,null,null,null,null,null,null,null,null,null,null,null,null,null,null,null,null,null,null,null,"　　　３．絶縁抵抗の測定については、測定値（ＭΩ）を記入すること。"]
[null,null,null,null,null,null,null,null,null,null,null,null,null,null,null,null,null,null,null,null,null,null,null,null,null,null,null,null,null,null,null,null,null,null,"　　　４．持込機械届受理証を持込機械に貼付すること。"]

{"sheet":"15.工事用車両届","index":26,"n_rows":38,"n_cols":29,"rows_kept":38,"cut":false,"hidden":false,"merged":[[33,20,33,22],[27,6,27,14],[31,22,31,24],[31,25,31,26],[31,5,31,7],[29,16,29,17],[33,8,33,10],[33,14,33,16],[31,10,31,12],[32,8,32,15],[32,19,32,26],[33,17,33,18],[33,11,33,12],[32,16,32,17],[29,2,29,5],[30,2,30,5],[33,1,33,5],[29,8,29,15],[28,1,29,1],[28,2,28,5],[32,2,32,5],[30,1,32,1],[28,6,28,14],[31,2,31,4],[31,13,31,15],[31,16,31,17],[31,18,31,21],[30,6,30,14],[25,6,25,14],[26,2,26,5],[27,2,27,5],[27,15,27,18],[28,15,28,18],[27,21,27,25],[28,21,28,25],[30,15,30,18],[30,21,30,25],[29,19,29,26],[25,2,25,5],[25,15,25,18],[25,19,25,27],[21,8,21,9],[24,2,24,5],[21,19,21,20],[22,15,22,18],[22,19,22,27],[23,15,23,18],[23,19,23,27],[24,19,24,26],[24,8,24,15],[21,1,21,5],[23,1,24,1],[21,16,21,17],[22,6,22,14],[23,6,23,14],[24,16,24,17],[10,1,11,4],[10,5,11,12],[16,19,17,26],[10,15,11,18],[10,19,11,27],[1,1,1,5],[8,10,8,13],[6,14,8,27],[6,10,6,13],[4,21,4,27],[1,19,2,21],[1,22,2,27],[33,24,33,26],[16,27,17,27],[19,1,19,27],[25,1,27,1],[13,1,14,4],[13,5,14,11],[13,12,14,12],[13,15,13,18],[13,19,14,27],[14,16,14,17],[15,15,15,18],[16,15,16,18],[26,6,26,27],[23,2,23,5],[17,15,17,18],[22,1,22,5]]}
[]
[null,"参考様式第8号",null,null,null,null,null,null,null,null,null,null,null,null,null,null,null,null,null,"元　請　　確認欄"]
[]
[]
[null,null,null,null,null,null,null,null,null,null,null,null,null,null,null,null,null,null,null,null,null,"　年　月　日"]
[]
[null,"　　　　　　　　　　　　　　　　　用　車　両　届",null,null,null,null,null,null,null,null,"工 事",null,null,null,"用　車　両　届"]
[]
[null,null,null,null,null,null,null,null,null,null,"通 勤"]
[]
[null,"事業所の名称",null,null,null,{"$f":"IF(ISBLANK(共通情報入力表!D7),\"\",共通情報入力表!D7)","v":""},null,null,null,null,null,null,null,null,null,"一次会社名",null,null,null,{"$f":"IF(ISBLANK(共通情報入力表!D17),\"\",共通情報入力表!D17)","v":""}]
[]
[]
[null,"所長名",null,null,null,{"$f":"IF(ISBLANK(共通情報入力表!D10),\"\",共通情報入力表!D10)","v":""},null,null,null,null,null,null,"殿",null,null,"使用会社"]
[null,null,null,null,null,null,null,null,null,null,null,null,null,null,null,"(",null,null,"次)"]
[]
[null,null,null,null,null,null,null,null,null,null,null,null,null,null,null,"現場代理人",null,null,null,null,null,null,null,null,null,null,null,"㊞"]
[null,null,null,null,null,null,null,null,null,null,null,null,null,null,null,"(現場責任者)"]
[]
[null,"下記の通り（工事・通勤）用　車両を運行しますので、お届けいたします。"]
[]
[null,"使用期間",null,null,null,null,null,"自","令和",null,null,"年",null,"月",null,"日","～",null,"至","令和",null,null,"年",null,"月",null,"日"]
[null,"所有者氏名",null,null,null,null,null,null,null,null,null,null,null,null,null,"安全運転　　　　　　　管理者氏名",null,null,null,null,null,null,null,null,null,null,null,null,"　　"]
[null,"車両","型式",null,null,null,null,null,null,null,null,null,null,null,null,"車両番号"]
[null,null,"車検期間",null,null,null,null,"自","　 　年　 月 　日",null,null,null,null,null,null,null,"～",null,"至","　 　年　 月 　日"]
[null,"運転者","氏名",null,null,null,null,null,null,null,null,null,null,null,null,"生年月日"]
[null,null,"住所"]
[null,null,"免許の種類",null,null,null,null,null,null,null,null,null,null,null,null,"免許番号",null,null,null,null,"第",null,null,null,null,null,"号"]
[null,"自賠責","保険会社名",null,null,null,null,null,null,null,null,null,null,null,null,"証券番号",null,null,null,null,"第",null,null,null,null,null,"号"]
[null,null,"保険期間",null,null,null,null,"自","　 　年　 月 　日",null,null,null,null,null,null,null,"～",null,"至","　 　年　 月 　日"]
[null,"任意保険","保険会社名",null,null,null,null,null,null,null,null,null,null,null,null,"証券番号",null,null,null,null,"第",null,null,null,null,null,"号"]
[null,null,"対人",null,null,null,null,null,null,"万円","対物",null,null,null,null,null,"万円",null,"搭乗者",null,null,null,null,null,null,"万円"]
[null,null,"保険期間",null,null,null,null,"自",null,null,null,null,null,null,null,null,"～",null,"至"]
[null,"運行経路",null,null,null,null,null,"自",null,null,null,"経由",null,"～",null,null,null,"経由",null,"～",null,null,null,"至"]
[]
[null,"（注）",null,"１．この届出書は車両１台ごとに提出すること。"]
[null,null,null,"２．この届出書に「任意保険」の証書（写）を添付し提出すること。"]
[null,null,null,"３．運転者が変わった場合はその都度届け出ること。"]

{"sheet":"16.危険物等持込使用届","index":27,"n_rows":55,"n_cols":28,"rows_kept":55,"cut":false,"hidden":false,"merged":[[12,1,13,4],[12,5,13,11],[12,12,13,12],[12,15,12,18],[12,19,13,27],[13,16,13,17],[43,5,46,27],[43,1,46,4],[47,1,50,4],[52,1,52,2],[47,5,50,27],[39,1,42,4],[39,5,40,27],[41,5,42,27],[31,19,34,27],[35,5,38,6],[35,8,38,9],[35,11,38,12],[35,16,38,17],[31,5,34,14],[35,7,38,7],[35,10,38,10],[35,13,38,13],[35,15,38,15],[35,21,38,21],[35,24,38,24],[35,25,38,27],[35,19,38,20],[35,22,38,23],[27,1,30,4],[31,1,34,4],[31,15,32,18],[33,15,34,18],[35,1,38,4],[27,5,30,27],[35,18,38,18],[14,15,14,18],[15,15,15,18],[15,19,16,26],[16,15,16,18],[21,23,21,27],[15,27,16,27],[18,3,20,25],[21,10,21,14],[21,15,21,17],[21,18,21,22],[21,5,21,9],[21,1,26,4],[22,23,22,27],[23,23,23,27],[24,23,24,27],[25,23,25,27],[26,23,26,27],[22,18,22,22],[23,18,23,22],[24,18,24,22],[25,18,25,22],[26,18,26,22],[22,15,22,17],[26,5,26,9],[22,5,22,9],[23,5,23,9],[24,5,24,9],[26,10,26,14],[25,5,25,9],[22,10,22,14],[23,10,23,14],[24,10,24,14],[25,10,25,14],[23,15,23,17],[24,15,24,17],[25,15,25,17],[26,15,26,17],[1,19,2,21],[1,22,2,27],[1,1,1,6],[9,1,10,4],[9,5,10,12],[9,15,10,18],[9,19,10,27],[4,21,4,27],[6,1,6,27]]}
[]
[null,"全建統一様式第11号",null,null,null,null,null,null,null,null,null,null,null,null,null,null,null,null,null,"元　請　　確認欄"]
[]
[]
[null,null,null,null,null,null,null,null,null,null,null,null,null,null,null,null,null,null,null,null,null,"　年　月　日"]
[]
[null,"有機溶剤・特定化学物質持込使用届"]
[]
[]
[null,"事業所の名称",null,null,null,{"$f":"IF(ISBLANK(共通情報入力表!D7),\"\",共通情報入力表!D7)","v":""},null,null,null,null,null,null,null,null,null,"一次会社名",null,null,null,{"$f":"IF(ISBLANK(共通情報入力表!D17),\"\",共通情報入力表!D17)","v":""}]
[]
[]
[null,"所長名",null,null,null,{"$f":"IF(ISBLANK(共通情報入力表!D10),\"\",共通情報入力表!D10)","v":""},null,null,null,null,null,null,"殿",null,null,"使用会社"]
[null,null,null,null,null,null,null,null,null,null,null,null,null,null,null,"(",null,null,"次)"]
[]
[null,null,null,null,null,null,null,null,null,null,null,null,null,null,null,"現場代理人",null,null,null,null,null,null,null,null,null,null,null,"㊞"]
[null,null,null,null,null,null,null,null,null,null,null,null,null,null,null,"(現場責任者)"]
[]
[null,null,null,"　このたび、下記の有機物質・特定化学物質等を持込・使用するのでお届けします。なお、使用に際しては、ＳＤＳ（安全データシート）内容を掲示し作業員に対して周知を行うとともに関係法規を遵守致します。"]
[]
[]
[null,"使用材料",null,null,null,"商品名",null,null,null,null,"メーカー名",null,null,null,null,"搬入量",null,null,"種別",null,null,null,null,"含有成分"]
[]
[]
[]
[]
[]
[null,"使用場所"]
[]
[]
[]
[null,"保管場所",null,null,null,null,null,null,null,null,null,null,null,null,null,"使用機械　　　"]
[]
[null,null,null,null,null,null,null,null,null,null,null,null,null,null,null,"又は工具"]
[]
[null,"使用期間",null,null,null,null,null,"年",null,null,"月",null,null,"日",null,"～",null,null,"年",null,null,"月",null,null,"日","（予定）"]
[]
[]
[]
[null,"作業主任者等",null,null,null,"　氏　　　名"]
[]
[null,null,null,null,null,"　作業手順書　　　添　付（　有　・　無　）"]
[]
[null,"ＳＤＳ",null,null,null,"　Ｓ　Ｄ　Ｓ　　　添　付（　有　・　無　）"]
[]
[]
[]
[null,"換気等対策"]
[]
[]
[]
[]
[null,"（注）",null,"1.","商品名、種別、含有成分等は材料に添付されているラベル成分表から写しを記入して下さい。"]
[null,null,null,"2.","危険物とは、ガソリン、灯油、プロパン、アセチレンガス等をいいます。"]
[null,null,null,"3.","有害物とは、塗装、防水などに使用する有機溶剤、特定化学物質などをいいます。"]

{"sheet":"17.火気使用願","index":28,"n_rows":42,"n_cols":28,"rows_kept":42,"cut":false,"hidden":false,"merged":[[12,1,13,4],[12,5,13,11],[12,12,13,12],[28,5,28,27],[31,5,32,27],[27,1,30,4],[16,15,16,18],[18,3,19,25],[26,5,26,27],[24,15,24,18],[21,5,21,27],[23,15,23,18],[26,1,26,4],[21,1,21,4],[22,1,25,4],[33,1,33,4],[32,1,32,4],[33,5,33,27],[31,1,31,4],[29,5,29,27],[39,1,39,6],[39,7,39,27],[36,13,36,14],[36,16,36,17],[36,19,36,20],[37,1,38,6],[36,1,36,6],[37,13,37,26],[38,13,38,26],[37,7,37,11],[38,7,38,11],[36,7,36,11],[4,21,4,27],[1,1,1,5],[9,19,10,27],[12,19,13,27],[15,19,16,26],[1,19,2,21],[1,22,2,27],[9,1,10,4],[9,5,10,12],[9,15,10,18],[6,1,6,27],[14,15,14,18],[15,27,16,27],[12,15,12,18],[13,16,13,17],[15,15,15,18]]}
[]
[null,"参考様式第9号",null,null,null,null,null,null,null,null,null,null,null,null,null,null,null,null,null,"元　請　　確認欄"]
[]
[]
[null,null,null,null,null,null,null,null,null,null,null,null,null,null,null,null,null,null,null,null,null,"　年　月　日"]
[]
[null,"火　気　使　用　願"]
[]
[]
[null,"事業所の名称",null,null,null,{"$f":"IF(ISBLANK(共通情報入力表!D7),\"\",共通情報入力表!D7)","v":""},null,null,null,null,null,null,null,null,null,"一次会社名",null,null,null,{"$f":"IF(ISBLANK(共通情報入力表!D17),\"\",共通情報入力表!D17)","v":""}]
[]
[]
[null,"所長名",null,null,null,{"$f":"IF(ISBLANK(共通情報入力表!D10),\"\",共通情報入力表!D10)","v":""},null,null,null,null,null,null,"殿",null,null,"使用会社"]
[null,null,null,null,null,null,null,null,null,null,null,null,null,null,null,"(",null,null,"次)"]
[]
[null,null,null,null,null,null,null,null,null,null,null,null,null,null,null,"現場代理人",null,null,null,null,null,null,null,null,null,null,null,"㊞"]
[null,null,null,null,null,null,null,null,null,null,null,null,null,null,null,"(現場責任者)"]
[]
[null,null,null,"下記の要領で火気を使用したく許可願います。なお、火気使用の終了時には、必ずその旨報告致します。"]
[]
[]
[null,"使用場所"]
[null,"使用目的"]
[null,null,null,null,null,"溶接、溶断、圧接、防水、乾燥、採暖、",null,null,null,null,null,null,null,null,null,"使用期間",null,null,null,null,"月",null,"日","～",null,"月",null,"日"]
[null,null,null,null,null,"湯沸、炊事、その他（　　　　　　）",null,null,null,null,null,null,null,null,null,"使用時間（原則）",null,null,null,null,"時",null,"分","～",null,"時",null,"分"]
[]
[null,"火気の種類",null,null,null,"電気、ガス、灯油、重油、木炭、薪、その他（　　　　　　　　　　　　　　）"]
[null,"管理方法"]
[null,null,null,null,null,"消火器、防水用水、消化砂、防災シート、受皿、標識、監視"]
[null,null,null,null,null,"取扱上の注意（　　　　　　　　　　　　　　　　　　　　　　　　　　　　）"]
[]
[null,"火元責任者"]
[null,"（後始末巡回者）"]
[null,"火気使用責任者"]
[null,"※使用目的、火気の種類、管理方法は該当事項を○で囲んで下さい。"]
[]
[null,"許可　第　　　　号",null,null,null,null,null,"（許可年月日）",null,null,null,null,null,null,null,"年",null,null,"月",null,null,"日"]
[null,"火気使用許可",null,null,null,null,null,"防火管理者",null,null,null,null,null,null,null,null,null,null,null,null,null,null,null,null,null,null,null,"㊞"]
[null,null,null,null,null,null,null,"担当係員",null,null,null,null,null,null,null,null,null,null,null,null,null,null,null,null,null,null,null,"㊞"]
[null,"許可条件"]
[]
[null,"※毎日時間で管理する場合は、この様式を参考にして書式を作成して下さい。"]

{"sheet":"18.高齢者就労報告書","index":29,"n_rows":32,"n_cols":47,"rows_kept":32,"cut":false,"hidden":false,"merged":[[41,1,42,9],[41,10,42,19],[41,20,42,25],[41,26,42,31],[41,32,42,46],[37,32,38,46],[39,1,40,9],[39,10,40,19],[39,20,40,25],[39,26,40,31],[39,32,40,46],[37,1,38,9],[37,10,38,19],[37,20,38,25],[37,26,38,31],[33,1,34,9],[33,10,34,19],[33,20,34,25],[33,26,34,31],[33,32,34,46],[35,1,36,9],[35,10,36,19],[35,20,36,25],[35,26,36,31],[35,32,36,46],[16,32,16,46],[19,32,19,45],[29,1,29,46],[31,1,32,9],[31,10,32,19],[31,20,32,25],[31,26,32,31],[31,32,32,46],[19,25,19,31],[16,1,16,6],[16,21,16,22],[16,25,16,31],[16,7,16,20],[2,38,2,46],[7,1,8,46],[13,1,13,6],[13,25,13,31],[12,7,13,21],[13,32,13,46]]}
[]
[]
[null,null,null,null,null,null,null,null,null,null,null,null,null,null,null,null,null,null,null,null,null,null,null,null,null,null,null,null,null,null,null,null,null,null,null,null,null,null,"　年　月　日"]
[]
[]
[]
[]
[null,"高　齢　者  就  労  報  告  書"]
[]
[]
[]
[]
[null,null,null,null,null,null,null,{"$f":"IF(ISBLANK(共通情報入力表!D7),\"\",共通情報入力表!D7)","v":""}]
[null,"事業所の名称",null,null,null,null,null,null,null,null,null,null,null,null,null,null,null,null,null,null,null,null,null,null,null,"１次会社名",null,null,null,null,null,null,{"$f":"IF(ISBLANK(共通情報入力表!D17),\"\",共通情報入力表!D17)","v":""}]
[]
[]
[null,"所長名",null,null,null,null,null,{"$f":"IF(ISBLANK(共通情報入力表!D10),\"\",共通情報入力表!D10)","v":""},null,null,null,null,null,null,null,null,null,null,null,null,null,"殿",null,null,null,"会 社 名"]
[]
[]
[null,null,null,null,null,null,null,null,null,null,null,null,null,null,null,null,null,null,null,null,null,null,null,null,null,"代表者名",null,null,null,null,null,null,null,null,null,null,null,null,null,null,null,null,null,null,null,null,"㊞"]
[]
[]
[]
[null," 下記の者は高齢者（６５歳以上）ですが、弊社の責任において就労させますのでご報告致します。"]
[null," 原則として危険有害業務には就かせませんが、やむをえず就労させる場合は、職長の直接指導により、"]
[null," 労働基準法、労働安全衛生法及び貴社の規定を遵守して作業させます。"]
[]
[]
[]
[null,"記"]
[]
[null,"氏        名",null,null,null,null,null,null,null,null,"生  年  月  日",null,null,null,null,null,null,null,null,null,"年齢(満)",null,null,null,null,null,"職    種",null,null,null,null,null,"作   業   内   容"]

{"sheet":"19.年少者就労報告書","index":30,"n_rows":46,"n_cols":47,"rows_kept":46,"cut":false,"hidden":false,"merged":[[44,1,44,46],[45,1,45,46],[19,25,19,31],[40,1,41,9],[40,10,41,19],[40,20,41,25],[40,26,41,31],[40,32,41,46],[32,1,33,9],[32,10,33,19],[32,20,33,25],[32,26,33,31],[32,32,33,46],[34,1,35,9],[34,10,35,19],[36,32,37,46],[38,1,39,9],[38,10,39,19],[38,20,39,25],[38,26,39,31],[38,32,39,46],[26,1,26,46],[36,1,37,9],[36,10,37,19],[36,20,37,25],[36,26,37,31],[34,32,35,46],[34,20,35,25],[34,26,35,31],[27,1,27,46],[28,1,28,46],[30,1,31,9],[30,10,31,19],[30,20,31,25],[30,26,31,31],[30,32,31,46],[19,32,19,45],[2,38,2,46],[7,1,8,46],[13,1,13,6],[13,25,13,31],[12,7,13,21],[13,32,13,46],[16,1,16,6],[16,21,16,22],[16,25,16,31],[16,7,16,20],[16,32,16,46]]}
[]
[]
[null,null,null,null,null,null,null,null,null,null,null,null,null,null,null,null,null,null,null,null,null,null,null,null,null,null,null,null,null,null,null,null,null,null,null,null,null,null,"　年　月　日"]
[]
[]
[]
[]
[null,"年  少  者  就  労  報  告  書"]
[]
[]
[]
[]
[null,null,null,null,null,null,null,{"$f":"IF(ISBLANK(共通情報入力表!D7),\"\",共通情報入力表!D7)","v":""}]
[null,"事業所の名称",null,null,null,null,null,null,null,null,null,null,null,null,null,null,null,null,null,null,null,null,null,null,null,"１次会社名",null,null,null,null,null,null,{"$f":"IF(ISBLANK(共通情報入力表!D17),\"\",共通情報入力表!D17)","v":""}]
[]
[]
[null,"所長名",null,null,null,null,null,{"$f":"IF(ISBLANK(共通情報入力表!D10),\"\",共通情報入力表!D10)","v":""},null,null,null,null,null,null,null,null,null,null,null,null,null,"殿",null,null,null,"会 社 名"]
[]
[]
[null,null,null,null,null,null,null,null,null,null,null,null,null,null,null,null,null,null,null,null,null,null,null,null,null,"代表者名",null,null,null,null,null,null,null,null,null,null,null,null,null,null,null,null,null,null,null,null,"㊞"]
[]
[]
[]
[null,"貴作業所の工事を施工するにあたり、下記のものは満１８歳未満ですが、当社の責任において就労"]
[null,"させますので報告いたします。"]
[null,"また労働基準法並びに年少者労働基準規則に則り、「年少者の就業制限業務」には就労させません。"]
[]
[]
[null,"記"]
[]
[null,"氏        名",null,null,null,null,null,null,null,null,"生  年  月  日",null,null,null,null,null,null,null,null,null,"年齢(満)",null,null,null,null,null,"職    種",null,null,null,null,null,"作   業   内   容"]
[]
[]
[]
[]
[]
[]
[]
[]
[]
[]
[]
[]
[]
[null," ※次の書類の写しを同時に添付致します。"]
[null,"　　　　　１．年齢証明書（住民票記載事項の証明書等）"]

{"sheet":"※年少者就業制限業務","index":31,"n_rows":4,"n_cols":2,"rows_kept":4,"cut":false,"hidden":false,"merged":[[1,1,1,4],[3,1,3,8]]}
[]
[null,"　※ 年少者労働基準規則（厚生労働省）"]
[]
[null,"　※１８歳にならないと就かせてはならない業務とは（労働講習技能協会HP・Topicsより）"]

{"sheet":"20.作業手順書","index":32,"n_rows":108,"n_cols":24,"rows_kept":108,"cut":false,"hidden":false,"merged":[[51,2,51,3],[51,4,51,6],[51,7,51,9],[51,14,51,15],[13,1,14,2],[13,3,14,5],[13,24,14,24],[15,2,15,3],[15,4,15,6],[15,7,15,9],[15,14,15,15],[9,1,10,2],[9,3,9,16],[10,3,10,13],[10,14,10,16],[11,1,12,2],[11,3,12,4],[11,5,12,5],[11,6,12,16],[6,1,6,2],[6,3,6,16],[7,1,7,2],[7,3,7,16],[8,1,8,2],[8,3,8,16],[5,1,5,2],[5,3,5,16],[1,1,1,16],[3,1,3,2],[3,3,3,16],[4,1,4,2],[4,3,4,16]]}
[]
[null,"作業手順書"]
[]
[null,"作業内容"]
[null,"使用機械"]
[null,"使用工具"]
[null,"使用設備"]
[null,"使用材料"]
[null,"保護具"]
[null,"必要資格"]
[null,null,null,null,null,null,null,null,null,null,null,null,null,null,"（免許、技能講習、特別教育）"]
[null,"作業人員",null,null,null,"人","　「損失度」　+　「可能性」　+　「頻度」　 ＝　 評価点数　　⇒　　リスクレベル"]
[]
[null,"備考"]
[]
[null,"区分","作業手順",null,"作業要点･急所",null,null,"予想される災害",null,null,"損失度","可能性","頻度","リスク優先度","安全対策",null,"誰が"]
[null,null,null,null,null,null,null,null,null,null,null,null,{"$f":"IF(S17=0,\"\",S17)","v":""},{"$f":"IF(M17=\"\",\"\",IF(M17>=10,\"E\",IF(M17>=6,\"D\",IF(M17>=3,\"Ｃ\",IF(M17=2,\"B\",IF(M17=1,\"A\"))))))","v":""},null,null,null,null,{"$f":"K17*L17","v":0}]
[null,null,null,null,null,null,null,null,null,null,null,null,"","",null,null,null,null,0,null,null,null,1,1]
[null,null,null,null,null,null,null,null,null,null,null,null,"","",null,null,null,null,0,null,null,null,2,3]
[null,null,null,null,null,null,null,null,null,null,null,null,"","",null,null,null,null,0,null,null,null,3,10]
[null,null,null,null,null,null,null,null,null,null,null,null,"","",null,null,null,null,0]
[null,null,null,null,null,null,null,null,null,null,null,null,"","",null,null,null,null,0]
[null,null,null,null,null,null,null,null,null,null,null,null,null,{"$f":"IF(T23=0,\"\",T23)","v":""},null,null,null,null,0]
[null,null,null,null,null,null,null,null,null,null,null,null,{"$f":"IF(S24=0,\"\",S24)","v":""},{"$f":"IF(M24=\"\",\"\",IF(M24>=10,\"E\",IF(M24>=6,\"D\",IF(M24>=3,\"Ｃ\",IF(M24=2,\"B\",IF(M24=1,\"A\"))))))","v":""},null,null,null,null,0]
[null,null,null,null,null,null,null,null,null,null,null,null,"","",null,null,null,null,0]
[null,null,null,null,null,null,null,null,null,null,null,null,"","",null,null,null,null,0]
[null,null,null,null,null,null,null,null,null,null,null,null,"","",null,null,null,null,0]
[null,null,null,null,null,null,null,null,null,null,null,null,"","",null,null,null,null,0]
[null,null,null,null,null,null,null,null,null,null,null,null,"","",null,null,null,null,0]
[null,null,null,null,null,null,null,null,null,null,null,null,"","",null,null,null,null,0]
[null,null,null,null,null,null,null,null,null,null,null,null,"","",null,null,null,null,0]
[null,null,null,null,null,null,null,null,null,null,null,null,"","",null,null,null,null,0]
[null,null,null,null,null,null,null,null,null,null,null,null,"","",null,null,null,null,0]
[null,null,null,null,null,null,null,null,null,null,null,null,"","",null,null,null,null,0]
[null,null,null,null,null,null,null,null,null,null,null,null,"","",null,null,null,null,0]
[null,null,null,null,null,null,null,null,null,null,null,null,"","",null,null,null,null,0]
[null,null,null,null,null,null,null,null,null,null,null,null,"","",null,null,null,null,0]
[null,null,null,null,null,null,null,null,null,null,null,null,"","",null,null,null,null,0]
[null,null,null,null,null,null,null,null,null,null,null,null,"","",null,null,null,null,0]
[null,null,null,null,null,null,null,null,null,null,null,null,"","",null,null,null,null,0]
[null,null,null,null,null,null,null,null,null,null,null,null,"","",null,null,null,null,0]
[null,null,null,null,null,null,null,null,null,null,null,null,"","",null,null,null,null,0]
[null,null,null,null,null,null,null,null,null,null,null,null,"","",null,null,null,null,0]
[null,null,null,null,null,null,null,null,null,null,null,null,"","",null,null,null,null,0]
[null,null,null,null,null,null,null,null,null,null,null,null,"","",null,null,null,null,0]
[null,null,null,null,null,null,null,null,null,null,null,null,"","",null,null,null,null,0]
[null,null,null,null,null,null,null,null,null,null,null,null,"","",null,null,null,null,0]
[null,null,null,null,null,null,null,null,null,null,null,null,"","",null,null,null,null,0]
[null,null,null,null,null,null,null,null,null,null,null,null,"","",null,null,null,null,0]
[null,"注)　用紙の指定ではありませんので、貴社作成の手順書をコピーして添付しても構いません。"]
[]
[null,"区分","作業手順",null,"作業要点･急所",null,null,"予想される災害",null,null,"損失度","可能性","頻度","リスク優先度","安全対策",null,"誰が"]
[null,null,null,null,null,null,null,null,null,null,null,null,{"$f":"IF(S53=0,\"\",S53)","v":""},{"$f":"IF(M53=\"\",\"\",IF(M53>=10,\"E\",IF(M53>=6,\"D\",IF(M53>=3,\"Ｃ\",IF(M53=2,\"B\",IF(M53=1,\"A\"))))))","v":""},null,null,null,null,{"$f":"K53*L53","v":0}]
[null,null,null,null,null,null,null,null,null,null,null,null,"","",null,null,null,null,0]
[null,null,null,null,null,null,null,null,null,null,null,null,"","",null,null,null,null,0]
[null,null,null,null,null,null,null,null,null,null,null,null,"","",null,null,null,null,0]
[null,null,null,null,null,null,null,null,null,null,null,null,"","",null,null,null,null,0]
[null,null,null,null,null,null,null,null,null,null,null,null,"","",null,null,null,null,0]
[null,null,null,null,null,null,null,null,null,null,null,null,"","",null,null,null,null,0]
[null,null,null,null,null,null,null,null,null,null,null,null,"","",null,null,null,null,0]
[null,null,null,null,null,null,null,null,null,null,null,null,"","",null,null,null,null,0]
[null,null,null,null,null,null,null,null,null,null,null,null,"","",null,null,null,null,0]
[null,null,null,null,null,null,null,null,null,null,null,null,"","",null,null,null,null,0]
[null,null,null,null,null,null,null,null,null,null,null,null,"","",null,null,null,null,0]
[null,null,null,null,null,null,null,null,null,null,null,null,"","",null,null,null,null,0]
[null,null,null,null,null,null,null,null,null,null,null,null,"","",null,null,null,null,0]
[null,null,null,null,null,null,null,null,null,null,null,null,"","",null,null,null,null,0]
[null,null,null,null,null,null,null,null,null,null,null,null,"","",null,null,null,null,0]
[null,null,null,null,null,null,null,null,null,null,null,null,"","",null,null,null,null,0]
[null,null,null,null,null,null,null,null,null,null,null,null,"","",null,null,null,null,0]
[null,null,null,null,null,null,null,null,null,null,null,null,"","",null,null,null,null,0]
[null,null,null,null,null,null,null,null,null,null,null,null,"","",null,null,null,null,0]
[null,null,null,null,null,null,null,null,null,null,null,null,"","",null,null,null,null,0]
[null,null,null,null,null,null,null,null,null,null,null,null,"","",null,null,null,null,0]
[null,null,null,null,null,null,null,null,null,null,null,null,"","",null,null,null,null,0]
[null,null,null,null,null,null,null,null,null,null,null,null,"","",null,null,null,null,0]
[null,null,null,null,null,null,null,null,null,null,null,null,"","",null,null,null,null,0]
[null,null,null,null,null,null,null,null,null,null,null,null,"","",null,null,null,null,0]
[null,null,null,null,null,null,null,null,null,null,null,null,"","",null,null,null,null,0]
[null,null,null,null,null,null,null,null,null,null,null,null,"","",null,null,null,null,0]
[null,null,null,null,null,null,null,null,null,null,null,null,"","",null,null,null,null,0]
[null,null,null,null,null,null,null,null,null,null,null,null,"","",null,null,null,null,0]
[null,null,null,null,null,null,null,null,null,null,null,null,"","",null,null,null,null,0]
[null,null,null,null,null,null,null,null,null,null,null,null,"","",null,null,null,null,0]
[null,null,null,null,null,null,null,null,null,null,null,null,"","",null,null,null,null,0]
[null,null,null,null,null,null,null,null,null,null,null,null,"","",null,null,null,null,0]
[null,null,null,null,null,null,null,null,null,null,null,null,"","",null,null,null,null,0]
[null,null,null,null,null,null,null,null,null,null,null,null,"","",null,null,null,null,0]
[null,null,null,null,null,null,null,null,null,null,null,null,"","",null,null,null,null,0]
[null,null,null,null,null,null,null,null,null,null,null,null,"","",null,null,null,null,0]
[null,null,null,null,null,null,null,null,null,null,null,null,"","",null,null,null,null,0]
[null,null,null,null,null,null,null,null,null,null,null,null,"","",null,null,null,null,0]
[null,null,null,null,null,null,null,null,null,null,null,null,"","",null,null,null,null,0]
[null,null,null,null,null,null,null,null,null,null,null,null,"","",null,null,null,null,0]
[null,null,null,null,null,null,null,null,null,null,null,null,"","",null,null,null,null,0]
[null,null,null,null,null,null,null,null,null,null,null,null,"","",null,null,null,null,0]
[null,null,null,null,null,null,null,null,null,null,null,null,"","",null,null,null,null,0]
[null,null,null,null,null,null,null,null,null,null,null,null,"","",null,null,null,null,0]
[null,null,null,null,null,null,null,null,null,null,null,null,"","",null,null,null,null,0]
[null,null,null,null,null,null,null,null,null,null,null,null,"","",null,null,null,null,0]
[null,null,null,null,null,null,null,null,null,null,null,null,"","",null,null,null,null,0]
[null,null,null,null,null,null,null,null,null,null,null,null,"","",null,null,null,null,0]
[null,null,null,null,null,null,null,null,null,null,null,null,"","",null,null,null,null,0]
[null,null,null,null,null,null,null,null,null,null,null,null,"","",null,null,null,null,0]
[null,null,null,null,null,null,null,null,null,null,null,null,"","",null,null,null,null,0]
[null,null,null,null,null,null,null,null,null,null,null,null,"","",null,null,null,null,0]
[null,null,null,null,null,null,null,null,null,null,null,null,"","",null,null,null,null,0]
[null,null,null,null,null,null,null,null,null,null,null,null,"","",null,null,null,null,0]

{"sheet":"21.重機作業計画書","index":33,"n_rows":44,"n_cols":43,"rows_kept":44,"cut":false,"hidden":false,"merged":[[42,23,42,29],[42,30,42,36],[42,37,42,42],[42,1,42,3],[42,4,42,5],[42,6,42,8],[42,9,42,10],[42,11,42,15],[42,16,42,22],[41,1,41,3],[41,4,41,5],[41,6,41,8],[41,9,41,10],[41,11,41,15],[41,16,41,22],[41,23,41,29],[41,30,41,36],[41,37,41,42],[40,1,40,3],[40,4,40,5],[40,6,40,8],[40,9,40,10],[40,11,40,15],[40,16,40,22],[40,23,40,29],[40,30,40,36],[40,37,40,42],[38,23,38,29],[38,30,38,36],[38,37,38,42],[39,1,39,3],[39,4,39,5],[39,6,39,8],[39,9,39,10],[39,11,39,15],[39,16,39,22],[39,23,39,29],[38,1,38,3],[38,4,38,5],[38,6,38,8],[38,9,38,10],[38,11,38,15],[38,16,38,22],[39,30,39,36],[39,37,39,42],[36,30,36,42],[37,1,37,3],[37,4,37,5],[37,6,37,8],[37,9,37,10],[37,11,37,15],[37,16,37,22],[37,23,37,29],[37,30,37,36],[37,37,37,42],[36,1,36,3],[36,4,36,5],[36,6,36,8],[36,9,36,10],[36,11,36,22],[36,23,36,29],[34,1,34,5],[34,6,34,8],[34,9,34,10],[34,12,34,15],[34,16,34,20],[35,1,35,10],[35,11,35,42],[32,1,32,5],[32,6,32,8],[32,9,32,10],[32,12,32,15],[32,16,32,20],[33,1,33,5],[33,6,33,8],[33,9,33,10],[33,12,33,15],[33,16,33,20],[30,1,30,5],[30,6,30,8],[30,9,30,10],[30,12,30,15],[30,16,30,20],[31,1,31,5],[31,6,31,8],[31,9,31,10],[31,12,31,15],[31,16,31,20],[27,1,27,10],[27,11,27,20],[28,1,28,20],[29,1,29,8],[29,9,29,10],[29,12,29,15],[29,16,29,20],[24,1,24,10],[24,11,24,20],[25,1,25,10],[25,11,25,20],[26,1,26,10],[26,11,26,20],[21,1,21,10],[21,11,21,20],[22,1,22,10],[22,11,22,20],[23,1,23,10],[23,11,23,20],[18,1,18,10],[18,11,18,20],[19,1,19,10],[19,11,19,20],[20,1,20,10],[20,11,20,20],[4,32,5,35],[4,37,4,38],[4,39,4,41],[15,1,15,4],[15,8,15,18],[16,1,16,4],[16,7,16,18],[17,1,17,10],[17,11,17,20],[11,1,11,4],[12,1,12,4],[13,1,13,4],[14,1,14,4],[14,7,14,11],[14,13,14,20],[1,16,1,27],[6,28,6,29],[6,30,6,35],[8,1,8,20],[9,1,9,4],[9,15,9,20],[10,1,10,4],[10,21,10,40],[5,12,6,13],[5,14,6,16],[5,17,6,18],[5,19,6,21],[6,23,6,24],[6,25,6,26],[3,1,4,2],[3,3,4,10],[3,12,4,13],[3,14,4,21],[3,23,3,26],[3,28,3,31],[3,32,3,35],[3,37,3,41],[4,23,5,26],[4,28,5,31]]}
[]
[null,null,null,null,null,null,null,null,null,null,null,null,null,null,null,null,"車　両　系　建　設　機　械　作　業　計　画　書"]
[]
[null,"工 事 名",null,{"$f":"IF(ISBLANK(共通情報入力表!D7),\"\",共通情報入力表!D7)","v":""},null,null,null,null,null,null,null,null,"作 業 名",null,null,null,null,null,null,null,null,null,null,"元方確認",null,null,null,null,"作成会社",null,null,null,"責　任　者",null,null,null,null,"令和　　　　年　　　月　　　　日"]
[null,null,null,null,null,null,null,null,null,null,null,null,null,null,null,null,null,null,null,null,null,null,null,null,null,null,null,null,null,null,null,null,null,null,null,null,null,"作成者",null,null,null,null,"印"]
[null,null,null,null,null,null,null,null,null,null,null,null,"作業期間",null,null,null,null,"～"]
[null,null,null,null,null,null,null,null,null,null,null,null,null,null,null,null,null,null,null,null,null,null,null,"確認日",null,null,null,null,"確認日"]
[]
[null,"計　　　画　　　内　　　容",null,null,null,null,null,null,null,null,null,null,null,null,null,null,null,null,null,null,null,"〔作業場所及び作業範囲と通行経路図〕（交通規制の誘導は仕様書による）"]
[null,"交通規制方法",null,null,null,"・通行止",null,"・片側交互通行",null,null,"・幅員減少",null,null,"・その他",null,null,null,null,null,null,null,"図示する事項"]
[null,"危険範囲立入禁止措置",null,null,null,"・誘導員",null,"・バリケード",null,null,"・トラロープ",null,null,"・カラーコーン",null,null,"・警報装置",null,null,null,null,"（機械位置、付随する機械設備、移動経路と移動位置、安全通路、立入禁止区域、制限速度、誘導者位置等を記入）"]
[null,"地形",null,null,null,"・平地",null,"・傾斜地　（",null,null,"％）","・段差地",null,"・作業面　（広い）　（狭い）"]
[null,"地質",null,null,null,"・硬岩",null,"・軟岩",null,"・礫","・砂礫",null,"・砂","・シルト",null,"・粘性土",null,"・泥炭",null,"・その他"]
[null,"埋設物・架空線近接と",null,null,null,"埋 設 物",null,"・無し",null,"・有り　（ＧＬ－",null,null,"ｍ）","架 空 線",null,"・無し",null,"・有り　（離れ",null,null,"ｍ）"]
[null,"防護の方法",null,null,null,"防護方法　（",null,null,null,null,null,null,"）"]
[null,"機械転倒危険場所と",null,null,null,"・無し",null,"・有り（",null,null,null,null,null,null,null,null,null,null,null,"）"]
[null,"転倒防止措置",null,null,null,"防止措置　（",null,null,null,null,null,null,null,null,null,null,null,null,null,"）"]
[null,"作　　　業　　　方　　　法",null,null,null,null,null,null,null,null,null,"安　全　上　の　留　意　点"]
[]
[]
[]
[]
[]
[]
[]
[]
[]
[]
[null,"使　　　用　　　機　　　械"]
[null,"機械名及び使用目的",null,null,null,null,null,null,null,"能　力",null,"台数","運転者及び会社名",null,null,null,"必　要　資　格"]
[]
[]
[]
[]
[]
[null,"そ　の　他　作　業　者　の　配　置",null,null,null,null,null,null,null,null,null,"【　記　　　載　　　事　　　項　】"]
[null,"役　　割",null,null,"名　前",null,"役　　割",null,null,"名　前",null,"移　動　式　ク　レ　ー　ン",null,null,null,null,null,null,null,null,null,null,null,"コンクリートポンプ車",null,null,null,null,null,null,"車　輌　系　建　設　機　械"]
[null,null,null,null,null,null,null,null,null,null,null,"吊り上げる荷の品名、重量",null,null,null,null,"移動式クレーンの設置場所の地盤強度耐力",null,null,null,null,null,null,"据え付け場所（地盤の状況・脚部の補強方法）",null,null,null,null,null,null,"重機や車両の運行経路、道路の幅員",null,null,null,null,null,null,"立入禁止区域の設定と明示措置"]
[null,null,null,null,null,null,null,null,null,null,null,"玉掛する場所、位置",null,null,null,null,"（敷鉄板等による養生方法）",null,null,null,null,null,null,"ポンプ車遠隔操作者の配置場所",null,null,null,null,null,null,"制限速度の設定と標識設置場所",null,null,null,null,null,null,"作業員・誘導員・合図者等の配置状況"]
[null,null,null,null,null,null,null,null,null,null,null,"玉外しする場所（荷降ろし位置）",null,null,null,null,"旋回方法",null,null,null,null,null,null,"作業指揮者の配置場所",null,null,null,null,null,null,"重機や車両等の転落転倒防止配置の内容",null,null,null,null,null,null,"作業者の保護具(反射チョッキ等）"]
[null,null,null,null,null,null,null,null,null,null,null,"玉掛の方法（吊り方）",null,null,null,null,"クレーンの操作方法(自由降下の原則禁止）",null,null,null,null,null,null,"コンクリートの打設順序（ホース等の移動順序）",null,null,null,null,null,null,"（敷鉄板や路肩表示、勾配の設定）"]
[null,null,null,null,null,null,null,null,null,null,null,"移動式クレーンの設置位置",null,null,null,null,"合図の方法、合図位置",null,null,null,null,null,null,"生コン車の回転、待機場所、誘導員の配置",null,null,null,null,null,null,"傾斜地駐車時の逸走防止措置"]
[null,null,null,null,null,null,null,null,null,null,null,"アウトリガーの張り出し、位置等",null,null,null,null,"立入禁止範囲の設定、柵と標識による明示",null,null,null,null,null,null,"配管の固定方法",null,null,null,null,null,null,"作業区域や作業範囲等の設定"]
[null,"（免）：免許取得、（作）：作業主任者、（技）：技能講習修了、（特）：特別教育修了、（指）：指名業務"]

{"sheet":"22.退職金制度調査票","index":34,"n_rows":50,"n_cols":8,"rows_kept":50,"cut":false,"hidden":false,"merged":[[3,5,4,8],[6,2,7,5],[8,2,9,5],[9,6,9,7],[21,3,23,3],[21,4,23,9],[30,3,32,3],[30,4,32,9],[30,10,32,10],[44,6,44,7],[21,10,23,10],[24,3,26,3],[24,4,26,9],[24,10,26,10],[27,3,29,3],[27,4,29,9],[27,10,29,10]]}
[]
[]
[]
[null,null,null,null,null,"退職金制度調査表"]
[]
[]
[]
[]
[null,null,{"$f":"IF(ISBLANK(共通情報入力表!D7),\"\",共通情報入力表!D7)","v":""}]
[null,null,null,null,null,null,"作業所長　殿"]
[]
[]
[]
[null,null,null,null,null,null,null,"住  所"]
[null,null,null,null,null,null,null,"会社名"]
[null,null,null,null,null,null,null,"代表者"]
[]
[]
[]
[null,null,"１．","貴社の行っている退職金制度で該当する項目に○印を付けてください"]
[]
[null,null,null,"１","自社独自の退職金制度がある"]
[]
[]
[null,null,null,"２","中小企業退職金共済事業に加入している"]
[]
[]
[null,null,null,"３","建設業退職金共済組合に加入している"]
[]
[]
[null,null,null,"４","上記のいずれにも加入していない"]
[]
[]
[]
[]
[]
[null,null,"２．","３の項目に該当する協力会社は概算必要枚数を記入して下さい。"]
[]
[null,null,"３．","1の項目に該当する協力会社は退職金制度の規約の写しを提出して下さい。"]
[]
[null,null,"４．","２～３の項目に該当する協力会社は加入証の写しを提出して下さい。"]
[]
[]
[]
[null,null,null,null,"概算必要枚数"]
[]
[]
[]
[]
[null,null,"※なお、４に該当される協力会社は今後、建設業退職金共済組合にご加入される事をお勧め致します。"]

{"sheet":"23.交付辞退届","index":35,"n_rows":27,"n_cols":7,"rows_kept":27,"cut":false,"hidden":false,"merged":[[25,3,25,8],[26,3,26,8],[2,1,2,3],[13,1,13,10],[16,2,16,3],[16,4,16,9],[22,3,22,8],[23,3,23,8],[24,3,24,8],[1,1,1,10],[4,7,4,10],[5,7,5,10],[6,7,6,9],[10,1,10,10]]}
[]
[]
[null,{"$f":"IF(ISBLANK(共通情報入力表!D5),\"\",共通情報入力表!D5)","v":""},null,null,"御中"]
[]
[null,null,null,null,null,null,"住所"]
[null,null,null,null,null,null,"会社名"]
[null,null,null,null,null,null,"代表者"]
[]
[]
[]
[null,"建設業退職金共済証紙　交付辞退届"]
[]
[]
[null,"記"]
[]
[]
[null,null,"　工事件名　：",null,{"$f":"IF(ISBLANK(共通情報入力表!D7),\"\",共通情報入力表!D7)","v":""}]
[]
[]
[null,"上記工事に従事するにあたり、当社は、下表の〇印項目に該当するため、建設業退職金"]
[null,"共済掛金制度に加入しておりませんので、証紙の交付を必要と致しません。"]
[]
[null,null,"①","中小企業退職金共済組合に加入しているため"]
[null,null,"②","自社独自の退職金制度があるため"]
[null,null,"③","建設業退職金共済組合に加入しているが、対象労働者がいないため"]
[null,null,"④","その他の制度に加入している（特定退職金共済制度）"]
[null,null,"⑤","上記のいずれにも加入していない。\n"]

{"sheet":"24-1.事務受託様式5号","index":36,"n_rows":36,"n_cols":42,"rows_kept":36,"cut":false,"hidden":false,"merged":[[8,34,9,40],[9,1,9,2],[9,3,9,13],[2,1,2,40],[4,4,4,13],[4,30,4,32],[4,33,4,40],[5,1,5,13],[5,30,5,32],[5,33,5,40],[7,1,7,2],[7,3,7,29],[8,1,8,2],[8,3,8,29],[8,33,9,33],[10,1,10,2],[10,3,10,13],[10,33,12,33],[10,34,12,40],[11,1,11,2],[11,3,12,13],[12,1,12,2],[13,1,13,2],[13,3,13,29],[13,36,13,40],[14,1,14,2],[14,3,14,29],[14,33,14,40],[15,1,15,2],[15,3,16,29],[15,33,17,40],[16,1,16,2],[17,1,17,2],[17,3,17,29],[19,1,19,2],[19,3,19,4],[19,15,19,18],[19,19,19,26],[20,1,20,2],[20,3,20,13],[20,15,20,18],[20,19,20,40],[27,6,27,7],[23,1,24,1],[23,2,24,2],[23,3,24,3],[23,4,24,4],[23,5,24,5],[23,6,24,7],[23,19,23,25],[23,27,23,33],[23,41,24,41],[25,6,25,7],[26,6,26,7],[34,6,34,7],[28,6,28,7],[29,6,29,7],[30,6,30,7],[31,6,31,7],[32,6,32,7],[33,6,33,7]]}
[]
[null,"　　建退共事務受託様式第５号"]
[null,"被共済者就労状況報告書（日別報告様式）"]
[]
[null,"提出先共済契約者番号",null,null,null,null,null,null,null,null,null,null,null,null,null,null,null,null,null,null,null,null,null,null,null,null,null,null,null,null,"整理番号"]
[null,null,null,null,null,null,null,null,null,null,null,null,null,null,"殿",null,null,null,null,null,null,null,null,null,null,null,null,null,null,"","報告日"]
[]
[null,"報告事業所名"]
[null,"住所",null,null,null,null,null,null,null,null,null,null,null,null,null,null,null,null,null,null,null,null,null,null,null,null,null,null,null,null,null,null,null,null,"掛金納付についての\n事務を委託します。"]
[null,"電話番号"]
[null,"共済契約者番号",null,null,null,null,null,null,null,null,null,null,null,null,null,null,null,null,null,null,null,null,null,null,null,null,null,null,null,null,null,null,null,null,"就労実績の集計に建設\nキャリアアップシステムを\n活用しています。"]
[null,"建設キャリアアップシステム"]
[null,"事業者ⅠD"]
[null,"工事番号および\n工事名"]
[null,"工事コード",null,null,null,null,null,null,null,null,null,null,null,null,null,null,null,null,null,null,null,null,null,null,null,null,null,null,null,null,null,null,null,"現場責任者確認"]
[null,"建設キャリアアップシステム"]
[null,"現場ⅠD"]
[null,"備考"]
[]
[null,"（契約者番号）",null,{"$f":"IF(ISBLANK(共通情報入力表!D5),\"\",\"65-04360\")","v":""},null,null,null,null,null,null,null,null,null,null,null,"（契約者番号）"]
[null,"元請事業所名",null,{"$f":"IF(ISBLANK(共通情報入力表!D5),\"\",共通情報入力表!D5)","v":""},null,null,null,null,null,null,null,null,null,null,null,"一次事業所名",null,null,null,{"$f":"IF(ISBLANK(共通情報入力表!D17),\"\",共通情報入力表!D17)","v":""}]
[null,"次の表のとおり、就労実績を報告します。"]
[null,null,"CCUS情報"]
[null,"No.","技能者ＩＤ","立場","被共済者番号","項番","被共済者名",null,null,null,null,null,null,null,null,null,null,null,"就労状況",null,null,null,null,null,null,null,"～",null,null,null,null,null,null,null,null,null,null,null,null,null,null,"CCUS"]
[null,null,null,null,null,null,null,null,{"$f":"DAY($T$24)","v":0},{"$f":"DAY($T$24+1)","v":1},{"$f":"DAY($T$24+2)","v":2},{"$f":"DAY($T$24+3)","v":3},{"$f":"DAY($T$24+4)","v":4},{"$f":"DAY($T$24+5)","v":5},{"$f":"DAY($T$24+6)","v":6},{"$f":"DAY($T$24+7)","v":7},{"$f":"DAY($T$24+8)","v":8},{"$f":"DAY($T$24+9)","v":9},{"$f":"DAY($T$24+10)","v":10},{"$f":"DAY($T$24+11)","v":11},{"$f":"DAY($T$24+12)","v":12},{"$f":"DAY($T$24+13)","v":13},{"$f":"DAY($T$24+14)","v":14},{"$f":"DAY($T$24+15)","v":15},{"$f":"DAY($T$24+16)","v":16},{"$f":"DAY($T$24+17)","v":17},{"$f":"DAY($T$24+18)","v":18},{"$f":"DAY($T$24+19)","v":19},{"$f":"DAY($T$24+20)","v":20},{"$f":"DAY($T$24+21)","v":21},{"$f":"DAY($T$24+22)","v":22},{"$f":"DAY($T$24+23)","v":23},{"$f":"DAY($T$24+24)","v":24},{"$f":"DAY($T$24+25)","v":25},{"$f":"DAY($T$24+26)","v":26},{"$f":"DAY($T$24+27)","v":27},{"$f":"IF(DAY(AB24)=29,29,IF(DAY(AB24)=AJ25,\"\",DAY(T24+28)))","v":28},{"$f":"IF(DAY(AB24)=29,\"\",IF(AK25=\"\",\"\",DAY(T24+29)))","v":29},{"$f":"IF(DAY(AB24)=29,\"\",IF(DAY(AB24)=28,\"\",IF(DAY(AB24)=30,\"\",DAY(T24+30))))","v":30},"調整","合計日数"]
[null,1,null,null,null,null,null,null,null,null,null,null,null,null,null,null,null,null,null,null,null,null,null,null,null,null,null,null,null,null,null,null,null,null,null,null,null,null,null,null,{"$f":"SUM(I26:AN26)","v":0}]
[null,2,null,null,null,null,null,null,null,null,null,null,null,null,null,null,null,null,null,null,null,null,null,null,null,null,null,null,null,null,null,null,null,null,null,null,null,null,null,null,0]
[null,3,null,null,null,null,null,null,null,null,null,null,null,null,null,null,null,null,null,null,null,null,null,null,null,null,null,null,null,null,null,null,null,null,null,null,null,null,null,null,0]
[null,4,null,null,null,null,null,null,null,null,null,null,null,null,null,null,null,null,null,null,null,null,null,null,null,null,null,null,null,null,null,null,null,null,null,null,null,null,null,null,0]
[null,5,null,null,null,null,null,null,null,null,null,null,null,null,null,null,null,null,null,null,null,null,null,null,null,null,null,null,null,null,null,null,null,null,null,null,null,null,null,null,0]
[null,6,null,null,null,null,null,null,null,null,null,null,null,null,null,null,null,null,null,null,null,null,null,null,null,null,null,null,null,null,null,null,null,null,null,null,null,null,null,null,0]
[null,7,null,null,null,null,null,null,null,null,null,null,null,null,null,null,null,null,null,null,null,null,null,null,null,null,null,null,null,null,null,null,null,null,null,null,null,null,null,null,0]
[null,8,null,null,null,null,null,null,null,null,null,null,null,null,null,null,null,null,null,null,null,null,null,null,null,null,null,null,null,null,null,null,null,null,null,null,null,null,null,null,0]
[null,9,null,null,null,null,null,null,null,null,null,null,null,null,null,null,null,null,null,null,null,null,null,null,null,null,null,null,null,null,null,null,null,null,null,null,null,null,null,null,0]
[null,10,null,null,null,null,null,null,null,null,null,null,null,null,null,null,null,null,null,null,null,null,null,null,null,null,null,null,null,null,null,null,null,null,null,null,null,null,null,null,0]
[null,"　※　建設キャリアアップシステム登録技能者は、ＣＣＵＳ欄に「○」印を記載"]

{"sheet":"24-2.事務受託様式4号","index":37,"n_rows":65,"n_cols":41,"rows_kept":65,"cut":false,"hidden":false,"merged":[[1,0,1,36],[2,23,2,26],[2,27,2,36],[3,1,3,6],[3,7,3,9],[3,23,3,26],[3,27,3,36],[5,1,5,2],[5,4,5,25],[5,28,5,36],[6,1,6,2],[6,4,6,25],[6,28,7,29],[6,30,7,36],[7,1,7,2],[7,4,7,25],[11,1,11,2],[11,4,12,25],[12,1,12,2],[13,1,13,2],[13,4,13,25],[13,28,13,36],[8,1,8,2],[8,4,8,25],[8,28,10,29],[8,30,10,36],[9,1,9,2],[9,4,10,25],[10,1,10,2],[18,1,18,2],[18,4,18,14],[18,15,18,21],[18,23,18,36],[19,1,19,2],[19,4,19,14],[19,15,19,21],[19,23,19,36],[14,1,14,2],[14,4,15,25],[15,1,15,2],[16,1,16,2],[16,4,16,25],[16,35,16,36],[21,8,21,11],[21,12,21,14],[21,15,21,21],[21,23,21,32],[22,0,23,0],[22,1,23,2],[22,3,23,3],[22,4,23,9],[22,10,23,15],[22,16,23,32],[22,33,22,36],[22,37,23,39],[23,33,23,36],[24,1,24,2],[24,4,24,9],[24,10,24,15],[24,16,24,32],[24,33,24,36],[24,37,24,39],[26,1,26,2],[26,4,26,9],[26,10,26,15],[26,16,26,32],[26,33,26,36],[26,37,26,39],[25,1,25,2],[25,4,25,9],[25,10,25,15],[25,16,25,32],[25,33,25,36],[25,37,25,39],[28,1,28,2],[28,4,28,9],[28,10,28,15],[28,16,28,32],[28,33,28,36],[28,37,28,39],[27,1,27,2],[27,4,27,9],[27,10,27,15],[27,16,27,32],[27,33,27,36],[27,37,27,39],[30,1,30,2],[30,4,30,9],[30,10,30,15],[30,16,30,32],[30,33,30,36],[30,37,30,39],[29,1,29,2],[29,4,29,9],[29,10,29,15],[29,16,29,32],[29,33,29,36],[29,37,29,39],[32,1,32,2],[32,4,32,9],[32,10,32,15],[32,16,32,32],[32,33,32,36],[32,37,32,39],[31,1,31,2],[31,4,31,9],[31,10,31,15],[31,16,31,32],[31,33,31,36],[31,37,31,39],[34,1,34,2],[34,4,34,9],[34,10,34,15],[34,16,34,32],[34,33,34,36],[34,37,34,39],[33,1,33,2],[33,4,33,9],[33,10,33,15],[33,16,33,32],[33,33,33,36],[33,37,33,39],[36,1,36,2],[36,4,36,9],[36,10,36,15],[36,16,36,32],[36,33,36,36],[36,37,36,39],[35,1,35,2],[35,4,35,9],[35,10,35,15],[35,16,35,32],[35,33,35,36],[35,37,35,39],[38,1,38,2],[38,4,38,9],[38,10,38,15],[38,16,38,32],[38,33,38,36],[38,37,38,39],[37,1,37,2],[37,4,37,9],[37,10,37,15],[37,16,37,32],[37,33,37,36],[37,37,37,39],[40,1,40,2],[40,4,40,9],[40,10,40,15],[40,16,40,32],[40,33,40,36],[40,37,40,39],[39,1,39,2],[39,4,39,9],[39,10,39,15],[39,16,39,32],[39,33,39,36],[39,37,39,39],[68,37,68,39],[69,37,69,39],[70,37,70,39],[71,37,71,39],[72,37,72,39],[73,37,73,39],[41,0,41,32],[41,33,41,36],[41,37,41,39],[64,37,65,39],[66,37,66,39],[67,37,67,39],[80,37,80,39],[81,37,81,39],[82,37,82,39],[74,37,74,39],[75,37,75,39],[76,37,76,39],[77,37,77,39],[78,37,78,39],[79,37,79,39]]}
["　　　建退共事務受託様式４号"]
["被共済者就労状況報告書（月別報告様式）"]
[null,null,null,null,null,null,null,null,null,null,null,null,null,null,null,null,null,null,null,null,null,null,null,"整理番号",null,null,null,{"$f":"IF('24-1.事務受託様式5号'!AH5=0,\"\",'24-1.事務受託様式5号'!AH5)","v":""}]
[null,{"$f":"IF('24-1.事務受託様式5号'!B6=0,\"\",'24-1.事務受託様式5号'!B6)","v":""},null,null,null,null,null,"殿",null,null,null,null,null,null,null,null,null,null,null,null,null,null,null,"報告日",null,null,null,{"$f":"IF('24-1.事務受託様式5号'!AH6=0,\"\",'24-1.事務受託様式5号'!AH6)","v":""}]
[]
[null,"報告事業所名",null,null,{"$f":"IF('24-1.事務受託様式5号'!D8=0,\"\",'24-1.事務受託様式5号'!D8)","v":""}]
[null,"住所",null,null,{"$f":"IF('24-1.事務受託様式5号'!D9=0,\"\",'24-1.事務受託様式5号'!D9)","v":""},null,null,null,null,null,null,null,null,null,null,null,null,null,null,null,null,null,null,null,null,null,null,null,{"$f":"IF('24-1.事務受託様式5号'!AH9=\"○\",'24-1.事務受託様式5号'!AH9,\"\")","v":""},null,"掛金納付についての\n事務を委託します。"]
[null,"電話番号",null,null,{"$f":"IF('24-1.事務受託様式5号'!D10=0,\"\",'24-1.事務受託様式5号'!D10)","v":""}]
[null,"共済契約者\n番号",null,null,{"$f":"IF('24-1.事務受託様式5号'!D11=0,\"\",'24-1.事務受託様式5号'!D11)","v":""},null,null,null,null,null,null,null,null,null,null,null,null,null,null,null,null,null,null,null,null,null,null,null,{"$f":"IF('24-1.事務受託様式5号'!AH11=\"\",\"\",\"○\")","v":""},null,"就労実績の集計に建設\nキャリアアップシステムを\n活用しています。"]
[null,"建設キャリアアップシステム",null,null,{"$f":"IF('24-1.事務受託様式5号'!D12=0,\"\",'24-1.事務受託様式5号'!D12)","v":""}]
[null,"事業者ⅠD"]
[null,"工事番号および",null,null,{"$f":"IF('24-1.事務受託様式5号'!D14=0,\"\",'24-1.事務受託様式5号'!D14)","v":""}]
[null,"工事名"]
[null,"工事コード",null,null,{"$f":"IF('24-1.事務受託様式5号'!D15=0,\"\",'24-1.事務受託様式5号'!D15)","v":""},null,null,null,null,null,null,null,null,null,null,null,null,null,null,null,null,null,null,null,null,null,null,null,"現場責任者確認"]
[null,"建設キャリアアップシステム",null,null,{"$f":"IF('24-1.事務受託様式5号'!D16=0,\"\",'24-1.事務受託様式5号'!D16)","v":""}]
[null,"現場ⅠD"]
[null,"備考",null,null,{"$f":"IF('24-1.事務受託様式5号'!D18=0,\"\",'24-1.事務受託様式5号'!D18)","v":""}]
[]
[null,"(共済契約者番号)",null,null,{"$f":"IF('24-1.事務受託様式5号'!D20=0,\"\",'24-1.事務受託様式5号'!D20)","v":""},null,null,null,null,null,null,null,null,null,null,"(共済契約者番号)",null,null,null,null,null,null,null,{"$f":"IF('24-1.事務受託様式5号'!T20=0,\"\",'24-1.事務受託様式5号'!T20)","v":""}]
[null,"元請事業所名",null,null,{"$f":"IF('24-1.事務受託様式5号'!D21=0,\"\",'24-1.事務受託様式5号'!D21)","v":""},null,null,null,null,null,null,null,null,null,null,"一次事業所名",null,null,null,null,null,null,null,{"$f":"IF('24-1.事務受託様式5号'!T21=0,\"\",'24-1.事務受託様式5号'!T21)","v":""}]
[]
[null,"次の表のとおり、就労実績を報告します。",null,null,null,null,null,null,"報告期間：",null,null,null,null,null,null,{"$f":"IF('24-1.事務受託様式5号'!T24=0,\"\",'24-1.事務受託様式5号'!T24)","v":""},null,null,null,null,null,null,"～",{"$f":"IF('24-1.事務受託様式5号'!AB24=0,\"\",'24-1.事務受託様式5号'!AB24)","v":""}]
["No.","共済契約者番号",null,"項番","共済契約者名",null,null,null,null,null,"被共済者番号",null,null,null,null,null,"被共済者名",null,null,null,null,null,null,null,null,null,null,null,null,null,null,null,null,"就労日数",null,null,null,"CCUS"]
[null,null,null,null,null,null,null,null,null,null,null,null,null,null,null,null,null,null,null,null,null,null,null,null,null,null,null,null,null,null,null,null,null,"320円"]
[1,{"$f":"IF(K25=\"\",\"\",$E$9)","v":""},null,{"$f":"IF('24-1.事務受託様式5号'!$F26=\"\",\"\",'24-1.事務受託様式5号'!$F26)","v":""},{"$f":"IF(K25=\"\",\"\",$E$6)","v":""},null,null,null,null,null,{"$f":"IF('24-1.事務受託様式5号'!$E26=0,\"\",'24-1.事務受託様式5号'!$E26)","v":""},null,null,null,null,null,{"$f":"IF('24-1.事務受託様式5号'!$G26=0,\"\",'24-1.事務受託様式5号'!$G26)","v":""},null,null,null,null,null,null,null,null,null,null,null,null,null,null,null,null,{"$f":"IF('24-1.事務受託様式5号'!$AO26=0,\"\",'24-1.事務受託様式5号'!$AO26)","v":""},null,null,null,{"$f":"IF('24-1.事務受託様式5号'!$AP26=\"\",\"\",\"○\")","v":""},null,null,{"$f":"IF(Q25=\"\",0,1)","v":0}]
[2,"",null,{"$f":"IF('24-1.事務受託様式5号'!$F27=\"\",\"\",'24-1.事務受託様式5号'!$F27)","v":""},"",null,null,null,null,null,{"$f":"IF('24-1.事務受託様式5号'!$E27=0,\"\",'24-1.事務受託様式5号'!$E27)","v":""},null,null,null,null,null,{"$f":"IF('24-1.事務受託様式5号'!$G27=0,\"\",'24-1.事務受託様式5号'!$G27)","v":""},null,null,null,null,null,null,null,null,null,null,null,null,null,null,null,null,{"$f":"IF('24-1.事務受託様式5号'!$AO27=0,\"\",'24-1.事務受託様式5号'!$AO27)","v":""},null,null,null,{"$f":"IF('24-1.事務受託様式5号'!$AP27=\"\",\"\",\"○\")","v":""},null,null,{"$f":"IF(Q26=\"\",0,1)","v":0}]
[3,"",null,{"$f":"IF('24-1.事務受託様式5号'!$F28=\"\",\"\",'24-1.事務受託様式5号'!$F28)","v":""},"",null,null,null,null,null,{"$f":"IF('24-1.事務受託様式5号'!$E28=0,\"\",'24-1.事務受託様式5号'!$E28)","v":""},null,null,null,null,null,{"$f":"IF('24-1.事務受託様式5号'!$G28=0,\"\",'24-1.事務受託様式5号'!$G28)","v":""},null,null,null,null,null,null,null,null,null,null,null,null,null,null,null,null,{"$f":"IF('24-1.事務受託様式5号'!$AO28=0,\"\",'24-1.事務受託様式5号'!$AO28)","v":""},null,null,null,{"$f":"IF('24-1.事務受託様式5号'!$AP28=\"\",\"\",\"○\")","v":""},null,null,0]
[4,"",null,{"$f":"IF('24-1.事務受託様式5号'!$F29=\"\",\"\",'24-1.事務受託様式5号'!$F29)","v":""},"",null,null,null,null,null,{"$f":"IF('24-1.事務受託様式5号'!$E29=0,\"\",'24-1.事務受託様式5号'!$E29)","v":""},null,null,null,null,null,{"$f":"IF('24-1.事務受託様式5号'!$G29=0,\"\",'24-1.事務受託様式5号'!$G29)","v":""},null,null,null,null,null,null,null,null,null,null,null,null,null,null,null,null,{"$f":"IF('24-1.事務受託様式5号'!$AO29=0,\"\",'24-1.事務受託様式5号'!$AO29)","v":""},null,null,null,{"$f":"IF('24-1.事務受託様式5号'!$AP29=\"\",\"\",\"○\")","v":""},null,null,0]
[5,"",null,{"$f":"IF('24-1.事務受託様式5号'!$F30=\"\",\"\",'24-1.事務受託様式5号'!$F30)","v":""},"",null,null,null,null,null,{"$f":"IF('24-1.事務受託様式5号'!$E30=0,\"\",'24-1.事務受託様式5号'!$E30)","v":""},null,null,null,null,null,{"$f":"IF('24-1.事務受託様式5号'!$G30=0,\"\",'24-1.事務受託様式5号'!$G30)","v":""},null,null,null,null,null,null,null,null,null,null,null,null,null,null,null,null,{"$f":"IF('24-1.事務受託様式5号'!$AO30=0,\"\",'24-1.事務受託様式5号'!$AO30)","v":""},null,null,null,{"$f":"IF('24-1.事務受託様式5号'!$AP30=\"\",\"\",\"○\")","v":""},null,null,0]
[6,"",null,{"$f":"IF('24-1.事務受託様式5号'!$F31=\"\",\"\",'24-1.事務受託様式5号'!$F31)","v":""},"",null,null,null,null,null,{"$f":"IF('24-1.事務受託様式5号'!$E31=0,\"\",'24-1.事務受託様式5号'!$E31)","v":""},null,null,null,null,null,{"$f":"IF('24-1.事務受託様式5号'!$G31=0,\"\",'24-1.事務受託様式5号'!$G31)","v":""},null,null,null,null,null,null,null,null,null,null,null,null,null,null,null,null,{"$f":"IF('24-1.事務受託様式5号'!$AO31=0,\"\",'24-1.事務受託様式5号'!$AO31)","v":""},null,null,null,{"$f":"IF('24-1.事務受託様式5号'!$AP31=\"\",\"\",\"○\")","v":""},null,null,0]
[7,"",null,{"$f":"IF('24-1.事務受託様式5号'!$F32=\"\",\"\",'24-1.事務受託様式5号'!$F32)","v":""},"",null,null,null,null,null,{"$f":"IF('24-1.事務受託様式5号'!$E32=0,\"\",'24-1.事務受託様式5号'!$E32)","v":""},null,null,null,null,null,{"$f":"IF('24-1.事務受託様式5号'!$G32=0,\"\",'24-1.事務受託様式5号'!$G32)","v":""},null,null,null,null,null,null,null,null,null,null,null,null,null,null,null,null,{"$f":"IF('24-1.事務受託様式5号'!$AO32=0,\"\",'24-1.事務受託様式5号'!$AO32)","v":""},null,null,null,{"$f":"IF('24-1.事務受託様式5号'!$AP32=\"\",\"\",\"○\")","v":""},null,null,0]
[8,{"$f":"IF(K32=\"\",\"\",$E$9)","v":""},null,{"$f":"IF('24-1.事務受託様式5号'!$F33=\"\",\"\",'24-1.事務受託様式5号'!$F33)","v":""},"",null,null,null,null,null,{"$f":"IF('24-1.事務受託様式5号'!$E33=0,\"\",'24-1.事務受託様式5号'!$E33)","v":""},null,null,null,null,null,{"$f":"IF('24-1.事務受託様式5号'!$G33=0,\"\",'24-1.事務受託様式5号'!$G33)","v":""},null,null,null,null,null,null,null,null,null,null,null,null,null,null,null,null,{"$f":"IF('24-1.事務受託様式5号'!$AO33=0,\"\",'24-1.事務受託様式5号'!$AO33)","v":""},null,null,null,{"$f":"IF('24-1.事務受託様式5号'!$AP33=\"\",\"\",\"○\")","v":""},null,null,0]
[9,"",null,{"$f":"IF('24-1.事務受託様式5号'!$F34=\"\",\"\",'24-1.事務受託様式5号'!$F34)","v":""},"",null,null,null,null,null,{"$f":"IF('24-1.事務受託様式5号'!$E34=0,\"\",'24-1.事務受託様式5号'!$E34)","v":""},null,null,null,null,null,{"$f":"IF('24-1.事務受託様式5号'!$G34=0,\"\",'24-1.事務受託様式5号'!$G34)","v":""},null,null,null,null,null,null,null,null,null,null,null,null,null,null,null,null,{"$f":"IF('24-1.事務受託様式5号'!$AO34=0,\"\",'24-1.事務受託様式5号'!$AO34)","v":""},null,null,null,{"$f":"IF('24-1.事務受託様式5号'!$AP34=\"\",\"\",\"○\")","v":""},null,null,0]
[10,{"$f":"IF(K34=\"\",\"\",$E$9)","v":""},null,{"$f":"IF('24-1.事務受託様式5号'!$F35=\"\",\"\",'24-1.事務受託様式5号'!$F35)","v":""},"",null,null,null,null,null,{"$f":"IF('24-1.事務受託様式5号'!$E35=0,\"\",'24-1.事務受託様式5号'!$E35)","v":""},null,null,null,null,null,{"$f":"IF('24-1.事務受託様式5号'!$G35=0,\"\",'24-1.事務受託様式5号'!$G35)","v":""},null,null,null,null,null,null,null,null,null,null,null,null,null,null,null,null,{"$f":"IF('24-1.事務受託様式5号'!$AO35=0,\"\",'24-1.事務受託様式5号'!$AO35)","v":""},null,null,null,{"$f":"IF('24-1.事務受託様式5号'!$AP35=\"\",\"\",\"○\")","v":""},null,null,0]
[null,{"$f":"IF(K35=\"\",\"\",$E$9)","v":""},null,{"$f":"IF('24-1.事務受託様式5号'!$F36=\"\",\"\",'24-1.事務受託様式5号'!$F36)","v":""},"",null,null,null,null,null,{"$f":"IF('24-1.事務受託様式5号'!$E36=0,\"\",'24-1.事務受託様式5号'!$E36)","v":""},null,null,null,null,null,{"$f":"IF('24-1.事務受託様式5号'!$G36=0,\"\",'24-1.事務受託様式5号'!$G36)","v":""},null,null,null,null,null,null,null,null,null,null,null,null,null,null,null,null,{"$f":"IF('24-1.事務受託様式5号'!$AO36=0,\"\",'24-1.事務受託様式5号'!$AO36)","v":""},null,null,null,{"$f":"IF('24-1.事務受託様式5号'!$AP36=\"\",\"\",\"○\")","v":""},null,null,{"$f":"IF(Q35=\"\",0,1)","v":0}]
[null,"",null,{"$f":"IF('24-1.事務受託様式5号'!$F37=\"\",\"\",'24-1.事務受託様式5号'!$F37)","v":""},"",null,null,null,null,null,{"$f":"IF('24-1.事務受託様式5号'!$E37=0,\"\",'24-1.事務受託様式5号'!$E37)","v":""},null,null,null,null,null,{"$f":"IF('24-1.事務受託様式5号'!$G37=0,\"\",'24-1.事務受託様式5号'!$G37)","v":""},null,null,null,null,null,null,null,null,null,null,null,null,null,null,null,null,{"$f":"IF('24-1.事務受託様式5号'!$AO37=0,\"\",'24-1.事務受託様式5号'!$AO37)","v":""},null,null,null,{"$f":"IF('24-1.事務受託様式5号'!$AP37=\"\",\"\",\"○\")","v":""},null,null,0]
[null,"",null,{"$f":"IF('24-1.事務受託様式5号'!$F38=\"\",\"\",'24-1.事務受託様式5号'!$F38)","v":""},"",null,null,null,null,null,{"$f":"IF('24-1.事務受託様式5号'!$E38=0,\"\",'24-1.事務受託様式5号'!$E38)","v":""},null,null,null,null,null,{"$f":"IF('24-1.事務受託様式5号'!$G38=0,\"\",'24-1.事務受託様式5号'!$G38)","v":""},null,null,null,null,null,null,null,null,null,null,null,null,null,null,null,null,{"$f":"IF('24-1.事務受託様式5号'!$AO38=0,\"\",'24-1.事務受託様式5号'!$AO38)","v":""},null,null,null,{"$f":"IF('24-1.事務受託様式5号'!$AP38=\"\",\"\",\"○\")","v":""},null,null,0]
[null,"",null,{"$f":"IF('24-1.事務受託様式5号'!$F39=\"\",\"\",'24-1.事務受託様式5号'!$F39)","v":""},"",null,null,null,null,null,{"$f":"IF('24-1.事務受託様式5号'!$E39=0,\"\",'24-1.事務受託様式5号'!$E39)","v":""},null,null,null,null,null,{"$f":"IF('24-1.事務受託様式5号'!$G39=0,\"\",'24-1.事務受託様式5号'!$G39)","v":""},null,null,null,null,null,null,null,null,null,null,null,null,null,null,null,null,{"$f":"IF('24-1.事務受託様式5号'!$AO39=0,\"\",'24-1.事務受託様式5号'!$AO39)","v":""},null,null,null,{"$f":"IF('24-1.事務受託様式5号'!$AP39=\"\",\"\",\"○\")","v":""},null,null,0]
[null,"",null,{"$f":"IF('24-1.事務受託様式5号'!$F40=\"\",\"\",'24-1.事務受託様式5号'!$F40)","v":""},"",null,null,null,null,null,{"$f":"IF('24-1.事務受託様式5号'!$E40=0,\"\",'24-1.事務受託様式5号'!$E40)","v":""},null,null,null,null,null,{"$f":"IF('24-1.事務受託様式5号'!$G40=0,\"\",'24-1.事務受託様式5号'!$G40)","v":""},null,null,null,null,null,null,null,null,null,null,null,null,null,null,null,null,{"$f":"IF('24-1.事務受託様式5号'!$AO40=0,\"\",'24-1.事務受託様式5号'!$AO40)","v":""},null,null,null,{"$f":"IF('24-1.事務受託様式5号'!$AP40=\"\",\"\",\"○\")","v":""},null,null,0]
[null,"",null,{"$f":"IF('24-1.事務受託様式5号'!$F41=\"\",\"\",'24-1.事務受託様式5号'!$F41)","v":""},"",null,null,null,null,null,{"$f":"IF('24-1.事務受託様式5号'!$E41=0,\"\",'24-1.事務受託様式5号'!$E41)","v":""},null,null,null,null,null,{"$f":"IF('24-1.事務受託様式5号'!$G41=0,\"\",'24-1.事務受託様式5号'!$G41)","v":""},null,null,null,null,null,null,null,null,null,null,null,null,null,null,null,null,{"$f":"IF('24-1.事務受託様式5号'!$AO41=0,\"\",'24-1.事務受託様式5号'!$AO41)","v":""},null,null,null,{"$f":"IF('24-1.事務受託様式5号'!$AP41=\"\",\"\",\"○\")","v":""},null,null,0]
[null,"",null,{"$f":"IF('24-1.事務受託様式5号'!$F42=\"\",\"\",'24-1.事務受託様式5号'!$F42)","v":""},"",null,null,null,null,null,{"$f":"IF('24-1.事務受託様式5号'!$E42=0,\"\",'24-1.事務受託様式5号'!$E42)","v":""},null,null,null,null,null,{"$f":"IF('24-1.事務受託様式5号'!$G42=0,\"\",'24-1.事務受託様式5号'!$G42)","v":""},null,null,null,null,null,null,null,null,null,null,null,null,null,null,null,null,{"$f":"IF('24-1.事務受託様式5号'!$AO42=0,\"\",'24-1.事務受託様式5号'!$AO42)","v":""},null,null,null,{"$f":"IF('24-1.事務受託様式5号'!$AP42=\"\",\"\",\"○\")","v":""},null,null,0]
["総合計",null,null,null,null,null,null,null,null,null,null,null,null,null,null,null,null,null,null,null,null,null,null,null,null,null,null,null,null,null,null,null,null,{"$f":"SUM(AH25:AK41)","v":0},null,null,null,{"$f":"COUNTIF(AL25:AN41,\"○\")","v":0},null,null,{"$f":"SUM(AO25:AO41)","v":0}]
[null,null,null,null,"※　建設キャリアアップシステム登録技能者は、ＣＣＵＳ欄に「○」印を記載"]
[]
[]
[]
[]
[]
[]
[]
[]
[]
[]
[]
[]
[]
[]
[]
[]
[]
[]
[]
[]
[]
[null,null,null,null,null,null,null,null,null,null,null,null,null,null,null,null,null,null,null,null,null,null,null,null,null,null,null,null,null,null,null,null,null,null,null,null,null,"CCUS"]

{"sheet":"24-3.共済契約者別一覧","index":38,"n_rows":37,"n_cols":32,"rows_kept":37,"cut":false,"hidden":false,"merged":[[1,0,1,36],[2,23,2,26],[2,27,2,36],[3,1,3,20],[3,23,3,26],[3,27,3,36],[8,1,8,2],[8,4,8,23],[9,1,9,2],[9,4,10,25],[10,1,10,2],[10,28,10,36],[5,1,5,2],[5,4,5,23],[5,28,7,29],[5,30,7,35],[6,1,6,2],[6,4,6,23],[7,1,7,2],[7,4,7,23],[11,1,11,2],[11,4,11,23],[12,1,12,2],[12,4,12,23],[12,35,12,36],[14,1,14,2],[14,4,14,14],[14,15,14,21],[14,23,14,36],[18,0,19,0],[18,1,19,2],[18,3,19,3],[18,4,19,24],[18,25,19,30],[18,31,19,36],[15,1,15,2],[15,4,15,14],[15,15,15,21],[15,23,15,36],[17,8,17,11],[17,12,17,21],[17,24,17,33],[20,1,20,2],[20,4,20,24],[20,25,20,30],[20,31,20,36],[21,1,21,2],[21,4,21,24],[21,25,21,30],[21,31,21,36],[17,38,17,40],[24,1,24,2],[24,4,24,24],[24,25,24,30],[24,31,24,36],[25,1,25,2],[25,4,25,24],[25,25,25,30],[25,31,25,36],[22,1,22,2],[22,4,22,24],[22,25,22,30],[22,31,22,36],[23,1,23,2],[23,4,23,24],[23,25,23,30],[23,31,23,36],[28,1,28,2],[28,4,28,24],[28,25,28,30],[28,31,28,36],[29,1,29,2],[29,4,29,24],[29,25,29,30],[29,31,29,36],[26,1,26,2],[26,4,26,24],[26,25,26,30],[26,31,26,36],[27,1,27,2],[27,4,27,24],[27,25,27,30],[27,31,27,36],[32,1,32,2],[32,4,32,24],[32,25,32,30],[32,31,32,36],[33,1,33,2],[33,4,33,24],[33,25,33,30],[33,31,33,36],[30,1,30,2],[30,4,30,24],[30,25,30,30],[30,31,30,36],[31,1,31,2],[31,4,31,24],[31,25,31,30],[31,31,31,36],[36,0,36,24],[36,25,36,30],[36,31,36,36],[34,1,34,2],[34,4,34,24],[34,25,34,30],[34,31,34,36],[35,1,35,2],[35,4,35,24],[35,25,35,30],[35,31,35,36]]}
[]
["建退共制度に係る被共済者就労状況報告書（共済契約者別一覧）"]
[null,null,null,null,null,null,null,null,null,null,null,null,null,null,null,null,null,null,null,null,null,null,null,"整理番号",null,null,null,{"$f":"IF('24-2.事務受託様式4号'!AB3=0,\"\",'24-2.事務受託様式4号'!AB3)","v":""}]
[null,"",null,null,null,null,null,null,null,null,null,null,null,null,null,null,null,null,null,null,null,null,null,"報告日",null,null,null,{"$f":"IF('24-2.事務受託様式4号'!AB4=0,\"\",'24-2.事務受託様式4号'!AB4)","v":""}]
[]
[null,"報告事業所名",null,null,{"$f":"IF('24-2.事務受託様式4号'!E6=0,\"\",'24-2.事務受託様式4号'!E6)","v":""},null,null,null,null,null,null,null,null,null,null,null,null,null,null,null,null,null,null,null,null,null,null,null,null,null,"下表の共済契約者\n（下請負人）から\n掛金納付についての\n事務を受託しました。"]
[null,"住所",null,null,{"$f":"IF('24-2.事務受託様式4号'!E7=0,\"\",'24-2.事務受託様式4号'!E7)","v":""}]
[null,"電話番号",null,null,{"$f":"IF('24-2.事務受託様式4号'!E8=0,\"\",'24-2.事務受託様式4号'!E8)","v":""}]
[null,"共済契約者\n番号",null,null,{"$f":"IF('24-2.事務受託様式4号'!E9=0,\"\",'24-2.事務受託様式4号'!E9)","v":""}]
[null,"工事番号および",null,null,{"$f":"IF('24-2.事務受託様式4号'!E12=0,\"\",'24-2.事務受託様式4号'!E12)","v":""}]
[null,"工事名",null,null,null,null,null,null,null,null,null,null,null,null,null,null,null,null,null,null,null,null,null,null,null,null,null,null,"現場責任者確認"]
[null,"工事コード",null,null,{"$f":"IF('24-2.事務受託様式4号'!E14=0,\"\",'24-2.事務受託様式4号'!E14)","v":""}]
[null,"備考",null,null,{"$f":"IF('24-2.事務受託様式4号'!E17=0,\"\",'24-2.事務受託様式4号'!E17)","v":""}]
[]
[null,"(共済契約者番号)",null,null,{"$f":"IF('24-2.事務受託様式4号'!E19=0,\"\",'24-2.事務受託様式4号'!E19)","v":""},null,null,null,null,null,null,null,null,null,null,"(共済契約者番号)",null,null,null,null,null,null,null,{"$f":"IF('24-2.事務受託様式4号'!X19=0,\"\",'24-2.事務受託様式4号'!X19)","v":""}]
[null,"元請事業所名",null,null,{"$f":"IF('24-2.事務受託様式4号'!E20=0,\"\",'24-2.事務受託様式4号'!E20)","v":""},null,null,null,null,null,null,null,null,null,null,"一次事業所名",null,null,null,null,null,null,null,{"$f":"IF('24-2.事務受託様式4号'!X20=0,\"\",'24-2.事務受託様式4号'!X20)","v":""}]
[]
[null,"次の表のとおり、就労実績を報告します。",null,null,null,null,null,null,"報告期間：",null,null,null,{"$f":"IF('24-2.事務受託様式4号'!P22=0,\"\",'24-2.事務受託様式4号'!P22)","v":""},null,null,null,null,null,null,null,null,null,"～",null,{"$f":"IF('24-2.事務受託様式4号'!X22=0,\"\",'24-2.事務受託様式4号'!X22)","v":""}]
["No.","共済契約者番号",null,"項番","共済契約者名",null,null,null,null,null,null,null,null,null,null,null,null,null,null,null,null,null,null,null,null,"被共済者数",null,null,null,null,null,"延べ就労日数"]
[]
["1",{"$f":"IF('24-2.事務受託様式4号'!E9=0,\"\",'24-2.事務受託様式4号'!E9)","v":""},null,null,{"$f":"IF('24-2.事務受託様式4号'!E6=0,\"\",'24-2.事務受託様式4号'!E6)","v":""},null,null,null,null,null,null,null,null,null,null,null,null,null,null,null,null,null,null,null,null,{"$f":"'24-2.事務受託様式4号'!AO42","v":0},null,null,null,null,null,{"$f":"'24-2.事務受託様式4号'!AH42","v":0}]
["2"]
["3"]
["4"]
["5"]
["6"]
["7"]
["8"]
["9"]
["10"]
["11"]
["12"]
["13"]
["14"]
["15"]
["16"]
["総合計　",null,null,null,null,null,null,null,null,null,null,null,null,null,null,null,null,null,null,null,null,null,null,null,null,{"$f":"SUM(Z21:AE36)","v":0},null,null,null,null,null,{"$f":"SUM(AF21:AK36)","v":0}]

{"sheet":"24-4.事務受託様式2号","index":39,"n_rows":61,"n_cols":26,"rows_kept":61,"cut":false,"hidden":false,"merged":[[12,1,12,5],[12,6,12,20],[4,1,4,29],[5,1,5,29],[7,24,7,29],[8,21,8,29],[11,1,11,2],[15,7,15,10],[15,11,15,29],[16,7,16,10],[16,11,16,29],[17,7,17,10],[17,11,17,29],[31,5,31,11],[31,14,31,20],[31,24,31,29],[18,7,18,10],[18,11,18,29],[19,7,19,10],[19,11,20,29],[20,7,20,10],[21,7,21,10],[21,11,22,29],[22,7,22,10],[23,7,23,10],[23,11,23,29],[24,7,24,10],[24,11,25,29],[25,7,25,10],[33,6,33,8],[33,16,33,18],[39,1,39,29],[41,24,41,29],[44,1,44,5],[44,6,44,20],[46,13,47,17],[49,13,50,17],[55,22,55,28],[57,25,57,29],[58,25,60,29],[59,15,60,24]]}
[null,"建退共事務受託様式２号"]
[]
[]
[]
[null,"建退共制度に係る被共済者就労状況報告書"]
[null,"（兼建設業退職金共済証紙交付依頼書）"]
[]
[null,null,null,null,null,null,null,null,null,null,null,null,null,null,null,null,null,null,null,null,null,"整理番号",null,null,{"$f":"IF('24-2.事務受託様式4号'!AB3=0,\"\",'24-2.事務受託様式4号'!AB3)","v":""}]
[null,null,null,null,null,null,null,null,null,null,null,null,null,null,null,null,null,null,null,null,null,{"$f":"IF('24-2.事務受託様式4号'!AB4=0,\"\",'24-2.事務受託様式4号'!AB4)","v":""}]
[]
[]
[]
[null,"交付元事業所",null,null,null,null,{"$f":"IF('24-2.事務受託様式4号'!B4=0,\"\",'24-2.事務受託様式4号'!B4&\"　　殿\")","v":"　　殿"}]
[]
[]
[null,null,null,null,null,null,null,"報告事業所",null,null,null,{"$f":"IF('24-2.事務受託様式4号'!E6=0,\"\",'24-2.事務受託様式4号'!E6)","v":""}]
[null,null,null,null,null,null,null,"住         所",null,null,null,{"$f":"IF('24-2.事務受託様式4号'!E7=0,\"\",'24-2.事務受託様式4号'!E7)","v":""}]
[null,null,null,null,null,null,null,"電 話 番 号",null,null,null,{"$f":"IF('24-2.事務受託様式4号'!E8=0,\"\",'24-2.事務受託様式4号'!E8)","v":""}]
[null,null,null,null,null,null,null,"共済契約者\n番　　　　号",null,null,null,{"$f":"IF('24-2.事務受託様式4号'!E9=0,\"\",'24-2.事務受託様式4号'!E9)","v":""}]
[null,null,null,null,null,null,null,"建設キャリアアップシステム",null,null,null,{"$f":"IF('24-2.事務受託様式4号'!E10=0,\"\",'24-2.事務受託様式4号'!E10)","v":""}]
[null,null,null,null,null,null,null,"事業者ⅠD"]
[null,null,null,null,null,null,null,"工事番号および",null,null,null,{"$f":"IF('24-2.事務受託様式4号'!E12=0,\"\",'24-2.事務受託様式4号'!E12)","v":""}]
[null,null,null,null,null,null,null,"工   事   名"]
[null,null,null,null,null,null,null,"工 事 コード",null,null,null,{"$f":"IF('24-2.事務受託様式4号'!E14=0,\"\",'24-2.事務受託様式4号'!E14)","v":""}]
[null,null,null,null,null,null,null,"建設キャリアアップシステム",null,null,null,{"$f":"IF('24-2.事務受託様式4号'!E15=0,\"\",'24-2.事務受託様式4号'!E15)","v":""}]
[null,null,null,null,null,null,null,"現 場 Ⅰ D"]
[]
[null,null,"以下のとおり報告します。"]
[]
[null,null,null,null,null,null,null,null,null,null,null,null,"記"]
[]
[null,null,"期　間",null,null,{"$f":"IF('24-2.事務受託様式4号'!P22=0,\"\",'24-2.事務受託様式4号'!P22)","v":""},null,null,null,null,null,null,"～",null,{"$f":"IF('24-2.事務受託様式4号'!X22=0,\"\",'24-2.事務受託様式4号'!X22)","v":""},null,null,null,null,null,null,null,null,null,"現場責任者確認"]
[]
[null,null,"被共済者数",null,null,null,{"$f":"'24-3.共済契約者別一覧'!Z37","v":0},null,null,"人",null,"延べ就労日数",null,null,null,null,{"$f":"'24-3.共済契約者別一覧'!AF37","v":0},null,null,"日"]
[]
[]
[]
[]
[]
[null,"建 設 業 退 職 金 共 済 証 紙 受 領 書"]
[]
[null,null,null,null,null,null,null,null,null,null,null,null,null,null,null,null,null,null,null,null,null,"整理番号",null,null,{"$f":"IF('24-2.事務受託様式4号'!AB3=0,\"\",'24-2.事務受託様式4号'!AB3)","v":""}]
[]
[]
[null,"交付元事業所",null,null,null,null,{"$f":"IF('24-2.事務受託様式4号'!B4=0,\"\",'24-2.事務受託様式4号'!B4&\"　　殿\")","v":"　　殿"}]
[]
[]
[null,null,null,null,null,null,null,null,null,null,"１日券",null,null,null,null,null,null,null,"枚"]
[]
[]
[null,null,null,null,null,null,null,null,null,null,"１０日券",null,null,null,null,null,null,null,"枚",null,null,null,{"$f":"IF(AND(N47=\"\",N50=\"\"),\"\",IF(Q34=(N47+(N50*10)),\"\",\"請求に対する受領枚数エラー\"))","v":""}]
[]
[]
[null,null,"上記の共済証紙を受領いたしました。"]
[]
[null,null,null,null,null,null,null,null,null,null,null,null,null,null,null,null,null,null,null,null,null,null,"        年       月       日   "]
[]
[null,null,null,null,null,null,null,null,null,null,null,null,null,null,null,null,null,null,null,null,null,null,null,null,null,"受領者確認"]
[]
[null,null,null,null,null,null,null,null,null,null,null,null,null,null,null,{"$f":"IF('24-2.事務受託様式4号'!E6=0,\"\",'24-2.事務受託様式4号'!E6)","v":""}]
[null,null,null,null,null,null,null,null,null,null,null,"報告事業所"]